Workbook

Sheet RESUMO MODULO TOTAL
B1: EXECUÇÃO DE SERVIÇOS DE IMPLANTAÇÃO DE PAVIMENTAÇÃO EM BLOCO DE CONCRETO INTERTRAVADO, EM VIAS DE MUNICÍPIOS INSERIDOS NA ÁREA DE ATUAÇÃO DA CODEVASF - 15ª/SR.
M2: SICRO: | N2: ='SINTÉTICO SICRO'!B2 -> Pernambuco - Julho/2023
M3: SINAPI: | N3: =RIGHT('INSUMOS SINAPI'!A3,7) -> 09/2023
M4: ORSE
M5: Data base orçamento: | N5: 2023-09-01
B6: =B1 -> EXECUÇÃO DE SERVIÇOS DE IMPLANTAÇÃO DE PAVIMENTAÇÃO EM BLOCO DE CONCRETO INTERTRAVADO, EM VIAS DE MUNICÍPIOS INSERIDOS NA ÁREA DE ATUAÇÃO DA CODEVASF - 15ª/SR. | O6: =N7*I9 -> 24558800
B7: ITEM | C7: ORIGEM COMPOSIÇÃO | D7: CÓDIGO COMPOSIÇÃO | E7: DISCRIMINAÇÃO DOS SERVIÇOS | I7: BDI % = | J7: =BDI!C17 -> 0.2339 | K7: BDI DIFERENCIADO% = | L7: =BDI!C72 -> 0.1456 | M7: R$/m² = | N7: =N53/I9 -> 175.42
I8: Total de m² | J8: Encargos Sociais: | K8: Horista (%) | L8: Mensalista (%) | M8: PREÇO UNITÁRIO COM BDI | N8: PREÇO TOTAL COM BDI
I9: ='MC MODULO'!I1*'MC MODULO'!E1*'MC MODULO'!E2 -> 140000 | K9: 114.55 | L9: 70.11
I10: UND | J10: QTDE. | K10: BDI | L10: PREÇO UNITÁRIO | AB10: TOTAL
E11: MOBILIZAÇÃO | O11: =I9/7 -> 20000 | T11: Índices de reajustamento
A12: =VLOOKUP(O12,'RESUMO MODULO TOTAL'!$O$12:$P$52,2,0) -> 14 | B12: 1 | C12: Codevasf | D12: CPU-02 | E12: Implantação da Obra | I12: m² | J12: ='MC MODULO'!R32 -> 140000 | K12: =$J$7 -> 0.2339 | L12: =ROUND(IF(C12="CODEVASF",VLOOKUP(D12,'CPU CODEVASF'!E:I,5,FALSE),VLOOKUP(D12,'SINTÉTICO SICRO'!A:D,4,FALSE)),6) -> 0.18 | M12: =TRUNC(IF(C12="CODEVASF",VLOOKUP(D12,'CPU CODEVASF'!E:H,4,FALSE),VLOOKUP(D12,'SINTÉTICO SICRO'!A:D,4,FALSE)*(1+$J$7)),6) -> 0.22 | N12: =TRUNC(ROUND(J12,2)*TRUNC(M12,6),2) -> 30800 | O12: =N12 -> 30800 | P12: =_xlfn.RANK.EQ(O12,$O$12:$O$52) -> 14 | Q12: =ROUND(M12,5)/ROUND(L12,5)-1 -> 0.2222 | R12: INCC | S12: =SUMIF(R12:R52,"INCC",N12:N52) -> 2499321.51 | T12: =S12/N53 -> 0.10177 | U12: INCC | AB12: 57163.47
A13: =VLOOKUP(O13,'RESUMO MODULO TOTAL'!$O$12:$P$52,2,0) -> 10 | B13: 2 | C13: Codevasf | D13: CPU-03 | E13: Administração da Obra | I13: m² | J13: ='MC MODULO'!R32 -> 140000 | K13: =$J$7 -> 0.2339 | L13: =ROUND(IF(C13="CODEVASF",VLOOKUP(D13,'CPU CODEVASF'!E:I,5,FALSE),VLOOKUP(D13,'SINTÉTICO SICRO'!A:D,4,FALSE)),6) -> 0.49 | M13: =TRUNC(IF(C13="CODEVASF",VLOOKUP(D13,'CPU CODEVASF'!E:H,4,FALSE),VLOOKUP(D13,'SINTÉTICO SICRO'!A:D,4,FALSE)*(1+$J$7)),6) -> 0.61 | N13: =TRUNC(ROUND(J13,2)*TRUNC(M13,6),2) -> 85400 | O13: =N13 -> 85400 | P13: 10 | Q13: =ROUND(M13,5)/ROUND(L13,5)-1 -> 0.2449 | R13: INCC | S13: =SUMIF(R12:R52,"P",N12:N52) -> 18813365.48 | T13: =S13/N53 -> 0.76605 | U13: P | AB13: 190291.53
A14: =VLOOKUP(O14,'RESUMO MODULO TOTAL'!$O$12:$P$52,2,0) -> 18 | B14: 3 | C14: Codevasf | D14: CPU-04 | E14: Canteiro de Obras e Almoxarifado | I14: und | J14: ='MC MODULO'!N20 -> 10 | K14: =$J$7 -> 0.2339 | L14: =ROUND(IF(C14="CODEVASF",VLOOKUP(D14,'CPU CODEVASF'!E:I,5,FALSE),VLOOKUP(D14,'SINTÉTICO SICRO'!A:D,4,FALSE)),6) -> 317.06 | M14: =TRUNC(IF(C14="CODEVASF",VLOOKUP(D14,'CPU CODEVASF'!E:H,4,FALSE),VLOOKUP(D14,'SINTÉTICO SICRO'!A:D,4,FALSE)*(1+$J$7)),6) -> 391.22 | N14: =TRUNC(ROUND(J14,2)*TRUNC(M14,6),2) -> 3912.2 | O14: 3912.2 | P14: 18 | Q14: =ROUND(M14,2)/ROUND(L14,2)-1 -> 0.2339 | R14: INCC | S14: =SUMIF(R12:R52,"D",N12:N52) -> 2815600 | T14: =S14/N53 -> 0.11465 | U14: D
A15: =VLOOKUP(O15,'RESUMO MODULO TOTAL'!$O$12:$P$52,2,0) -> 16 | B15: 4 | C15: Codevasf | D15: CPU-01 | E15: Placa de Obra em Chapa de Aço Galvanizado | I15: und | J15: ='MC MODULO'!N25 -> 10 | K15: =$J$7 -> 0.2339 | L15: =ROUND(IF(C15="CODEVASF",VLOOKUP(D15,'CPU CODEVASF'!E:I,5,FALSE),VLOOKUP(D15,'SINTÉTICO SICRO'!A:D,4,FALSE)),6) -> 1125.45 | M15: =TRUNC(IF(C15="CODEVASF",VLOOKUP(D15,'CPU CODEVASF'!E:H,4,FALSE),VLOOKUP(D15,'SINTÉTICO SICRO'!A:D,4,FALSE)*(1+$J$7)),6) -> 1388.69 | N15: =TRUNC(ROUND(J15,2)*TRUNC(M15,6),2) -> 13886.9 | O15: 13886.9 | P15: 16 | Q15: 0.2339 | R15: INCC | S15: =SUMIF(R12:R52,"T",N12:N52) -> 430514 | T15: =S15/N53 -> 0.01753 | U15: T | AB15: 17815.2
A16: =VLOOKUP(O16,'RESUMO MODULO TOTAL'!$O$12:$P$52,2,0) -> 21 | E16: TERRAPLANAGEM | O16: 0 | P16: 21
A17: =VLOOKUP(O17,'RESUMO MODULO TOTAL'!$O$12:$P$52,2,0) -> 12 | B17: 5 | C17: Codevasf | D17: CPU-16 | E17: Serviços topográficos para pavimentação, inclusive notas de serviços, acompanhamento e greide | I17: m² | J17: ='MC MODULO'!R32 -> 140000 | K17: =$J$7 -> 0.2339 | L17: =ROUND(IF(C17="CODEVASF",VLOOKUP(D17,'CPU CODEVASF'!E:I,5,FALSE),VLOOKUP(D17,'SINTÉTICO SICRO'!A:D,4,FALSE)),6) -> 0.38 | M17: =TRUNC(IF(C17="CODEVASF",VLOOKUP(D17,'CPU CODEVASF'!E:H,4,FALSE),VLOOKUP(D17,'SINTÉTICO SICRO'!A:D,4,FALSE)*(1+$J$7)),6) -> 0.47 | N17: =TRUNC(ROUND(J17,2)*TRUNC(M17,6),2) -> 65800 | O17: 65800 | P17: 12 | Q17: =ROUND(M17,5)/ROUND(L17,5)-1 -> 0.2368 | R17: T | AB17: 278460
A18: =VLOOKUP(O18,'RESUMO MODULO TOTAL'!$O$12:$P$52,2,0) -> 6 | B18: 6 | C18: SICRO | D18: 5502114 | E18: Escavação, carga e transporte de material de 1ª categoria - DMT de 1.000 a 1.200 m - caminho de serviço em leito natural - com escavadeira e caminhão basculante de 14 m³ | I18: m³ | J18: ='MC MODULO'!R37 -> 37800 | K18: 0.2339 | L18: =ROUND(IF(C18="CODEVASF",VLOOKUP(D18,'CPU CODEVASF'!E:I,5,FALSE),VLOOKUP(D18,'SINTÉTICO SICRO'!A:D,4,FALSE)),6) -> 7.24 | M18: =TRUNC(IF(C18="CODEVASF",VLOOKUP(D18,'CPU CODEVASF'!E:H,4,FALSE),VLOOKUP(D18,'SINTÉTICO SICRO'!A:D,4,FALSE)*(1+$J$7)),6) -> 8.93 | N18: 337554 | O18: 337554 | P18: 6 | Q18: =ROUND(M18,5)/ROUND(L18,5)-1 -> 0.2334 | R18: T | AB18: 366912
A19: =VLOOKUP(O19,'RESUMO MODULO TOTAL'!$O$12:$P$52,2,0) -> 15 | B19: 7 | C19: SICRO | D19: 4413942 | E19: Espalhamento de material em bota-fora | I19: m³ | J19: ='MC MODULO'!R44 -> 14000 | K19: 0.2339 | L19: =ROUND(IF(C19="CODEVASF",VLOOKUP(D19,'CPU CODEVASF'!E:I,5,FALSE),VLOOKUP(D19,'SINTÉTICO SICRO'!A:D,4,FALSE)),6) -> 1.57 | M19: =TRUNC(IF(C19="CODEVASF",VLOOKUP(D19,'CPU CODEVASF'!E:H,4,FALSE),VLOOKUP(D19,'SINTÉTICO SICRO'!A:D,4,FALSE)*(1+$J$7)),6) -> 1.94 | N19: 27160 | O19: 27160 | P19: 15 | Q19: =ROUND(M19,5)/ROUND(L19,5)-1 -> 0.2357 | R19: T | AB19: 84084 | AG19: 1
A20: =VLOOKUP(O20,'RESUMO MODULO TOTAL'!$O$12:$P$52,2,0) -> 21 | E20: PAVIMENTAÇÃO | O20: 0 | P20: 21 | T20: 0.3 | U20: 0.15
A21: =VLOOKUP(O21,'RESUMO MODULO TOTAL'!$O$12:$P$52,2,0) -> 1 | B21: 8 | C21: SINAPI | D21: 36170 | E21: BLOQUETE/PISO INTERTRAVADO DE CONCRETO - MODELO ONDA/16 FACES/RETANGULAR/T IJOLINHO/PAVER/HOLANDES/PARALELEPIPEDO, *22 CM X 11* CM, E = 8 CM, RESISTENCIA DE 35 MPA (NBR 9781), COR NATURAL | I21: m² | J21: =J22*'CPU SINAPI'!E8 -> 141834 | K21: =M21/L21-1 -> 0.1456 | L21: =ROUND(VLOOKUP(D21,'INSUMOS SINAPI'!A:E,5,0),6) -> 54.75 | M21: =TRUNC(VLOOKUP(D21,'INSUMOS SINAPI'!A:E,5,0)*(1+$L$7),6) -> 62.72 | N21: 8895828.48 | O21: =N21 -> 8895828.48 | P21: =_xlfn.RANK.EQ(O21,$O$12:$O$52) -> 1 | Q21: 0.1456 | R21: P
A22: =VLOOKUP(O22,'RESUMO MODULO TOTAL'!$O$12:$P$52,2,0) -> 2 | B22: 9 | C22: SINAPI | D22: ='CPU SINAPI'!B5 -> 92399 ADAPTADA | E22: ='CPU SINAPI'!C5 -> EXECUÇÃO DE VIA EM PISO INTERTRAVADO, COM BLOCO RETANGULAR COR NATURAL DE 20 X 10 CM, ESPESSURA 8 CM. AF_12/2015 - EXCLUSIVE FORNECIMENTO DE BLOQUETE | I22: m² | J22: ='MC MODULO'!R51 -> 140000 | K22: =$J$7 -> 0.2339 | L22: =ROUND('CPU SINAPI'!G15,6) -> 21.47 | M22: =TRUNC('CPU SINAPI'!G17,6) -> 26.49 | N22: 3708600 | O22: 3708600 | P22: 2 | Q22: 0.2338 | R22: P | T22: =J22*T20 -> 42000 | AB22: 13037300.31
B23: 10 | C23: SINAPI | D23: 100952 | E23: TRANSPORTE COM CAMINHÃO CARROCERIA COM GUINDAUTO (MUNCK), MOMENTO MÁXIMO DE CARGA 11,7 TM, EM VIA URBANA PAVIMENTADA, DMT ATÉ 30KM AF_07/2020 (bloquete) | I23: tkm | J23: ='MC MODULO'!R56 -> 739200 | K23: 0.2339 | L23: =VLOOKUP(D23,'COMP Sint. Sinapi'!$G$7:$K$7520,5,0) -> 2,92 | M23: =TRUNC(L23+(L23*J7),6) -> 3.6 | N23: 2661120 | R23: P
B24: 10 | C24: SINAPI | D24: 100953 | E24: TRANSPORTE COM CAMINHÃO CARROCERIA COM GUINDAUTO (MUNCK), MOMENTO MÁXIMO DE CARGA 11,7 TM, EM VIA URBANA PAVIMENTADA, ADICIONAL PARA DMT EXCEDENTE A 30 KM (UNIDADE: TXKM). AF_07/2020 (bloquete) | I24: tkm | J24: ='MC MODULO'!R62 -> 492800 | K24: 0.2339 | L24: =VLOOKUP(D24,'COMP Sint. Sinapi'!$G$7:$K$7520,5,0) -> 1,16 | M24: =TRUNC(L24+(L24*J7),6) -> 1.43 | N24: 704704 | R24: P
B25: 11 | C25: SINAPI | D25: 95879 | E25: TRANSPORTE COM CAMINHÃO BASCULANTE DE 14 M³, EM VIA URBANA PAVIMENTADA , DMT ATÉ 30 KM (UNIDADE: TXKM). AF_07/2020 (AREIA) | I25: tkm | J25: ='MC MODULO'!R68 -> 252000 | K25: 0.2339 | L25: =VLOOKUP(D25,'COMP Sint. Sinapi'!$G$7:$K$7520,5,0) -> 1,47 | M25: =TRUNC(L25+(L25*J7),6) -> 1.81 | N25: 456120 | R25: P
B26: 11 | C26: SINAPI | D26: 93599 | E26: TRANSPORTE COM CAMINHÃO BASCULANTE DE 14 M³, EM VIA URBANA PAVIMENTADA, ADICIONAL PARA DMT EXCEDENTE A 30 KM (UNIDADE: TXKM) (AREIA) | I26: tkm | J26: ='MC MODULO'!R73 -> 168000 | K26: 0.2339 | L26: =VLOOKUP(D26,'COMP Sint. Sinapi'!$G$7:$K$7520,5,0) -> 0,58 | M26: =TRUNC(L26+(L26*J7),6) -> 0.72 | N26: 120960 | R26: P
B27: 11 | C27: SINAPI | D27: 95879 | E27: TRANSPORTE COM CAMINHÃO BASCULANTE DE 14 M³, EM VIA URBANA PAVIMENTADA , DMT ATÉ 30 KM (UNIDADE: TXKM). AF_07/2020 (PÓ DE PEDRA) | I27: tkm | J27: ='MC MODULO'!R78 -> 56700 | K27: 0.2339 | L27: =VLOOKUP(D27,'COMP Sint. Sinapi'!$G$7:$K$7520,5,0) -> 1,47 | M27: =TRUNC(L27+(L27*J7),6) -> 1.81 | N27: 102627 | R27: P
B28: 11 | C28: SINAPI | D28: 93599 | E28: TRANSPORTE COM CAMINHÃO BASCULANTE DE 14 M³, EM VIA URBANA PAVIMENTADA, ADICIONAL PARA DMT EXCEDENTE A 30 KM (UNIDADE: TXKM) (PÓ DE PEDRA) | I28: tkm | J28: ='MC MODULO'!R83 -> 37800 | K28: 0.2339 | L28: =VLOOKUP(D28,'COMP Sint. Sinapi'!$G$7:$K$7520,5,0) -> 0,58 | M28: =TRUNC(L28+(L28*J7),6) -> 0.72 | N28: 27216 | R28: P
A29: =VLOOKUP(O29,'RESUMO MODULO TOTAL'!$O$12:$P$52,2,0) -> 4 | B29: 12 | C29: SICRO | D29: 4011268 | E29: Base estabilizada granulometricamente com mistura solo brita (70% - 30%) em usina com material de jazida e brita comercial | I29: m³ | J29: ='MC MODULO'!R88 -> 21000 | K29: 0.2339 | L29: =ROUND(IF(C29="CODEVASF",VLOOKUP(D29,'CPU CODEVASF'!E:I,5,FALSE),VLOOKUP(D29,'SINTÉTICO SICRO'!A:D,4,FALSE)),6) -> 75.36 | M29: =TRUNC(IF(C29="CODEVASF",VLOOKUP(D29,'CPU CODEVASF'!E:H,4,FALSE),VLOOKUP(D29,'SINTÉTICO SICRO'!A:D,4,FALSE)*(1+$J$7)),6) -> 92.99 | N29: 1952790 | O29: 1952790 | P29: 4 | Q29: 0.2339 | R29: P | T29: =J29*T20 -> 6300 | AB29: 15919722
A30: =VLOOKUP(O30,'RESUMO MODULO TOTAL'!$O$12:$P$52,2,0) -> 7 | B30: 13 | C30: SICRO | D30: 4011209 | E30: Regularização do subleito | I30: m² | J30: ='MC MODULO'!R93 -> 140000 | K30: 0.2339 | L30: =ROUND(IF(C30="CODEVASF",VLOOKUP(D30,'CPU CODEVASF'!E:I,5,FALSE),VLOOKUP(D30,'SINTÉTICO SICRO'!A:D,4,FALSE)),6) -> 1.06 | M30: =TRUNC(IF(C30="CODEVASF",VLOOKUP(D30,'CPU CODEVASF'!E:H,4,FALSE),VLOOKUP(D30,'SINTÉTICO SICRO'!A:D,4,FALSE)*(1+$J$7)),6) -> 1.31 | N30: 183400 | O30: 183400 | P30: 7 | Q30: =ROUND(M30,5)/ROUND(L30,5)-1 -> 0.2358 | R30: P | AB30: 540540
A31: =VLOOKUP(O31,'RESUMO MODULO TOTAL'!$O$12:$P$52,2,0) -> 21 | E31: SINALIZAÇÃO | O31: 0
A32: =VLOOKUP(O32,'RESUMO MODULO TOTAL'!$O$12:$P$52,2,0) -> 19 | B32: 14 | C32: SICRO | D32: 5213440 | E32: Fornecimento e implantação de placa de regulamentação em aço D = 0,60 m - película retrorrefletiva tipo I + SI | I32: und | J32: ='MC MODULO'!R100 -> 10 | K32: =$J$7 -> 0.2339 | L32: =ROUND(IF(C32="CODEVASF",VLOOKUP(D32,'CPU CODEVASF'!E:I,5,FALSE),VLOOKUP(D32,'SINTÉTICO SICRO'!A:D,4,FALSE)),6) -> 255.08 | M32: =TRUNC(IF(C32="CODEVASF",VLOOKUP(D32,'CPU CODEVASF'!E:H,4,FALSE),VLOOKUP(D32,'SINTÉTICO SICRO'!A:D,4,FALSE)*(1+$J$7)),6) -> 314.74 | N32: 3147.4 | O32: 3147.4 | P32: =_xlfn.RANK.EQ(O32,$O$12:$O$52) -> 19 | Q32: 0.2339 | R32: INCC | AB32: 9985.95
A33: =VLOOKUP(O33,'RESUMO MODULO TOTAL'!$O$12:$P$52,2,0) -> 17 | B33: 15 | C33: SICRO | D33: 5213863 | E33: Suporte metálico galvanizado para placa de advertência ou regulamentação - lado ou diâmetro de 0,60 m - fornecimento e implantação | I33: und | J33: ='MC MODULO'!R106 -> 10 | K33: 0.2339 | L33: =ROUND(IF(C33="CODEVASF",VLOOKUP(D33,'CPU CODEVASF'!E:I,5,FALSE),VLOOKUP(D33,'SINTÉTICO SICRO'!A:D,4,FALSE)),6) -> 451.59 | M33: =TRUNC(IF(C33="CODEVASF",VLOOKUP(D33,'CPU CODEVASF'!E:H,4,FALSE),VLOOKUP(D33,'SINTÉTICO SICRO'!A:D,4,FALSE)*(1+$J$7)),6) -> 557.22 | N33: 5572.2 | O33: 5572.2 | P33: =_xlfn.RANK.EQ(O33,$O$12:$O$52) -> 17 | Q33: 0.2339 | R33: INCC | AB33: 13086.06
A34: =VLOOKUP(O34,'RESUMO MODULO TOTAL'!$O$12:$P$52,2,0) -> 8 | B34: 16 | C34: SICRO | D34: 5213400 | E34: Pintura de faixa com tinta acrílica - espessura de 0,4 mm | I34: m² | J34: ='MC MODULO'!R111*2+'MC MODULO'!R116 -> 4800 | K34: 0.2339 | L34: =ROUND(IF(C34="CODEVASF",VLOOKUP(D34,'CPU CODEVASF'!E:I,5,FALSE),VLOOKUP(D34,'SINTÉTICO SICRO'!A:D,4,FALSE)),6) -> 30.79 | M34: =TRUNC(IF(C34="CODEVASF",VLOOKUP(D34,'CPU CODEVASF'!E:H,4,FALSE),VLOOKUP(D34,'SINTÉTICO SICRO'!A:D,4,FALSE)*(1+$J$7)),6) -> 37.99 | N34: 182352 | O34: 182352 | P34: =_xlfn.RANK.EQ(O34,$O$12:$O$52) -> 8 | Q34: 0.2338 | R34: INCC
A35: =VLOOKUP(O35,'RESUMO MODULO TOTAL'!$O$12:$P$52,2,0) -> 21 | E35: DRENAGEM | O35: 0
A36: =VLOOKUP(O36,'RESUMO MODULO TOTAL'!$O$12:$P$52,2,0) -> 3 | B36: 17 | C36: SICRO | D36: 2003377 | E36: Meio-fio de concreto - MFC 05 - areia e brita comerciais - fôrma de madeira | I36: m | J36: ='MC MODULO'!R123 -> 40000 | K36: =J7 -> 0.2339 | L36: 57.05 | M36: =TRUNC(IF(C36="CODEVASF",VLOOKUP(D36,'CPU CODEVASF'!E:H,4,FALSE),VLOOKUP(D36,'SINTÉTICO SICRO'!A:D,4,FALSE)*(1+$J$7)),6) -> 70.39 | N36: 2815600 | O36: 2815600 | P36: =_xlfn.RANK.EQ(O36,$O$12:$O$52) -> 3 | Q36: 0.2338 | R36: D | T36: =J36*U20 -> 6000 | AB36: 4514640
A37: =VLOOKUP(O37,'RESUMO MODULO TOTAL'!$O$12:$P$52,2,0) -> 21 | E37: SERVIÇOS COMPLEMENTARES | O37: 0 | P37: =_xlfn.RANK.EQ(O37,$O$12:$O$52) -> 21
A38: =VLOOKUP(O38,'RESUMO MODULO TOTAL'!$O$12:$P$52,2,0) -> 13 | B38: 18 | C38: Codevasf | D38: CPU-12 | E38: Conserto de quebra no ramal na rua sem pavimento com fornecimento de material hidráulico | I38: m | J38: ='MC MODULO'!R129 -> 2000 | K38: =$J$7 -> 0.2339 | L38: =ROUND(IF(C38="CODEVASF",VLOOKUP(D38,'CPU CODEVASF'!E:I,5,FALSE),VLOOKUP(D38,'SINTÉTICO SICRO'!A:D,4,FALSE)),6) -> 16.04 | M38: =TRUNC(IF(C38="CODEVASF",VLOOKUP(D38,'CPU CODEVASF'!E:H,4,FALSE),VLOOKUP(D38,'SINTÉTICO SICRO'!A:D,4,FALSE)*(1+$J$7)),6) -> 19.79 | N38: 39580 | O38: 39580 | P38: =_xlfn.RANK.EQ(O38,$O$12:$O$52) -> 13 | Q38: 0.2338 | R38: INCC | AB38: 139854
A39: =VLOOKUP(O39,'RESUMO MODULO TOTAL'!$O$12:$P$52,2,0) -> 21 | E39: PROJETO EXECUTIVO | O39: 0
A40: =VLOOKUP(O40,'RESUMO MODULO TOTAL'!$O$12:$P$52,2,0) -> 9 | B40: 19 | C40: Codevasf | D40: Composição Própria | E40: Projeto Executivo | I40: m² | J40: ='MC MODULO'!R136 -> 140000 | K40: =$J$7 -> 0.2339 | L40: =ROUND(('Projeto Executivo'!G25)/(1+$J$7),6) -> 0.74 | M40: =TRUNC('Projeto Executivo'!G25,6) -> 0.91 | N40: 127400 | O40: 127400 | P40: =_xlfn.RANK.EQ(O40,$O$12:$O$52) -> 9 | Q40: =ROUND(M40,5)/ROUND(L40,5)-1 -> 0.2297 | R40: INCC | AB40: 763671.38
A41: =VLOOKUP(O41,'RESUMO MODULO TOTAL'!$O$12:$P$52,2,0) -> 21 | E41: CONTROLE TECNOLÓGICO - OBRA | O41: 0
A42: =VLOOKUP(O42,'RESUMO MODULO TOTAL'!$O$12:$P$52,2,0) -> 11 | B42: 20 | C42: Codevasf | D42: CPU-21 | E42: Controle tecnológico - Obra | I42: m² | J42: ='MC MODULO'!R136 -> 140000 | K42: =$J$7 -> 0.2339 | L42: =ROUND(IF(C42="CODEVASF",VLOOKUP(D42,'CPU CODEVASF'!E:I,5,FALSE),VLOOKUP(D42,'SINTÉTICO SICRO'!A:D,4,FALSE)),6) -> 0.46 | M42: =TRUNC(IF(C42="CODEVASF",VLOOKUP(D42,'CPU CODEVASF'!E:H,4,FALSE),VLOOKUP(D42,'SINTÉTICO SICRO'!A:D,4,FALSE)*(1+$J$7)),6) -> 0.57 | N42: 79800 | O42: 79800 | P42: =_xlfn.RANK.EQ(O42,$O$12:$O$52) -> 11 | Q42: =ROUND(M42,5)/ROUND(L42,5)-1 -> 0.2391 | R42: INCC
A43: =VLOOKUP(O43,'RESUMO MODULO TOTAL'!$O$12:$P$52,2,0) -> 21 | E43: MOMENTO DE TRANSPORTE | O43: 0
A44: =VLOOKUP(O44,'RESUMO MODULO TOTAL'!$O$12:$P$52,2,0) -> 21 | B44: 21 | C44: SICRO | D44: 5914359 | E44: =IF(C44="CODEVASF",VLOOKUP(D44,'CPU CODEVASF'!E:H,2,FALSE),VLOOKUP(D44,'SINTÉTICO SICRO'!A:D,2,FALSE)) -> Transporte com caminhão basculante de 10 m³ - rodovia em leito natural | I44: tkm | J44: =ROUND(SUMIF('MOMENTO DE TRANSPORTE - PRINC'!A:A,'RESUMO MODULO TOTAL'!D44,'MOMENTO DE TRANSPORTE - PRINC'!K:K)+SUMIF('MOMENTO DE TRANSPORTE - AUX'!A:A,'RESUMO MODULO TOTAL'!D44,'MOMENTO DE TRANSPORTE - AUX'!J:J),2) -> 0 | K44: =$J$7 -> 0.2339 | L44: =ROUND(IF(C44="CODEVASF",VLOOKUP(D44,'CPU CODEVASF'!E:I,5,FALSE),VLOOKUP(D44,'SINTÉTICO SICRO'!A:D,4,FALSE)),6) -> 1.1 | M44: =TRUNC(IF(C44="CODEVASF",VLOOKUP(D44,'CPU CODEVASF'!E:H,4,FALSE),VLOOKUP(D44,'SINTÉTICO SICRO'!A:D,4,FALSE)*(1+$J$7)),6) -> 1.36 | N44: 0 | O44: 0 | P44: =_xlfn.RANK.EQ(O44,$O$12:$O$52) -> 21 | Q44: =ROUND(M44,5)/ROUND(L44,5)-1 -> 0.2364 | R44: INCC
A45: =VLOOKUP(O45,'RESUMO MODULO TOTAL'!$O$12:$P$52,2,0) -> 21 | B45: 22 | C45: SICRO | D45: 5914374 | E45: =IF(C45="CODEVASF",VLOOKUP(D45,'CPU CODEVASF'!E:H,2,FALSE),VLOOKUP(D45,'SINTÉTICO SICRO'!A:D,2,FALSE)) -> Transporte com caminhão basculante de 10 m³ - rodovia em revestimento primário | I45: tkm | J45: =ROUND(SUMIF('MOMENTO DE TRANSPORTE - PRINC'!A:A,'RESUMO MODULO TOTAL'!D45,'MOMENTO DE TRANSPORTE - PRINC'!K:K)+SUMIF('MOMENTO DE TRANSPORTE - AUX'!A:A,'RESUMO MODULO TOTAL'!D45,'MOMENTO DE TRANSPORTE - AUX'!J:J),2) -> 0 | K45: 0.2339 | L45: =ROUND(IF(C45="CODEVASF",VLOOKUP(D45,'CPU CODEVASF'!E:I,5,FALSE),VLOOKUP(D45,'SINTÉTICO SICRO'!A:D,4,FALSE)),6) -> 0.88 | M45: =TRUNC(IF(C45="CODEVASF",VLOOKUP(D45,'CPU CODEVASF'!E:H,4,FALSE),VLOOKUP(D45,'SINTÉTICO SICRO'!A:D,4,FALSE)*(1+$J$7)),6) -> 1.09 | N45: 0 | O45: 0 | P45: 21 | Q45: =ROUND(M45,5)/ROUND(L45,5)-1 -> 0.2386 | R45: INCC
A46: =VLOOKUP(O46,'RESUMO MODULO TOTAL'!$O$12:$P$52,2,0) -> 5 | B46: 23 | C46: SICRO | D46: 5914389 | E46: =IF(C46="CODEVASF",VLOOKUP(D46,'CPU CODEVASF'!E:H,2,FALSE),VLOOKUP(D46,'SINTÉTICO SICRO'!A:D,2,FALSE)) -> Transporte com caminhão basculante de 10 m³ - rodovia pavimentada | I46: tkm | J46: =ROUND(SUMIF('MOMENTO DE TRANSPORTE - PRINC'!A:A,'RESUMO MODULO TOTAL'!D46,'MOMENTO DE TRANSPORTE - PRINC'!K:K)+SUMIF('MOMENTO DE TRANSPORTE - AUX'!A:A,'RESUMO MODULO TOTAL'!D46,'MOMENTO DE TRANSPORTE - AUX'!J:J),2)-921 -> 2165379 | K46: 0.2339 | L46: =ROUND(IF(C46="CODEVASF",VLOOKUP(D46,'CPU CODEVASF'!E:I,5,FALSE),VLOOKUP(D46,'SINTÉTICO SICRO'!A:D,4,FALSE)),6) -> 0.72 | M46: =TRUNC(IF(C46="CODEVASF",VLOOKUP(D46,'CPU CODEVASF'!E:H,4,FALSE),VLOOKUP(D46,'SINTÉTICO SICRO'!A:D,4,FALSE)*(1+$J$7)),6) -> 0.89 | N46: 1927187.31 | O46: 1927187.31 | P46: 5 | Q46: 0.2361 | R46: INCC
A47: =VLOOKUP(O47,'RESUMO MODULO TOTAL'!$O$12:$P$52,2,0) -> 21 | B47: 24 | C47: SICRO | D47: 5914449 | E47: =IF(C47="CODEVASF",VLOOKUP(D47,'CPU CODEVASF'!E:H,2,FALSE),VLOOKUP(D47,'SINTÉTICO SICRO'!A:D,2,FALSE)) -> Transporte com caminhão carroceria de 15 t - rodovia em leito natural | I47: tkm | J47: =ROUND(SUMIF('MOMENTO DE TRANSPORTE - PRINC'!A:A,'RESUMO MODULO TOTAL'!D47,'MOMENTO DE TRANSPORTE - PRINC'!K:K)+SUMIF('MOMENTO DE TRANSPORTE - AUX'!A:A,'RESUMO MODULO TOTAL'!D47,'MOMENTO DE TRANSPORTE - AUX'!J:J),2) -> 0 | K47: 0.2339 | L47: =ROUND(IF(C47="CODEVASF",VLOOKUP(D47,'CPU CODEVASF'!E:I,5,FALSE),VLOOKUP(D47,'SINTÉTICO SICRO'!A:D,4,FALSE)),6) -> 1.01 | M47: =TRUNC(IF(C47="CODEVASF",VLOOKUP(D47,'CPU CODEVASF'!E:H,4,FALSE),VLOOKUP(D47,'SINTÉTICO SICRO'!A:D,4,FALSE)*(1+$J$7)),6) -> 1.25 | N47: 0 | O47: 0 | P47: 21 | Q47: 0.2376 | R47: INCC
A48: =VLOOKUP(O48,'RESUMO MODULO TOTAL'!$O$12:$P$52,2,0) -> 21 | B48: 25 | C48: SICRO | D48: 5914464 | E48: =IF(C48="CODEVASF",VLOOKUP(D48,'CPU CODEVASF'!E:H,2,FALSE),VLOOKUP(D48,'SINTÉTICO SICRO'!A:D,2,FALSE)) -> Transporte com caminhão carroceria de 15 t - rodovia em revestimento primário | I48: tkm | J48: =ROUND(SUMIF('MOMENTO DE TRANSPORTE - PRINC'!A:A,'RESUMO MODULO TOTAL'!D48,'MOMENTO DE TRANSPORTE - PRINC'!K:K)+SUMIF('MOMENTO DE TRANSPORTE - AUX'!A:A,'RESUMO MODULO TOTAL'!D48,'MOMENTO DE TRANSPORTE - AUX'!J:J),2) -> 0 | K48: 0.2339 | L48: =ROUND(IF(C48="CODEVASF",VLOOKUP(D48,'CPU CODEVASF'!E:I,5,FALSE),VLOOKUP(D48,'SINTÉTICO SICRO'!A:D,4,FALSE)),6) -> 0.81 | M48: =TRUNC(IF(C48="CODEVASF",VLOOKUP(D48,'CPU CODEVASF'!E:H,4,FALSE),VLOOKUP(D48,'SINTÉTICO SICRO'!A:D,4,FALSE)*(1+$J$7)),6) -> 1 | N48: 0 | O48: 0 | P48: 21 | Q48: 0.2346 | R48: INCC
A49: =VLOOKUP(O49,'RESUMO MODULO TOTAL'!$O$12:$P$52,2,0) -> 20 | B49: 26 | C49: SICRO | D49: 5914479 | E49: =IF(C49="CODEVASF",VLOOKUP(D49,'CPU CODEVASF'!E:H,2,FALSE),VLOOKUP(D49,'SINTÉTICO SICRO'!A:D,2,FALSE)) -> Transporte com caminhão carroceria de 15 t - rodovia pavimentada | I49: tkm | J49: =ROUND(SUMIF('MOMENTO DE TRANSPORTE - PRINC'!A:A,'RESUMO MODULO TOTAL'!D49,'MOMENTO DE TRANSPORTE - PRINC'!K:K)+SUMIF('MOMENTO DE TRANSPORTE - AUX'!A:A,'RESUMO MODULO TOTAL'!D49,'MOMENTO DE TRANSPORTE - AUX'!J:J),2) -> 350 | K49: 0.2339 | L49: =ROUND(IF(C49="CODEVASF",VLOOKUP(D49,'CPU CODEVASF'!E:I,5,FALSE),VLOOKUP(D49,'SINTÉTICO SICRO'!A:D,4,FALSE)),6) -> 0.66 | M49: =TRUNC(IF(C49="CODEVASF",VLOOKUP(D49,'CPU CODEVASF'!E:H,4,FALSE),VLOOKUP(D49,'SINTÉTICO SICRO'!A:D,4,FALSE)*(1+$J$7)),6) -> 0.81 | N49: 283.5 | O49: 283.5 | P49: 20 | Q49: 0.2273 | R49: INCC
A50: =VLOOKUP(O50,'RESUMO MODULO TOTAL'!$O$12:$P$52,2,0) -> 21 | B50: 27 | C50: SICRO | D50: 5914364 | E50: =IF(C50="CODEVASF",VLOOKUP(D50,'CPU CODEVASF'!E:H,2,FALSE),VLOOKUP(D50,'SINTÉTICO SICRO'!A:D,2,FALSE)) -> Transporte de cimento ou cal hidratada a granel com caminhão silo de 30 m³ - rodovia em leito natural | I50: tkm | J50: =ROUND(SUMIF('MOMENTO DE TRANSPORTE - PRINC'!A:A,'RESUMO MODULO TOTAL'!D50,'MOMENTO DE TRANSPORTE - PRINC'!K:K)+SUMIF('MOMENTO DE TRANSPORTE - AUX'!A:A,'RESUMO MODULO TOTAL'!D50,'MOMENTO DE TRANSPORTE - AUX'!J:J),2) -> 0 | K50: 0.2339 | L50: =ROUND(IF(C50="CODEVASF",VLOOKUP(D50,'CPU CODEVASF'!E:I,5,FALSE),VLOOKUP(D50,'SINTÉTICO SICRO'!A:D,4,FALSE)),6) -> 0.81 | M50: =TRUNC(IF(C50="CODEVASF",VLOOKUP(D50,'CPU CODEVASF'!E:H,4,FALSE),VLOOKUP(D50,'SINTÉTICO SICRO'!A:D,4,FALSE)*(1+$J$7)),6) -> 1 | N50: 0 | O50: 0 | P50: 21 | Q50: 0.2346 | R50: INCC
A51: =VLOOKUP(O51,'RESUMO MODULO TOTAL'!$O$12:$P$52,2,0) -> 21 | B51: 28 | C51: SICRO | D51: 5914365 | E51: =IF(C51="CODEVASF",VLOOKUP(D51,'CPU CODEVASF'!E:H,2,FALSE),VLOOKUP(D51,'SINTÉTICO SICRO'!A:D,2,FALSE)) -> Transporte de cimento ou cal hidratada a granel com caminhão silo de 30 m³ - rodovia em revestimento primário | I51: tkm | J51: =ROUND(SUMIF('MOMENTO DE TRANSPORTE - PRINC'!A:A,'RESUMO MODULO TOTAL'!D51,'MOMENTO DE TRANSPORTE - PRINC'!K:K)+SUMIF('MOMENTO DE TRANSPORTE - AUX'!A:A,'RESUMO MODULO TOTAL'!D51,'MOMENTO DE TRANSPORTE - AUX'!J:J),2) -> 0 | K51: 0.2339 | L51: =ROUND(IF(C51="CODEVASF",VLOOKUP(D51,'CPU CODEVASF'!E:I,5,FALSE),VLOOKUP(D51,'SINTÉTICO SICRO'!A:D,4,FALSE)),6) -> 0.64 | M51: =TRUNC(IF(C51="CODEVASF",VLOOKUP(D51,'CPU CODEVASF'!E:H,4,FALSE),VLOOKUP(D51,'SINTÉTICO SICRO'!A:D,4,FALSE)*(1+$J$7)),6) -> 0.79 | N51: 0 | O51: 0 | P51: 21 | Q51: 0.2344 | R51: INCC
A52: =VLOOKUP(O52,'RESUMO MODULO TOTAL'!$O$12:$P$52,2,0) -> 21 | B52: 29 | C52: SICRO | D52: 5914366 | E52: =IF(C52="CODEVASF",VLOOKUP(D52,'CPU CODEVASF'!E:H,2,FALSE),VLOOKUP(D52,'SINTÉTICO SICRO'!A:D,2,FALSE)) -> Transporte de cimento ou cal hidratada a granel com caminhão silo de 30 m³ - rodovia pavimentada | I52: tkm | J52: =ROUND(SUMIF('MOMENTO DE TRANSPORTE - PRINC'!A:A,'RESUMO MODULO TOTAL'!D52,'MOMENTO DE TRANSPORTE - PRINC'!K:K)+SUMIF('MOMENTO DE TRANSPORTE - AUX'!A:A,'RESUMO MODULO TOTAL'!D52,'MOMENTO DE TRANSPORTE - AUX'!J:J),2) -> 0 | K52: 0.2339 | L52: =ROUND(IF(C52="CODEVASF",VLOOKUP(D52,'CPU CODEVASF'!E:I,5,FALSE),VLOOKUP(D52,'SINTÉTICO SICRO'!A:D,4,FALSE)),6) -> 0.53 | M52: =TRUNC(IF(C52="CODEVASF",VLOOKUP(D52,'CPU CODEVASF'!E:H,4,FALSE),VLOOKUP(D52,'SINTÉTICO SICRO'!A:D,4,FALSE)*(1+$J$7)),6) -> 0.65 | N52: =TRUNC(ROUND(J52,2)*TRUNC(M52,6),2) -> 0 | O52: 0 | P52: 21 | Q52: 0.2264 | R52: INCC
B53: VALOR TOTAL DO SRP | N53: =INT(SUM(N12:N52)) -> 24558800 | AB53: =SUM(AB12:AB40) -> 35933525.9
B54: Obs.: Os valores estão apresentados com apenas 2 casas decimais, mas os valores da presente planilha foram calculados utilizando a precisão de 6 casa decimais. | O54: =J12*178.55 -> 24997000
O55: =O54/2 -> 12498500
N56: =N53/N7 -> 140000
M58: =178.4*28000 -> 4995200
M62: =140000*178.4 -> 24976000

Sheet CRONOGRAMA TOTAL
A2: ='RESUMO MODULO TOTAL'!B1 -> EXECUÇÃO DE SERVIÇOS DE IMPLANTAÇÃO DE PAVIMENTAÇÃO EM BLOCO DE CONCRETO INTERTRAVADO, EM VIAS DE MUNICÍPIOS INSERIDOS NA ÁREA DE ATUAÇÃO DA CODEVASF - 15ª/SR.
A3: Cronograma Físico e Financeiro
A4: Item | B4: Descrição | C4: Total Por Etapa | D4: 30 DIAS | E4: 60 DIAS | F4: 90 DIAS | G4: 120 DIAS | H4: 150 DIAS | I4: 180 DIAS | J4: 210 DIAS | K4: 240 DIAS | L4: 270 DIAS | M4: 300 DIAS | N4: 330 DIAS | O4: 360 DIAS
B5: ='RESUMO MODULO TOTAL'!E11 -> MOBILIZAÇÃO | C5: 1 | F5: =$C$5/10 -> 0.1 | G5: =$C$5/10 -> 0.1 | H5: 0.1 | I5: 0.1 | J5: 0.1 | K5: 0.1 | L5: 0.1 | M5: 0.1 | N5: 0.1 | O5: 0.1 | Q5: =SUM(D5:O5) -> 1
C6: =SUM('RESUMO MODULO TOTAL'!N12:N15) -> 133999.1 | F6: =$C$6*F5 -> 13399.91 | G6: 13399.91 | H6: 13399.91 | I6: 13399.91 | J6: 13399.91 | K6: 13399.91 | L6: 13399.91 | M6: 13399.91 | N6: 13399.91 | O6: 13399.91 | Q6: =SUM(D6:O6) -> 133999.1 | R6: =C6 -> 133999.1 | S6: =Q6-R6 -> 0
B7: ='RESUMO MODULO TOTAL'!E16 -> TERRAPLANAGEM | C7: 1 | F7: 0.1667 | G7: 0.1667 | H7: 0.1667 | I7: 0.1667 | J7: 0.1667 | K7: =16.67%-0.0002 -> 0.1665 | Q7: =SUM(F7:O7) -> 1
C8: =SUM('RESUMO MODULO TOTAL'!N17:N19) -> 430514 | F8: =$C$8*F7 -> 71766.68 | G8: =$C$8*G7 -> 71766.68 | H8: 71766.68 | I8: 71766.68 | J8: 71766.68 | K8: 71680.58 | Q8: 430513.98 | R8: =C8 -> 430514 | S8: =Q8-R8 -> -0.02
B9: ='RESUMO MODULO TOTAL'!E20 -> PAVIMENTAÇÃO | C9: 1 | I9: 0.1429 | J9: 0.1429 | K9: 0.1429 | L9: 0.1429 | M9: 0.1429 | N9: 0.1429 | O9: =14.29%-0.0003 -> 0.1426 | Q9: =SUM(F9:O9) -> 1
C10: =SUM('RESUMO MODULO TOTAL'!N22:N30) -> 9917537 | I10: =$C$10*I9 -> 1417216.04 | J10: 1417216.04 | K10: 1417216.04 | L10: 1417216.04 | M10: 1417216.04 | N10: 1417216.04 | O10: 1414240.78 | Q10: 9917537.02 | R10: =C10 -> 9917537 | S10: =Q10-R10 -> 0.02
B11: ='RESUMO MODULO TOTAL'!E31 -> SINALIZAÇÃO | C11: 1 | N11: 0.5 | O11: 0.5 | Q11: 1
C12: =SUM('RESUMO MODULO TOTAL'!N32:N34) -> 191071.6 | N12: =$C$12*N11 -> 95535.8 | O12: 95535.8 | Q12: 191071.6 | R12: =C12 -> 191071.6 | S12: 0
B13: ='RESUMO MODULO TOTAL'!E35 -> DRENAGEM | C13: 1 | N13: 0.5 | O13: 0.5 | Q13: =SUM(D13:O13) -> 1
C14: ='RESUMO MODULO TOTAL'!N36 -> 2815600 | N14: =$C$14*N13 -> 1407800 | O14: 1407800 | Q14: 2815600 | R14: =C14 -> 2815600 | S14: 0
B15: ='RESUMO MODULO TOTAL'!E37 -> SERVIÇOS COMPLEMENTARES | C15: 1 | F15: 0.1 | G15: 0.1 | H15: 0.1 | I15: 0.1 | J15: 0.1 | K15: 0.1 | L15: 0.1 | M15: 0.1 | N15: 0.1 | O15: 0.1 | Q15: =SUM(D15:O15) -> 1
C16: =SUM('RESUMO MODULO TOTAL'!N38) -> 39580 | F16: =$C$16*F15 -> 3958 | G16: =$C$16*G15 -> 3958 | H16: 3958 | I16: 3958 | J16: 3958 | K16: 3958 | L16: 3958 | M16: 3958 | N16: 3958 | O16: 3958 | Q16: 39580 | R16: =C16 -> 39580 | S16: =Q16-R16 -> 0
B17: ='RESUMO MODULO TOTAL'!E39 -> PROJETO EXECUTIVO | C17: 1 | D17: 0.5 | E17: 0.5 | Q17: 1
C18: =SUM('RESUMO MODULO TOTAL'!N40) -> 127400 | D18: =$C$18*D17 -> 63700 | E18: =$C$18*E17 -> 63700 | Q18: 127400 | R18: =C18 -> 127400 | S18: =Q18-R18 -> 0
B19: ='RESUMO MODULO TOTAL'!E41 -> CONTROLE TECNOLÓGICO - OBRA | C19: 1 | D19: 0.0834 | E19: 0.0834 | F19: 0.0834 | G19: 0.0834 | H19: 0.0834 | I19: 0.0834 | J19: 0.0834 | K19: 0.0834 | L19: 0.0834 | M19: 0.0834 | N19: 0.0834 | O19: =8.34%-0.0008 -> 0.0826 | Q19: =SUM(D19:O19) -> 1
C20: =SUM('RESUMO MODULO TOTAL'!N42) -> 79800 | D20: =$C$20*D19 -> 6655.32 | E20: 6655.32 | F20: 6655.32 | G20: 6655.32 | H20: 6655.32 | I20: 6655.32 | J20: 6655.32 | K20: 6655.32 | L20: 6655.32 | M20: 6655.32 | N20: 6655.32 | O20: 6591.48 | Q20: 79800 | R20: =C20 -> 79800 | S20: =Q20-R20 -> 0
B21: ='RESUMO MODULO TOTAL'!E43 -> MOMENTO DE TRANSPORTE | C21: 1 | F21: 0.1 | G21: 0.1 | H21: 0.1 | I21: 0.1 | J21: 0.1 | K21: 0.1 | L21: 0.1 | M21: 0.1 | N21: 0.1 | O21: 0.1 | Q21: =SUM(D21:O21) -> 1
C22: =SUM('RESUMO MODULO TOTAL'!N44:N52) -> 1927470.81 | F22: =$C$22*F21 -> 192747.08 | G22: =$C$22*G21 -> 192747.08 | H22: 192747.08 | I22: 192747.08 | J22: 192747.08 | K22: 192747.08 | L22: 192747.08 | M22: 192747.08 | N22: 192747.08 | O22: 192747.08 | Q22: 1927470.8 | R22: =C22 -> 1927470.81 | S22: =Q22-R22 -> -0.01
A24: Porcentagem | D24: =SUM(D6+D10+D12+D14+D22+D8+D16+D18+D20)/$O$29 -> 0.0029 | E24: =SUM(E6+E10+E12+E14+E22+E8+E16+E18+E20)/$O$29 -> 0.0029 | F24: 0.0117 | G24: 0.0117 | H24: 0.0117 | I24: 0.0695 | J24: 0.0695 | K24: 0.0695 | L24: 0.0665 | M24: 0.0665 | N24: 0.1277 | O24: 0.1276
A25: Custo | D25: =$O$29*D24 -> 71220.52 | E25: =$O$29*E24 -> 71220.52 | F25: =$O$29*F24 -> 287337.96 | G25: 287337.96 | H25: 287337.96 | I25: 1706836.6 | J25: 1706836.6 | K25: 1706836.6 | L25: 1633160.2 | M25: 1633160.2 | N25: 3136158.76 | O25: 3133702.88
A26: Porcentagem Acumulado | D26: =D24 -> 0.0029 | E26: =D26+E24 -> 0.0058 | F26: =E26+F24 -> 0.0175 | G26: 0.0292 | H26: 0.0409 | I26: 0.1104 | J26: 0.1799 | K26: 0.2494 | L26: 0.3159 | M26: 0.3824 | N26: 0.5101 | O26: 0.6377
A27: Custo Acumulado | D27: =D25 -> 71220.52 | E27: =D27+E25 -> 142441.04 | F27: 429779 | G27: 717116.96 | H27: 1004454.92 | I27: 2711291.52 | J27: 4418128.12 | K27: 6124964.72 | L27: 7758124.92 | M27: 9391285.12 | N27: 12527443.88 | O27: =N27+O25 -> 15661146.76
D29: Total Geral | N29: R$ | O29: ='RESUMO MODULO TOTAL'!$N$53 -> 24558800

Sheet CPU SINAPI
A1: SINAPI - SISTEMA NACIONAL DE PESQUISA DE CUSTOS E ÍNDICES DA CONSTRUÇÃO CIVIL | F1: PE
A2: PCI.818.01 - COMPOSIÇÕES ATIVAS ANALÍTICAS COM CUSTO | C2: ABRANGENCIA: NACIONAL DATA DE PREÇO : 9/2023 DATA REFERENCIA TECNICA: 13/8/2021
A3: * Composições constantes nos Relatórios publicados de Composições Analíticas para as 27 Unidades da Federação
A4: MACROCLASSE.CLASSE.GRUPO | B4: CÓDIGOS | C4: DESCRIÇÃO | D4: UNIDADE | E4: COEFICIENTE | F4: PREÇO UNITÁRIO | G4: PREÇO TOTAL
A5: 03.PAVI.INTE.004/001 | B5: 92399 ADAPTADA | C5: EXECUÇÃO DE VIA EM PISO INTERTRAVADO, COM BLOCO RETANGULAR COR NATURAL DE 20 X 10 CM, ESPESSURA 8 CM. AF_12/2015 - EXCLUSIVE FORNECIMENTO DE BLOQUETE | D5: M2 | F5: Pavimento Intertravado | G5: =G17 -> 26.49
A6: INSUMO | B6: 370 | C6: AREIA MEDIA - POSTO JAZIDA/FORNECEDOR (RETIRADO NA JAZIDA, SEM TRANSPORTE) | D6: M3 | E6: 0.0568 | F6: =VLOOKUP($B6,'INSUMOS SINAPI'!A8:E5204,5,0) -> 130,00 | G6: =TRUNC(TRUNC(E6,5)*TRUNC(F6,2),2) -> 7.38 | H6: 7.38
A7: INSUMO | B7: 4741 | C7: PO DE PEDRA (POSTO PEDREIRA/FORNECEDOR, SEM FRETE) | D7: M3 | E7: 0.0087 | F7: =VLOOKUP($B7,'INSUMOS SINAPI'!A10:E5206,5,0) -> 98,69 | G7: =TRUNC(TRUNC(E7,5)*TRUNC(F7,2),2) -> 0.85 | H7: 0.86
A8: INSUMO | B8: 36170 | C8: BLOQUETE/PISO INTERTRAVADO DE CONCRETO - MODELO ONDA/16 FACES/RETANGULAR/T IJOLINHO/PAVER/HOLANDES/PARALELEPIPEDO, *22 CM X 11* CM, E = 8 CM, RESISTENCIA DE 35 MPA (NBR 9781), COR NATURAL | D8: M2 | E8: 1.0131 | F8: 0 | G8: =ROUND(ROUND(E8,5)*ROUND(F8,2),2) -> 0
A9: COMPOSICAO | B9: 88260 | C9: CALCETEIRO COM ENCARGOS COMPLEMENTARES | D9: H | E9: 0.2703 | F9: =VLOOKUP(B9,'COMP Sint. Sinapi'!G7:K7322,5,0) -> 26,31 | G9: =TRUNC(TRUNC(E9,5)*TRUNC(F9,2),2) -> 7.11 | H9: 7.11
A10: COMPOSICAO | B10: 88316 | C10: SERVENTE COM ENCARGOS COMPLEMENTARES | D10: H | E10: 0.2703 | F10: =VLOOKUP(B10,'COMP Sint. Sinapi'!G8:K7323,5,0) -> 21,28 | G10: 5.75 | H10: 5.75
A11: COMPOSICAO | B11: 91277 | C11: PLACA VIBRATÓRIA REVERSÍVEL COM MOTOR 4 TEMPOS A GASOLINA, FORÇA CENTRÍFUG A DE 25 KN (2500 KGF), POTÊNCIA 5,5 CV - CHP DIURNO. AF_08/2015 | D11: CHP | E11: 0.0055 | F11: =VLOOKUP(B11,'COMP Sint. Sinapi'!G9:K7324,5,0) -> 9,94 | G11: 0.05 | H11: 0.05
A12: COMPOSICAO | B12: 91278 | C12: PLACA VIBRATÓRIA REVERSÍVEL COM MOTOR 4 TEMPOS A GASOLINA, FORÇA CENTRÍFUG A DE 25 KN (2500 KGF), POTÊNCIA 5,5 CV - CHI DIURNO. AF_08/2015 | D12: CHI | E12: 0.1297 | F12: =VLOOKUP(B12,'COMP Sint. Sinapi'!G10:K7325,5,0) -> 0,69 | G12: 0.08 | H12: 0.09
A13: COMPOSICAO | B13: 91283 | C13: CORTADORA DE PISO COM MOTOR 4 TEMPOS A GASOLINA, POTÊNCIA DE 13 HP, COM DISCO DE CORTE DIAMANTADO SEGMENTADO PARA CONCRETO, DIÂMETRO DE 350 MM, FURO DE 1" (14 X 1") - CHP DIURNO. AF_08/2015 | D13: CHP | E13: 0.0135 | F13: =VLOOKUP(B13,'COMP Sint. Sinapi'!G11:K7326,5,0) -> 10,49 | G13: 0.14 | H13: 0.14
A14: COMPOSICAO | B14: 91285 | C14: CORTADORA DE PISO COM MOTOR 4 TEMPOS A GASOLINA, POTÊNCIA DE 13 HP, COM DISCO DE CORTE DIAMANTADO SEGMENTADO PARA CONCRETO, DIÂMETRO DE 350 MM, FURO DE 1" (14 X 1") - CHI DIURNO. AF_08/2015 | D14: CHI | E14: 0.1217 | F14: =VLOOKUP(B14,'COMP Sint. Sinapi'!G12:K7327,5,0) -> 0,92 | G14: 0.11 | H14: 0.11
D15: Sub total: | G15: =SUM(G6:G14) -> 21.47
F16: BDI | G16: =BDI!C17 -> 0.2339
D17: Total Serviços: | G17: =ROUND(ROUND(G15,2)*ROUND(1+G16,4),2) -> 26.49 | H17: 26.52
A19: Conforme solicitação da SR do Ceará trocamos a composição

Sheet CPU CODEVASF
A4: ='RESUMO MODULO TOTAL'!B1 -> EXECUÇÃO DE SERVIÇOS DE IMPLANTAÇÃO DE PAVIMENTAÇÃO EM BLOCO DE CONCRETO INTERTRAVADO, EM VIAS DE MUNICÍPIOS INSERIDOS NA ÁREA DE ATUAÇÃO DA CODEVASF - 15ª/SR.
E5: BDI %: | G5: =BDI!$C$17 -> 0.2339
E6: Encargos Sociais: | G6: Horista | H6: Mensalista
G7: 1.1455 | H7: 0.7011
A8: COMPOSIÇÕES DE CUSTO UNITARIO
A9: CPU-01 | B9: CODEVASF | C9: 74209/1 | D9: PLACA DE OBRA EM CHAPA DE ACO GALVANIZADO | E9: und | F9: COEF. | G9: PRECO UNITÁRIO (R$) | H9: TOTAL (R$)
A11: INS. SINAPI | B11: SINAPI | C11: 5075 | D11: PREGO 18X30. | E11: kg | F11: 0.11 | G11: =IFERROR(VLOOKUP(C11,'INSUMOS SINAPI'!A:E,5,FALSE),VLOOKUP(C11,'COMP Sint. Sinapi'!G:K,5,FALSE)) -> 18,31 | H11: =TRUNC(F11*G11,2) -> 2.01
A12: INS. SINAPI | B12: SINAPI | C12: 4491 | D12: PECA DE MADEIRA NATIVA / REGIONAL 7,5 X 7,5CM (3X3) NAO APARELHADA (P/FORMA) | E12: m | F12: 4 | G12: =IFERROR(VLOOKUP(C12,'INSUMOS SINAPI'!A:E,5,FALSE),VLOOKUP(C12,'COMP Sint. Sinapi'!G:K,5,FALSE)) -> 10,58 | H12: 42.32
A13: INS. SINAPI | B13: SINAPI | C13: 4417 | D13: PECA DE MADEIRA DE LEI *2,5 X 7,5* CM (1" X 3"), NÃO APARELHADA, (P/TELHADO) | E13: m | F13: 1 | G13: =IFERROR(VLOOKUP(C13,'INSUMOS SINAPI'!A:E,5,FALSE),VLOOKUP(C13,'COMP Sint. Sinapi'!G:K,5,FALSE)) -> 8,43 | H13: 8.43
A14: INS. SINAPI | B14: SINAPI | C14: 4813 | D14: PLACA DE OBRA (PARA CONSTRUCAO CIVIL) EM CHAPA GALVANIZADA *Nº 22*, DE *2,0 X 1,125* M | E14: m² | F14: 4 | G14: =IFERROR(VLOOKUP(C14,'INSUMOS SINAPI'!A:E,5,FALSE),VLOOKUP(C14,'COMP Sint. Sinapi'!G:K,5,FALSE)) -> 250,00 | H14: 1000
A15: INS. SINAPI | B15: SINAPI | C15: 370 | D15: AREIA MÉDIA | E15: m³ | F15: 0.0049 | G15: =IFERROR(VLOOKUP(C15,'INSUMOS SINAPI'!A:E,5,FALSE),VLOOKUP(C15,'COMP Sint. Sinapi'!G:K,5,FALSE)) -> 130,00 | H15: 0.63
A16: INS. SINAPI | B16: SINAPI | C16: 1379 | D16: CIMENTO PORTLAND COMPOSTO CP II-32 | E16: kg | F16: 1.5 | G16: =IFERROR(VLOOKUP(C16,'INSUMOS SINAPI'!A:E,5,FALSE),VLOOKUP(C16,'COMP Sint. Sinapi'!G:K,5,FALSE)) -> 0,70 | H16: 1.05
A17: INS. SINAPI | B17: SINAPI | C17: 4718 | D17: PEDRA BRITADA Nº 2 | E17: m³ | F17: 0.0098 | G17: =IFERROR(VLOOKUP(C17,'INSUMOS SINAPI'!A:E,5,FALSE),VLOOKUP(C17,'COMP Sint. Sinapi'!G:K,5,FALSE)) -> 105,03 | H17: 1.02
A18: COMP. SINAPI | B18: SINAPI | C18: 87445 | D18: BETONEIRA CAPACIDADE NOMINAL 400 L, CAPACIDADE DE MISTURA 310 L, MOTOR A DIESEL POTÊNCIA 5,0 HP, SEM CARREGADOR MECANICO (LOCACAO) | E18: h | F18: 0.0065 | G18: =IFERROR(VLOOKUP(C18,'INSUMOS SINAPI'!A:E,5,FALSE),VLOOKUP(C18,'COMP Sint. Sinapi'!G:K,5,FALSE)) -> 5,64 | H18: 0.03
A19: COMP. SINAPI | B19: SINAPI | C19: 88262 | D19: CARPINTEIRO DE FORMAS COM ENCARGOS COMPLEMENTARES | E19: h | F19: 1 | G19: =IFERROR(VLOOKUP(C19,'INSUMOS SINAPI'!A:E,5,FALSE),VLOOKUP(C19,'COMP Sint. Sinapi'!G:K,5,FALSE)) -> 26,13 | H19: 26.13
A20: COMP. SINAPI | B20: SINAPI | C20: 88316 | D20: SERVENTE COM ENCARGOS COMPLEMENTARES | E20: h | F20: 2.06 | G20: =IFERROR(VLOOKUP(C20,'INSUMOS SINAPI'!A:E,5,FALSE),VLOOKUP(C20,'COMP Sint. Sinapi'!G:K,5,FALSE)) -> 21,28 | H20: 43.83
E21: Sub total: | H21: =SUM(H11:H20) -> 1125.45
F22: BDI | G22: =BDI!$C$17 -> 0.2339 | H22: =H21*G22 -> 263.243
G23: Total Serviços: | H23: =H21+H22 -> 1388.693
E24: =A9 -> CPU-01 | F24: PREÇO UNITÁRIO TOTAL: | H24: =H23 -> 1388.69 | I24: =H21 -> 1125.45 | J24: 1388.74
A26: CPU-02 | B26: CODEVASF | C26: Propria | D26: MOBILIZAÇÃO E DESMOBILIZAÇÃO | E26: m2 | F26: COEF. | G26: PRECO UNITÁRIO (R$) | H26: TOTAL (R$)
A28: COMP. SINAPI | B28: SINAPI | C28: 73340 | D28: CAMINHÃO TOCO, PBT 14.300 KG, CARGA ÚTIL MÁX. 9.710 KG, DIST. ENTRE EIXOS 3,56 M, POTÊNCIA 185 CV, INCLUSIVE CARROCERIA FIXA ABERTA DE MADEIRA P/ TR ANSPORTE GERAL DE CARGA SECA, DIMEN. APROX. 2,50 X 6,50 X 0,50 M - MATERIA IS NA OPERAÇÃO. AF_06/2014 | E28: H | F28: 2 | G28: =IFERROR(VLOOKUP(C28,'INSUMOS SINAPI'!A:E,5,FALSE),VLOOKUP(C28,'COMP Sint. Sinapi'!G:K,5,FALSE)) -> 162,72 | H28: =TRUNC(F28*G28,2) -> 325.44
A29: COMP. SINAPI | B29: SINAPI | C29: 67826 | D29: CAMINHÃO BASCULANTE 6 M3 TOCO, PESO BRUTO TOTAL 16.000 KG, CARGA ÚTIL MÁXI CHP MA 11.130 KG, DISTÂNCIA ENTRE EIXOS 5,36 M, POTÊNCIA 185 CV, INCLUSIVE CAÇAMBA METÁLICA - CHP DIURNO. AF_06/2014 | E29: CHP | F29: 2 | G29: =IFERROR(VLOOKUP(C29,'INSUMOS SINAPI'!A:E,5,FALSE),VLOOKUP(C29,'COMP Sint. Sinapi'!G:K,5,FALSE)) -> 191,75 | H29: =TRUNC(F29*G29,2) -> 383.5
A30: COMP. SINAPI | B30: SINAPI | C30: 6259 | D30: CAMINHÃO PIPA 6.000 L, PESO BRUTO TOTAL 13.000 KG, DISTÂNCIA ENTRE EIXOS 4 CHP ,80 M, POTÊNCIA 189 CV INCLUSIVE TANQUE DE AÇO PARA TRANSPORTE DE ÁGUA, CAPACIDADE 6 M3 - CHP DIURNO. AF_06/2014 | E30: CHP | F30: 2 | G30: =IFERROR(VLOOKUP(C30,'INSUMOS SINAPI'!A:E,5,FALSE),VLOOKUP(C30,'COMP Sint. Sinapi'!G:K,5,FALSE)) -> 264,10 | H30: =TRUNC(F30*G30,2) -> 528.2
A31: COMP. SICRO | B31: SICRO | C31: 5914640 | D31: TRANSPORTE COM CAVALO MECÂNICO COM SEMIRREBOQUE COM CAPACIDADE DE 30 T - RODOVIA PAVIMENTADA | E31: T x km | F31: ='Mob e Desmob'!E39 -> 2008.23 | G31: 0.6 | H31: =TRUNC(F31*G31,2) -> 1204.93
A32: INSUMO | B32: ORSE | C32: 5896 | D32: VEÍCULO TIPO SEDAN OU PICK-UP CAPACIDADE 0,6 TON | E32: h | F32: 3 | G32: 8.33 | H32: =TRUNC(F32*G32,2) -> 24.99
E33: Sub total: | H33: =SUM(H28:H32) -> 2467.06
F34: BDI | G34: =BDI!$C$17 -> 0.2339 | H34: =H33*G34 -> 577.0453
G35: Total Serviços: | H35: =H33+H34 -> 3044.1053
F36: PREÇO UNITÁRIO TOTAL: | H36: =H35 -> 3044.11 | J36: 3044.12
E37: =A26 -> CPU-02 | G37: PREÇO POR M²: | H37: =H36/('MC MODULO'!$E$1*'MC MODULO'!$E$2) -> 0.22 | I37: =H33/('MC MODULO'!$E$1*'MC MODULO'!$E$2) -> 0.18 | J37: 0.22
A38: CPU-03 | B38: CODEVASF | D38: ADMINISTRAÇÃO LOCAL | E38: m2 | F38: COEF. | G38: PRECO UNITÁRIO (R$) | H38: TOTAL (R$)
A40: COMP. SINAPI | B40: SINAPI | C40: 90777 | D40: ENGENHEIRO CIVIL DE OBRA JUNIOR COM ENCARGOS COMPLEMENTARES | E40: H | F40: 20 | G40: =IFERROR(VLOOKUP(C40,'INSUMOS SINAPI'!A:E,5,FALSE),VLOOKUP(C40,'COMP Sint. Sinapi'!G:K,5,FALSE)) -> 113,54 | H40: =TRUNC(F40*G40,2) -> 2270.8
A41: COMP. SINAPI | B41: SINAPI | C41: 90780 | D41: MESTRE DE OBRAS COM ENCARGOS COMPLEMENTARES | E41: H | F41: 40 | G41: =IFERROR(VLOOKUP(C41,'INSUMOS SINAPI'!A:E,5,FALSE),VLOOKUP(C41,'COMP Sint. Sinapi'!G:K,5,FALSE)) -> 59,31 | H41: 2372.4
A42: COMP. SINAPI | B42: SINAPI | C42: 90772 | D42: AUXILIAR DE ESCRITORIO COM ENCARGOS COMPLEMENTARES | E42: H | F42: 40 | G42: =IFERROR(VLOOKUP(C42,'INSUMOS SINAPI'!A:E,5,FALSE),VLOOKUP(C42,'COMP Sint. Sinapi'!G:K,5,FALSE)) -> 17,95 | H42: 718
A43: COMP. SINAPI | B43: SINAPI | C43: 100309 | D43: TÉCNICO EM SEGURANÇA DO TRABALHO COM ENCARGOS COMPLEMENTARES | E43: H | F43: 40 | G43: =IFERROR(VLOOKUP(C43,'INSUMOS SINAPI'!A:E,5,FALSE),VLOOKUP(C43,'COMP Sint. Sinapi'!G:K,5,FALSE)) -> 27,61 | H43: 1104.4
A44: INS. SINAPI | B44: SINAPI | C44: 14250 | D44: ENERGIA | E44: KW/H | F44: 100 | G44: =IFERROR(VLOOKUP(C44,'INSUMOS SINAPI'!A:E,5,FALSE),VLOOKUP(C44,'COMP Sint. Sinapi'!G:K,5,FALSE)) -> 0,97 | H44: 97
A45: INS. SINAPI | B45: SINAPI | C45: 44480 | D45: ÁGUA TARIFA "A" ENTRE 0 E 20M3 FORNECIMENTO D'AGUA | E45: M3 | F45: 5.21376 | G45: =IFERROR(VLOOKUP(C45,'INSUMOS SINAPI'!A:E,5,FALSE),VLOOKUP(C45,'COMP Sint. Sinapi'!G:K,5,FALSE)) -> 18,35 | H45: 95.67
A46: INSUMO | B46: ORSE | C46: 4415 | D46: VEÍCULO LEVE - VOLKSWAGEN:GOL 1000 - AUTOMÓVEL ATÉ 100 HP | E46: h | F46: =F40+F41 -> 60 | G46: 4.4 | H46: =TRUNC(F46*G46,2) -> 264
E47: ADM. LOCAL : | H47: =SUM(H40:H46) -> 6922.27 | J47: 6922.2725
G49: =BDI!$C$17 -> 0.2339 | H49: =G49*H47 -> 1619.119
F50: PREÇO TOTAL: | H50: =H49+H47 -> 8541.39
E51: =A38 -> CPU-03 | G51: PREÇO POR M²: | H51: =H50/('MC MODULO'!$E$1*'MC MODULO'!$E$2) -> 0.61 | I51: =H47/('MC MODULO'!$E$1*'MC MODULO'!$E$2) -> 0.49
A52: CPU-04 | B52: CODEVASF | D52: CANTEIRO DE OBRAS E ALMOXARIFADO | E52: und | F52: COEF. | G52: PRECO UNITÁRIO (R$) | H52: TOTAL (R$)
A54: INS. SINAPI | B54: SINAPI | C54: 10775 | D54: LOCACAO DE CONTAINER 2,30 X 6,00 M, ALT. 2,50 M, COM 1 SANITARIO, PARA ESCRITORIO, COMPLETO, SEM DIVISORIAS INTERNAS (NAO INCLUI MOBILIZACAO/DESMOBILIZACAO) | E54: mês | F54: 0.2 | G54: =IFERROR(VLOOKUP(C54,'INSUMOS SINAPI'!A:E,5,FALSE),VLOOKUP(C54,'COMP Sint. Sinapi'!G:K,5,FALSE)) -> 890,00 | H54: =TRUNC(F54*G54,2) -> 178
A55: INS. SINAPI | B55: SINAPI | C55: 10776 | D55: LOCACAO DE CONTAINER 2,30 X 6,00 M, ALT. 2,50 M, PARA ESCRITORIO, SEM DIVISORIAS INTERNAS E SEM SANITARIO (NAO INCLUI MOBILIZACAO/DESMOBILIZACAO) | E55: mês | F55: 0.2 | G55: =IFERROR(VLOOKUP(C55,'INSUMOS SINAPI'!A:E,5,FALSE),VLOOKUP(C55,'COMP Sint. Sinapi'!G:K,5,FALSE)) -> 695,31 | H55: =TRUNC(F55*G55,2) -> 139.06
E56: Sub total: | H56: =SUM(H54:H55) -> 317.06
F57: BDI | G57: =BDI!$C$17 -> 0.2339 | H57: =H56*G57 -> 74.16
G58: Total Serviços: | H58: =H56+H57 -> 391.22
E59: =A52 -> CPU-04 | F59: PREÇO UNITÁRIO TOTAL: | H59: =H58 -> 391.22 | I59: =H56 -> 317.06
A62: CPU-12 | B62: CODEVASF | D62: Correção de vazamentos no ramal na rua sem pavimento com fornecimento do material hidráulico | E62: m | F62: COEF. | G62: PRECO UNITÁRIO (R$) | H62: TOTAL (R$)
A64: Composição Auxiliar | B64: SINAPI | C64: 88316 | D64: SERVENTE COM ENCARGOS COMPLEMENTARES | E64: H | F64: 0.2 | G64: =IFERROR(VLOOKUP(C64,'INSUMOS SINAPI'!A:E,5,FALSE),VLOOKUP(C64,'COMP Sint. Sinapi'!G:K,5,FALSE)) -> 21,28 | H64: =TRUNC(F64*G64,2) -> 4.25
A65: Composição Auxiliar | B65: SINAPI | C65: 88267 | D65: ENCANADOR OU BOMBEIRO HIDRÁULICO COM ENCARGOS COMPLEMENTARES | E65: H | F65: 0.1 | G65: =IFERROR(VLOOKUP(C65,'INSUMOS SINAPI'!A:E,5,FALSE),VLOOKUP(C65,'COMP Sint. Sinapi'!G:K,5,FALSE)) -> 25,76 | H65: 2.57
A66: Insumo | B66: SINAPI | C66: 9867 | D66: TUBO PVC, SOLDAVEL, DN 20 MM, AGUA FRIA (NBR-5648) | E66: m | F66: 1 | G66: =IFERROR(VLOOKUP(C66,'INSUMOS SINAPI'!A:E,5,FALSE),VLOOKUP(C66,'COMP Sint. Sinapi'!G:K,5,FALSE)) -> 4,06 | H66: 4.06
A67: Insumo | B67: ORSE | C67: 10585 | D67: Arco de serra | E67: un | F67: 0.1 | G67: 22.49 | H67: 2.24
A68: Insumo | B68: SINAPI | C68: 3859 | D68: LUVA SOLDAVEL COM ROSCA, PVC, 20 MM X 1/2", PARA AGUA FRIA PREDIAL | E68: un | F68: 2 | G68: =IFERROR(VLOOKUP(C68,'INSUMOS SINAPI'!A:E,5,FALSE),VLOOKUP(C68,'COMP Sint. Sinapi'!G:K,5,FALSE)) -> 1,46 | H68: 2.92
E69: Sub total: | H69: =SUM(H64:H68) -> 16.04
F70: BDI | G70: =BDI!$C$17 -> 0.2339 | H70: =H69*G70 -> 3.75
G71: Total Serviços: | H71: =H69+H70 -> 19.79
E72: =A62 -> CPU-12 | F72: PREÇO UNITÁRIO TOTAL: | H72: =H71 -> 19.79 | I72: =H69 -> 16.04 | J72: 19.75
A74: CPU-16 | B74: CODEVASF | D74: SERVIÇOS TOPOGRÁFICOS PARA PAVIMENTAÇÃO, INCLUSIVE NOTAS DE SERVIÇOS, ACOMPANHAMENTO E GREIDE | E74: m2 | F74: COEF. | G74: PRECO UNITÁRIO (R$) | H74: TOTAL (R$)
A76: Insumo | B76: SINAPI | C76: 20206 | D76: =VLOOKUP(C76,'INSUMOS SINAPI'!A:E,2,0) -> SARRAFO APARELHADO *2 X 10* CM, EM MACARANDUBA/MASSARANDUBA, ANGELIM OU EQUIVALENTE DA REGIAO | E76: m | F76: 0.002886 | G76: =IFERROR(VLOOKUP(C76,'INSUMOS SINAPI'!A:E,5,FALSE),VLOOKUP(C76,'COMP Sint. Sinapi'!G:K,5,FALSE)) -> 10,65 | H76: =TRUNC(F76*G76,2) -> 0.03
A77: Composição | B77: SINAPI | C77: 88253 | D77: =VLOOKUP(C77,'COMP Sint. Sinapi'!G:K,2,0) -> AUXILIAR DE TOPÓGRAFO COM ENCARGOS COMPLEMENTARES | E77: h | F77: 0.0025 | G77: =IFERROR(VLOOKUP(C77,'INSUMOS SINAPI'!A:E,5,FALSE),VLOOKUP(C77,'COMP Sint. Sinapi'!G:K,5,FALSE)) -> 14,48 | H77: 0.03
A78: Composição | B78: SINAPI | C78: 88288 | D78: =VLOOKUP(C78,'COMP Sint. Sinapi'!G:K,2,0) -> NIVELADOR COM ENCARGOS COMPLEMENTARES | E78: h | F78: 0.0025 | G78: =IFERROR(VLOOKUP(C78,'INSUMOS SINAPI'!A:E,5,FALSE),VLOOKUP(C78,'COMP Sint. Sinapi'!G:K,5,FALSE)) -> 17,97 | H78: 0.04
A79: Composição | B79: SINAPI | C79: 88316 | D79: =VLOOKUP(C79,'COMP Sint. Sinapi'!G:K,2,0) -> SERVENTE COM ENCARGOS COMPLEMENTARES | E79: h | F79: 0.0075 | G79: =IFERROR(VLOOKUP(C79,'INSUMOS SINAPI'!A:E,5,FALSE),VLOOKUP(C79,'COMP Sint. Sinapi'!G:K,5,FALSE)) -> 21,28 | H79: 0.15
A80: Composição | B80: SINAPI | C80: 88597 | D80: =VLOOKUP(C80,'COMP Sint. Sinapi'!G:K,2,0) -> DESENHISTA DETALHISTA COM ENCARGOS COMPLEMENTARES | E80: h | F80: 0.002 | G80: =IFERROR(VLOOKUP(C80,'INSUMOS SINAPI'!A:E,5,FALSE),VLOOKUP(C80,'COMP Sint. Sinapi'!G:K,5,FALSE)) -> 31,40 | H80: 0.06
A81: Composição | B81: SINAPI | C81: 92145 | D81: =VLOOKUP(C81,'COMP Sint. Sinapi'!G:K,2,0) -> CAMINHONETE CABINE SIMPLES COM MOTOR 1.6 FLEX, CÂMBIO MANUAL, POTÊNCIA 101/104 CV, 2 PORTAS - CHP DIURNO. AF_11/2015 | E81: chp | F81: 0.001 | G81: =IFERROR(VLOOKUP(C81,'INSUMOS SINAPI'!A:E,5,FALSE),VLOOKUP(C81,'COMP Sint. Sinapi'!G:K,5,FALSE)) -> 74,50 | H81: 0.07
E82: Sub total: | H82: =SUM(H76:H81) -> 0.38
F83: BDI | G83: =BDI!$C$17 -> 0.2339 | H83: =H82*G83 -> 0.0889
G84: Total Serviços: | H84: =H82+H83 -> 0.4689
E85: =A74 -> CPU-16 | F85: PREÇO UNITÁRIO TOTAL: | H85: =H84 -> 0.47 | I85: =H82 -> 0.38
A88: CPU-20 | B88: CODEVASF | D88: CONTROLE TECNOLÓGICO - PROJETO | E88: m² | F88: COEF. | G88: PRECO UNITÁRIO (R$) | H88: TOTAL (R$)
A90: Insumo | B90: SICRO | C90: P9858 | D90: Laboratorista | E90: mês | F90: =0.15/14000 -> 1.07e-05 | G90: 6450.1 | H90: =TRUNC(F90*G90,2) -> 0.06
A91: Composição | B91: SICRO | C91: P9833 | D91: Auxiliar de Laboratório | E91: mês | F91: =0.15/14000 -> 1.07e-05 | G91: 4678.35 | H91: 0.05
A92: Composição | B92: SICRO | C92: *B8957 | D92: Laboratório de Solos | E92: mês | F92: 1.07e-05 | G92: 4388.43 | H92: 0.04
A93: Composição | B93: SICRO | C93: *B8956 | D93: Laboratório de concreto | E93: mês | F93: 1.07e-05 | G93: 3990.75 | H93: 0.04
B94: *Relatório de Custos Gerais do DNIT, página 1 | E94: Sub total: | H94: =SUM(H90:H93) -> 0.19
F95: BDI | G95: =BDI!$C$17 -> 0.2339 | H95: =H94*G95 -> 0.0444
E96: CPU-20 | F96: PREÇO UNITÁRIO TOTAL: | H96: =H94+H95 -> 0.23 | I96: =H94 -> 0.19
A98: CPU-21 | B98: CODEVASF | D98: CONTROLE TECNOLÓGICO - OBRA | E98: m² | F98: COEF. | G98: PRECO UNITÁRIO (R$) | H98: TOTAL (R$)
A100: Insumo | B100: SICRO | C100: P9858 | D100: Laboratorista | E100: mês | F100: =0.35/14000 -> 2.5e-05 | G100: 6450.1 | H100: =TRUNC(F100*G100,2) -> 0.16
A101: Composição | B101: SICRO | C101: P9833 | D101: Auxiliar de Laboratório | E101: mês | F101: =0.35/14000 -> 2.5e-05 | G101: 4678.35 | H101: 0.11
A102: Composição | B102: SICRO | C102: *B8957 | D102: Laboratório de Solos | E102: mês | F102: 2.5e-05 | G102: 4388.43 | H102: 0.1
A103: Composição | B103: SICRO | C103: *B8956 | D103: Laboratório de concreto | E103: mês | F103: 2.5e-05 | G103: 3990.75 | H103: 0.09
B104: *Relatório de Custos Gerais do DNIT, página 1 | E104: Sub total: | H104: =SUM(H100:H103) -> 0.46
F105: BDI | G105: =BDI!$C$17 -> 0.2339 | H105: =G105*H104 -> 0.1076
E106: CPU-21 | F106: PREÇO UNITÁRIO TOTAL: | H106: =H104+H105 -> 0.57 | I106: =H104 -> 0.46

Sheet Projeto Executivo
A1: COMPOSIÇAO PREÇO PROJETO EXECUTIVO (POR KM)
A3: DISCRIMINAÇAO | F3: Pr. Unit. | G3: Pr. Total
A5: A· EOUIPE TECNICA | G5: =G6+G9 -> 3096.64
B6: A. 1 - Pessoal de Nível Superior | C6: Unidade | D6: Quantitativo | E6: Código SINAPI | G6: =G7+G8 -> 2543.26
B7: Engenheiro | C7: h | D7: 18 | E7: 34780 | F7: =IFERROR(VLOOKUP(E7,'INSUMOS SINAPI'!A:E,5,FALSE),VLOOKUP(E7,'COMP Sint. Sinapi'!G:K,5,FALSE)) -> 125,87 | G7: =TRUNC(F7*D7,2) -> 2265.66
B8: Topógrafo | C8: h | D8: 10 | E8: 7592 | F8: =IFERROR(VLOOKUP(E8,'INSUMOS SINAPI'!A:E,5,FALSE),VLOOKUP(E8,'COMP Sint. Sinapi'!G:K,5,FALSE)) -> 27,76 | G8: =TRUNC(F8*D8,2) -> 277.6
B9: A.2 - Pessoal de Nível Técnico e Aux. | G9: =G10+G11 -> 553.38
B10: Auxiliar de topógrafo | C10: h | D10: 10 | E10: 244 | F10: =IFERROR(VLOOKUP(E10,'INSUMOS SINAPI'!A:E,5,FALSE),VLOOKUP(E10,'COMP Sint. Sinapi'!G:K,5,FALSE)) -> 12,48 | G10: =TRUNC(F10*D10,2) -> 124.8
B11: Cadista/calculista | C11: h | D11: 18 | E11: 2359 | F11: =IFERROR(VLOOKUP(E11,'INSUMOS SINAPI'!A:E,5,FALSE),VLOOKUP(E11,'COMP Sint. Sinapi'!G:K,5,FALSE)) -> 23,81 | G11: =TRUNC(F11*D11,2) -> 428.58
A12: B - ENCARGOS SOCIAIS | G12: =G13 -> 0
B13: =CONCATENATE("Taxas ",'[1]ENC. SOCIAIS'!E51,"%") -> Taxas 112,51% | C13: JÁ INCLUSAS EM "A" | G13: 0
A14: C - DESPESAS GERAIS | G14: =G15+G16+G17+G18 -> 459.87
B15: C.1 - MATERIAIS DE CONSUMO | C15: Estimativa % como referência de equipe técnica com encargos sociais | D15: 0.03 | F15: =G5+G13 -> 3096.64 | G15: =TRUNC(F15*D15,2) -> 92.89
B16: C.2 - VEÍCULOS | C16: H | D16: 8 | E16: 92144 | F16: =IFERROR(VLOOKUP(E16,'INSUMOS SINAPI'!A:E,5,FALSE),VLOOKUP(E16,'COMP Sint. Sinapi'!G:K,5,FALSE)) -> 39,80 | G16: 318.4
B17: C.3 - COMBUSTÍVEL | C17: L | D17: 2 | E17: 4221 | F17: =IFERROR(VLOOKUP(E17,'INSUMOS SINAPI'!A:E,5,FALSE),VLOOKUP(E17,'COMP Sint. Sinapi'!G:K,5,FALSE)) -> 6,29 | G17: 12.58
B18: C.3 - EQUIPAMENTOS, INSTALAÇÕES E MOBILIÁRIO | C18: H | D18: 16 | E18: 7247 | F18: =IFERROR(VLOOKUP(E18,'INSUMOS SINAPI'!A:E,5,FALSE),VLOOKUP(E18,'COMP Sint. Sinapi'!G:K,5,FALSE)) -> 2,25 | G18: 36
A19: D - ENSAIOS | G19: =G20 -> 1610
B20: D.1 - ENSAIOS | C20: M² | D20: ='[1]MC MODULO'!E2*1000 -> 7000 | E20: Composição Ensaios (CPU-20) | F20: ='CPU CODEVASF'!H96 -> 0.23 | G20: =TRUNC(F20*D20,2) -> 1610 | I20: m²
A21: I - SOMA (A+B+C+D) | G21: =G5+G12+G14+G19 -> 5166.51
A22: II - CUSTOS ADMINISTRATIVOS | D22: =BDI!C17 -> 0.2339 | G22: =ROUND(D22*G21,2) -> 1208.45
A23: X - TOTAL | G23: =SUM(G21:G22) -> 6374.96
F25: Por m²: | G25: =G23/('MC MODULO'!E2*1000) -> 0.91

Sheet Mob e Desmob
A5: ='RESUMO MODULO TOTAL'!B1 -> EXECUÇÃO DE SERVIÇOS DE IMPLANTAÇÃO DE PAVIMENTAÇÃO EM BLOCO DE CONCRETO INTERTRAVADO, EM VIAS DE MUNICÍPIOS INSERIDOS NA ÁREA DE ATUAÇÃO DA CODEVASF - 15ª/SR.
A7: MEMÓRIA DE CÁLCULO DOS MOMENTOS DE TRANSPORTE PARA MOBILIZAÇÃO E DESMOBILIZAÇÃO
A10: Deslocamento:
C11: Distancia méd. (Km) | D11: Qtde. | E11: Total (Km)
A12: Mobilização (entre os trechos de serviço): | C12: 1 | D12: 1 | E12: =C12*D12 -> 1
A13: Desmobilização (entre os trechos de serviço): | C13: 1 | D13: 1 | E13: =C13*D13 -> 1
A14: Mobilização inter-municipal (entre as localidades): | C14: 20 | D14: 1 | E14: =C14*D14 -> 20
A15: Desmobilização inter-municipal (entre as localidades): | C15: 20 | D15: 1 | E15: =C15*D15 -> 20
A16: Mobilização - Total (km) | E16: =E12+E14 -> 21
A17: Desmobilização - Total (km) | E17: =E13+E15 -> 21
A20: Peso das máquinas: | I20: m²
E21: Pá carregadeira | H21: 10.1 | I21: ton
E22: Motoniveladora | H22: 12.47 | I22: ton
E23: Trator de pneus | H23: 2.8 | I23: ton
E24: Grade de disco | H24: 1 | I24: ton
E25: Usina misturadora | H25: 20 | I25: ton
E26: Tanque de Armazenamento 30 ton | H26: 5 | I26: ton
E27: Acabadora | H27: 12.6 | I27: ton
E28: Rolo Compactador Vibratório PD | H28: 15.33 | I28: ton
E29: Rolo Compactador Vibratório Liso | H29: 15.33 | I29: ton
E30: Grade de Disco | H30: 1 | I30: ton
E31: Caminhão Pipa | I31: ton
E32: Caminhão Basculannte | I32: ton
E33: Caminhão Espagidor | I33: ton
E34: Caminhão de Apoio | I34: ton
E36: Total | H36: =ROUND(SUM(H20:H35),2) -> 95.63 | I36: ton
A38: Portanto: | B38: Portanto
A39: Mobilização - Total (km) | E39: =E16*H36 -> 2008.23 | F39: t x km
A40: Desmobilização - Total (km) | E40: =E17*H36 -> 2008.23 | F40: t x km
A47: E9010 | B47: Balança plataforma digital com mesa de 75 x 75 cm com capacidade de 500 kg | I47: Caminhão carroceria
A48: E9064 | B48: Transportador manual gerica com capacidade de 180 l | I48: Caminhão carroceria
A49: E9066 | B49: Grupo gerador - 13/14 kVA | I49: Caminhão carroceria
A50: E9071 | B50: Transportador manual carrinho de mão com capacidade de 80 l | I50: Caminhão carroceria
A51: E9076 | B51: Equipamento de pintura com cabine de 7,00 kW e estufa de 80.000 kCal para pintura eletrostática | I51: Caminhão carroceria
A52: E9519 | B52: Betoneira com motor a gasolina com capacidade de 600 l - 10 kW | I52: Caminhão carroceria
A53: E9521 | B53: Grupo gerador - 2,5/3 kVA | I53: Caminhão carroceria
A54: E9568 | B54: Furadeira de impacto de 12,5 mm - 0,8 kW | I54: Caminhão carroceria
A55: E9622 | B55: Máquina de bancada universal para corte de chapa - 1,5 kW | I55: Caminhão carroceria
A56: E9623 | B56: Máquina de bancada guilhotina - 4 kW | I56: Caminhão carroceria
A57: E9675 | B57: Martelete perfurador/rompedor elétrico - 1,5 kW | I57: Caminhão carroceria
A58: E9779 | B58: Grupo gerador - 100/110 kVA | I58: Caminhão carroceria
A61: E9506 | B61: Caminhão basculante com capacidade de 6 m³ - 136 kW | I61: Rodoviario
A62: E9571 | B62: Caminhão tanque com capacidade de 10.000 l - 188 kW | I62: Rodoviario
A63: E9579 | B63: Caminhão basculante com capacidade de 10 m³ - 188 kW | I63: Rodoviario
A64: E9592 | B64: Caminhão carroceria com capacidade de 15 t - 188 kW | I64: Rodoviario
A65: E9644 | B65: Caminhão demarcador de faixas com sistema de pintura a frio - 28 kW/115 kW | I65: Rodoviario
A66: E9686 | B66: Caminhão carroceria com guindauto com capacidade de 20 t.m - 136 kW | I66: Rodoviario
A67: E9687 | B67: Caminhão carroceria com capacidade de 5 t - 115 kW | I67: Rodoviario
A68: E9514 | B68: Distribuidor de agregados autopropelido - 130 kW | I68: Rodoviario
A70: E9511 | B70: Carregadeira de pneus com capacidade de 3,40 m³ - 195 kW | I70: TRANSPORTE COM CAVALO MECÂNICO COM SEMIRREBOQUE COM CAPACIDADE DE 30 T - RODOVIA PAVIMENTADA
A71: E9524 | B71: Motoniveladora - 93 kW | I71: TRANSPORTE COM CAVALO MECÂNICO COM SEMIRREBOQUE COM CAPACIDADE DE 30 T - RODOVIA PAVIMENTADA
A72: E9530 | B72: Rolo compactador liso autopropelido vibratório de 11 t - 97 kW | I72: TRANSPORTE COM CAVALO MECÂNICO COM SEMIRREBOQUE COM CAPACIDADE DE 30 T - RODOVIA PAVIMENTADA
A73: E9577 | B73: Trator agrícola - 77 kW | I73: TRANSPORTE COM CAVALO MECÂNICO COM SEMIRREBOQUE COM CAPACIDADE DE 30 T - RODOVIA PAVIMENTADA
A74: E9685 | B74: Rolo compactador pé de carneiro vibratório autopropelido de 11,6 t - 82 kW | I74: TRANSPORTE COM CAVALO MECÂNICO COM SEMIRREBOQUE COM CAPACIDADE DE 30 T - RODOVIA PAVIMENTADA
A75: E9762 | B75: Rolo compactador de pneus autopropelido de 27 t - 85 kW | I75: TRANSPORTE COM CAVALO MECÂNICO COM SEMIRREBOQUE COM CAPACIDADE DE 30 T - RODOVIA PAVIMENTADA
A76: E9518 | B76: Grade de 24 discos rebocável de 24" | I76: TRANSPORTE COM CAVALO MECÂNICO COM SEMIRREBOQUE COM CAPACIDADE DE 30 T - RODOVIA PAVIMENTADA
A77: E9615 | B77: Usina misturadora de solos com capacidade de 300 t/h | I77: TRANSPORTE COM CAVALO MECÂNICO COM SEMIRREBOQUE COM CAPACIDADE DE 30 T - RODOVIA PAVIMENTADA

Sheet BDI
A2: OBRA:
A3: LOCAL:
A4: DATA BASE:
A5: DETALHAMENTO DO BDI - SEM DESONERAÇÃO
A6: ='RESUMO MODULO TOTAL'!B1 -> EXECUÇÃO DE SERVIÇOS DE IMPLANTAÇÃO DE PAVIMENTAÇÃO EM BLOCO DE CONCRETO INTERTRAVADO, EM VIAS DE MUNICÍPIOS INSERIDOS NA ÁREA DE ATUAÇÃO DA CODEVASF - 15ª/SR.
A7: DESCRIÇÃO DOS SERVIÇOS | B7: PREÇO DE VENDA (%) | C7: CUSTO DIRETO (%)
A8: ADMINISTRAÇÃO CENTRAL | C8: 0.06
A9: DESPESAS FINANCEIRAS | B9: 0.0102
A10: SEGUROS E GARANTIAS CONTRATUAIS | B10: 0.0025
A11: RISCOS | B11: 0.005
A12: LUCRO OPERACIONAL | C12: 0.07
A13: PIS | B13: 0.0065
A14: COFINS | B14: 0.03
A15: ISSQN | B15: 0.03
A16: Contribuição Previdenciaria | B16: 0
B17: BDI | C17: =ROUND((1+(C8+C12))/(1-(B9+B10+B11+B13+B14+B15+B16))-1,4) -> 0.2339
A18: Observação: O percentual de ISSQN aqui utilizado consiste apenas em um referencial médio.
B19: O valor real do ISSQN a ser adotado deve ser aquele proveniente das alíquotas dos municípios situados na área de
B20: influência das obras.
A59: DETALHAMENTO DO BDI DIFERENCIADO - SEM DESONERAÇÃO
A60: ='RESUMO MODULO TOTAL'!B6 -> EXECUÇÃO DE SERVIÇOS DE IMPLANTAÇÃO DE PAVIMENTAÇÃO EM BLOCO DE CONCRETO INTERTRAVADO, EM VIAS DE MUNICÍPIOS INSERIDOS NA ÁREA DE ATUAÇÃO DA CODEVASF - 15ª/SR.
A62: DESCRIÇÃO DOS SERVIÇOS | B62: PREÇO DE VENDA (%) | C62: CUSTO DIRETO (%)
A63: ADMINISTRAÇÃO CENTRAL | C63: 0.0377
A64: DESPESA FINANCEIRAS | B64: 0.0102
A65: SEGUROS E GARANTIAS CONTRATUAIS | B65: 0.0025
A66: RISCOS | B66: 0.0035
A67: LUCRO OPERACIONAL | C67: 0.0475
A68: PIS | B68: 0.0065
A69: COFINS | B69: 0.03
A70: ISSQN | B70: 0
A71: Contribuição Previdenciaria | B71: 0
B72: BDI | C72: =ROUND((1+(C63+C67))/(1-(B64+B65+B66+B68+B69+B70+B71))-1,4) -> 0.1456
A73: Fonte da composição, valores de referência e fórmula do BDI: Instrução Normativa N° 62/DNIT SEDE

Sheet ENC. SOCIAIS

Sheet MOMENTO DE TRANSPORTE - PRINC
B1: ESTADO: | C1: Pernambuco | D1: DATA BASE: | E1: 2023-07-01
D3: TIPO (P, RP ou LN) | E3: DMT ESTIMADA
D4: P | E4: 50
C5: RESUMO DO TRANSPORTE PRINCIPAL
B6: CODIGO | C6: DESCRIÇÃO | D6: TKM
B7: 5914359 | C7: =VLOOKUP(B7,'[2]SINTÉTICO SICRO'!$A:$D,2,0) -> Transporte com caminhão basculante de 10 m³ - rodovia em leito natural | D7: =ROUND(SUMIF('MOMENTO DE TRANSPORTE - PRINC'!A:A,B7,'MOMENTO DE TRANSPORTE - PRINC'!K:K),2) -> 0
B8: 5914374 | C8: =VLOOKUP(B8,'[2]SINTÉTICO SICRO'!$A:$D,2,0) -> Transporte com caminhão basculante de 10 m³ - rodovia em revestimento primário | D8: =ROUND(SUMIF('MOMENTO DE TRANSPORTE - PRINC'!A:A,B8,'MOMENTO DE TRANSPORTE - PRINC'!K:K),2) -> 0
B9: 5914389 | C9: =VLOOKUP(B9,'[2]SINTÉTICO SICRO'!$A:$D,2,0) -> Transporte com caminhão basculante de 10 m³ - rodovia pavimentada | D9: =ROUND(SUMIF('MOMENTO DE TRANSPORTE - PRINC'!A:A,B9,'MOMENTO DE TRANSPORTE - PRINC'!K:K),2) -> 2166150
B10: 5914449 | C10: =VLOOKUP(B10,'[2]SINTÉTICO SICRO'!$A:$D,2,0) -> Transporte com caminhão carroceria de 15 t - rodovia em leito natural | D10: =ROUND(SUMIF('MOMENTO DE TRANSPORTE - PRINC'!A:A,B10,'MOMENTO DE TRANSPORTE - PRINC'!K:K),2) -> 0
B11: 5914464 | C11: =VLOOKUP(B11,'[2]SINTÉTICO SICRO'!$A:$D,2,0) -> Transporte com caminhão carroceria de 15 t - rodovia em revestimento primário | D11: =ROUND(SUMIF('MOMENTO DE TRANSPORTE - PRINC'!A:A,B11,'MOMENTO DE TRANSPORTE - PRINC'!K:K),2) -> 0
B12: 5914479 | C12: =VLOOKUP(B12,'[2]SINTÉTICO SICRO'!$A:$D,2,0) -> Transporte com caminhão carroceria de 15 t - rodovia pavimentada | D12: =ROUND(SUMIF('MOMENTO DE TRANSPORTE - PRINC'!A:A,B12,'MOMENTO DE TRANSPORTE - PRINC'!K:K),2) -> 0
B13: 5914364 | C13: =VLOOKUP(B13,'[2]SINTÉTICO SICRO'!$A:$D,2,0) -> Transporte de cimento ou cal hidratada a granel com caminhão silo de 30 m³ - rodovia em leito natural | D13: =ROUND(SUMIF('MOMENTO DE TRANSPORTE - PRINC'!A:A,B13,'MOMENTO DE TRANSPORTE - PRINC'!K:K),2) -> 0
B14: 5914365 | C14: =VLOOKUP(B14,'[2]SINTÉTICO SICRO'!$A:$D,2,0) -> Transporte de cimento ou cal hidratada a granel com caminhão silo de 30 m³ - rodovia em revestimento primário | D14: =ROUND(SUMIF('MOMENTO DE TRANSPORTE - PRINC'!A:A,B14,'MOMENTO DE TRANSPORTE - PRINC'!K:K),2) -> 0
B15: 5914366 | C15: =VLOOKUP(B15,'[2]SINTÉTICO SICRO'!$A:$D,2,0) -> Transporte de cimento ou cal hidratada a granel com caminhão silo de 30 m³ - rodovia pavimentada | D15: =ROUND(SUMIF('MOMENTO DE TRANSPORTE - PRINC'!A:A,B15,'MOMENTO DE TRANSPORTE - PRINC'!K:K),2) -> 0
B17: PRINCIPAL
B19: SISTEMA DE CUSTOS REFERENCIAIS DE OBRAS - SICRO | E19: =C1 -> Pernambuco
B20: Custo Unitário de Referência | E20: =$E$1 -> 2023-07-01 | I20: Quantitativo | K20: un
B21: 4011268 | C21: Base estabilizada granulometricamente com mistura solo brita (70% - 30%) em usina com material de jazida e brita comercial | I21: =SUMIF('RESUMO MODULO TOTAL'!D:D,B21,'RESUMO MODULO TOTAL'!J:J) -> 21000
B22: D - ATIVIDADES AUXILIARES | D22: Quantidade | E22: Unidade
B23: 6416030 | C23: Usinagem de solo brita (70% - 30%) com material de jazida e brita comercial em usina de 300 t/h | D23: 1 | E23: m³
B25: F - MOMENTO DE TRANSPORTE | D25: Quantidade | E25: Unidade | F25: CÓDIGO TRANSPORTE
F26: LN | G26: RP | H26: P | I26: TIPO (P, RP ou LN) | J26: DMT ESTIMADA (km) | K26: QUANTITATIVO TOTAL DE TRANSPORTE (tkm)
A27: =IF(I27="P",H27,IF(I27="RP",G27,IF(I27="LN",F27,""))) -> 5914389 | B27: 6416030 | C27: Usinagem de solo brita (70% - 30%) com material de jazida e brita comercial em usina de 300 t/h - Caminhão basculante 10 m³ | D27: 2.063 | E27: tkm | F27: 5914359 | G27: 5914374 | H27: 5914389 | I27: P | J27: =$E$4 -> 50 | K27: =IF(ISBLANK(J27),"",J27*D27)*I21 -> 2166150
B29: Obs.
I31: m²
B32: SISTEMA DE CUSTOS REFERENCIAIS DE OBRAS - SICRO | E32: =$C$1 -> Pernambuco
B33: Custo Unitário de Referência | E33: =$E$1 -> 2023-07-01 | I33: Quantitativo | K33: m
B34: 2003373 | C34: Meio-fio de concreto - MFC 03 - areia e brita comerciais - fôrma de madeira | I34: =SUMIF('RESUMO MODULO TOTAL'!D:D,B34,'RESUMO MODULO TOTAL'!J:J) -> 0
B35: D - ATIVIDADES AUXILIARES | D35: Quantidade | E35: Unidade
B36: 1107892 | C36: Concreto fck = 20 MPa - confecção em betoneira e lançamento manual - areia e brita comerciais | D36: 0.042 | E36: m³
B37: 2003842 | C37: Enchimento de junta de concreto com argamassa asfáltica de densidade 1.700 kg/m³ - espessura de 1 cm | D37: 0.0595 | E37: kg
B38: 4805750 | C38: Escavação manual em material de 1ª categoria na profundidade de até 1 m | D38: 0.03 | E38: m³
B39: 3103302 | C39: Fôrmas de tábuas de pinho para dispositivos de drenagem - utilização de 3 vezes - confecção, instalação e retirada | D39: 0.0867 | E39: m²
B41: F - MOMENTO DE TRANSPORTE | D41: Quantidade | E41: Unidade | F41: CÓDIGO TRANSPORTE
F42: LN | G42: RP | H42: P | I42: TIPO (P, RP ou LN) | J42: DMT ESTIMADA (km) | K42: QUANTITATIVO TOTAL DE TRANSPORTE (tkm)

Sheet MOMENTO DE TRANSPORTE - AUX
B1: AUXILIAR | K1: 1.75
B2: RESUMO DO TRANSPORTE AUXILIAR
B3: CODIGO | C3: DESCRIÇÃO | D3: TKM
B4: 5914359 | C4: =VLOOKUP(B4,'[2]SINTÉTICO SICRO'!$A:$D,2,0) -> Transporte com caminhão basculante de 10 m³ - rodovia em leito natural | D4: =ROUND(SUMIF(A:A,B4,K:K),2) -> 0
B5: 5914374 | C5: =VLOOKUP(B5,'[2]SINTÉTICO SICRO'!$A:$D,2,0) -> Transporte com caminhão basculante de 10 m³ - rodovia em revestimento primário | D5: 0
B6: 5914389 | C6: =VLOOKUP(B6,'[2]SINTÉTICO SICRO'!$A:$D,2,0) -> Transporte com caminhão basculante de 10 m³ - rodovia pavimentada
B7: 5914449 | C7: =VLOOKUP(B7,'[2]SINTÉTICO SICRO'!$A:$D,2,0) -> Transporte com caminhão carroceria de 15 t - rodovia em leito natural | D7: 0
B8: 5914464 | C8: =VLOOKUP(B8,'[2]SINTÉTICO SICRO'!$A:$D,2,0) -> Transporte com caminhão carroceria de 15 t - rodovia em revestimento primário | D8: 0
B9: 5914479 | C9: =VLOOKUP(B9,'[2]SINTÉTICO SICRO'!$A:$D,2,0) -> Transporte com caminhão carroceria de 15 t - rodovia pavimentada
B10: 5914364 | C10: =VLOOKUP(B10,'[2]SINTÉTICO SICRO'!$A:$D,2,0) -> Transporte de cimento ou cal hidratada a granel com caminhão silo de 30 m³ - rodovia em leito natural | D10: 0
B11: 5914365 | C11: =VLOOKUP(B11,'[2]SINTÉTICO SICRO'!$A:$D,2,0) -> Transporte de cimento ou cal hidratada a granel com caminhão silo de 30 m³ - rodovia em revestimento primário | D11: 0
B12: 5914366 | C12: =VLOOKUP(B12,'[2]SINTÉTICO SICRO'!$A:$D,2,0) -> Transporte de cimento ou cal hidratada a granel com caminhão silo de 30 m³ - rodovia pavimentada | D12: 0
B14: SISTEMA DE CUSTOS REFERENCIAIS DE OBRAS - SICRO | E14: ='MOMENTO DE TRANSPORTE - PRINC'!C1 -> Pernambuco | I14: Quantitivo
B15: Custo Unitário de Referência | E15: ='MOMENTO DE TRANSPORTE - PRINC'!E1 -> 2023-07-01 | I15: (Coeficiente na composição principal) x (quantidade da principal no orçamento) | K15: m³
B16: 1107892 | C16: Concreto fck = 20 MPa - confecção em betoneira e lançamento manual - areia e brita comerciais | I16: ='MOMENTO DE TRANSPORTE - PRINC'!D36*VLOOKUP(C25,'RESUMO MODULO TOTAL'!D:R,7,FALSE) -> 
B17: F - MOMENTO DE TRANSPORTE | D17: Quantidade | E17: Unidade | F17: DMT
F18: LN | G18: RP | H18: P | I18: TIPO (P, RP ou LN) | J18: DMT ESTIMADA (km) | K18: QUANTITATIVO TOTAL DE TRANSPORTE DE MATERIAL (tkm)
A19: =IF(I19="P",H19,IF(I19="RP",G19,IF(I19="LN",F19,""))) -> 5914479 | B19: M0030 | C19: Aditivo plastificante e retardador de pega para concreto e argamassa - Caminhão carroceria 15 t | D19: 0.00085 | E19: tkm | F19: 5914449 | G19: 5914464 | H19: 5914479 | I19: P | J19: ='MOMENTO DE TRANSPORTE - PRINC'!$E$4 -> 50 | K19: =IF(ISBLANK(J19),"",J19*(D19*$I$16)) -> 
A20: =IF(I20="P",H20,IF(I20="RP",G20,IF(I20="LN",F20,""))) -> 5914389 | B20: M0082 | C20: Areia média lavada - Caminhão basculante 10 m³ | D20: 0.95001 | E20: tkm | F20: 5914359 | G20: 5914374 | H20: 5914389 | I20: P | J20: ='MOMENTO DE TRANSPORTE - PRINC'!$E$4 -> 50 | K20: =IF(ISBLANK(J20),"",J20*(D20*$I$16)) -> 
A21: 5914389 | B21: M0191 | C21: Brita 1 - Caminhão basculante 10 m³ | D21: 0.55131 | E21: tkm | F21: 5914359 | G21: 5914374 | H21: 5914389 | I21: P | J21: ='MOMENTO DE TRANSPORTE - PRINC'!$E$4 -> 50
A22: 5914389 | B22: M0192 | C22: Brita 2 - Caminhão basculante 10 m³ | D22: 0.55131 | E22: tkm | F22: 5914359 | G22: 5914374 | H22: 5914389 | I22: P | J22: ='MOMENTO DE TRANSPORTE - PRINC'!$E$4 -> 50
A23: 5914479 | B23: M0424 | C23: Cimento Portland CP II - 32 - saco - Caminhão carroceria 15 t | D23: 0.28215 | E23: tkm | F23: 5914449 | G23: 5914464 | H23: 5914479 | I23: P | J23: ='MOMENTO DE TRANSPORTE - PRINC'!$E$4 -> 50 | K23: =IF(ISBLANK(J23),"",J23*(D23*$I$16)) -> 
B25: PRINCIPAL: | C25: 2003373
B27: SISTEMA DE CUSTOS REFERENCIAIS DE OBRAS - SICRO | E27: ='MOMENTO DE TRANSPORTE - PRINC'!C1 -> Pernambuco | I27: Quantitivo
B28: Custo Unitário de Referência | E28: 2023-07-01 | H28: m² | I28: (Coeficiente na composição principal) x (quantidade da principal no orçamento) | K28: kg
B29: 2003842 | C29: Enchimento de junta de concreto com argamassa asfáltica de densidade 1.700 kg/m³ - espessura de 1 cm | I29: ='MOMENTO DE TRANSPORTE - PRINC'!D37*VLOOKUP(C34,'RESUMO MODULO TOTAL'!D:R,7,FALSE) -> 
B30: F - MOMENTO DE TRANSPORTE | D30: Quantidade | E30: Unidade | F30: DMT
F31: LN | G31: RP | H31: P | I31: TIPO (P, RP ou LN) | J31: DMT ESTIMADA (km) | K31: QUANTITATIVO TOTAL DE TRANSPORTE DE MATERIAL (tkm)
A32: =IF(I32="P",H32,IF(I32="RP",G32,IF(I32="LN",F32,""))) -> 5914479 | B32: M2158 | C32: Argamassa asfáltica - Caminhão carroceria com capacidade de 15 t - 188 Kw | D32: 0.001 | E32: tkm | F32: 5914449 | G32: 5914464 | H32: 5914479 | I32: P | J32: ='MOMENTO DE TRANSPORTE - PRINC'!$E$4 -> 50 | K32: =IF(ISBLANK(J32),"",J32*(D32*$I$29)) -> 
B34: PRINCIPAL: | C34: 2003373
B36: SISTEMA DE CUSTOS REFERENCIAIS DE OBRAS - SICRO | E36: ='MOMENTO DE TRANSPORTE - PRINC'!C1 -> Pernambuco | I36: Quantitivo
B37: Custo Unitário de Referência | E37: 2023-07-01 | I37: (Coeficiente na composição principal) x (quantidade da principal no orçamento) | K37: m²
B38: 3103302 | C38: Fôrmas de tábuas de pinho para dispositivos de drenagem - utilização de 3 vezes - confecção, instalação e retirada | I38: ='MOMENTO DE TRANSPORTE - PRINC'!D39*VLOOKUP(C46,'RESUMO MODULO TOTAL'!D:R,7,FALSE) -> 
B39: F - MOMENTO DE TRANSPORTE | D39: Quantidade | E39: Unidade | F39: DMT
F40: LN | G40: RP | H40: P | I40: TIPO (P, RP ou LN) | J40: DMT ESTIMADA (km) | K40: QUANTITATIVO TOTAL DE TRANSPORTE DE MATERIAL (tkm)
A41: =IF(I41="P",H41,IF(I41="RP",G41,IF(I41="LN",F41,""))) -> 5914479 | B41: M0560 | C41: Desmoldante para fôrmas de madeira - Caminhão carroceria com capacidade de 15 t - 188 Kw | D41: 2e-05 | E41: tkm | F41: 5914449 | G41: 5914464 | H41: 5914479 | I41: P | J41: ='MOMENTO DE TRANSPORTE - PRINC'!$E$4 -> 50 | K41: =IF(ISBLANK(J41),"",J41*(D41*$I$38)) -> 
A42: =IF(I42="P",H42,IF(I42="RP",G42,IF(I42="LN",F42,""))) -> 5914479 | B42: M1205 | C42: Prego de ferro - Caminhão carroceria com capacidade de 15 t - 188 kW | D42: 3e-05 | E42: tkm | F42: 5914449 | G42: 5914464 | H42: 5914479 | I42: P | J42: ='MOMENTO DE TRANSPORTE - PRINC'!$E$4 -> 50 | K42: =IF(ISBLANK(J42),"",J42*(D42*$I$38)) -> 
A43: 5914479 | B43: M0290 | C43: Tábua - E = 2,5 cm e L = 10 cm - Caminhão carroceria com capacidade de 15 t - 188 kW | D43: 0.00304 | E43: tkm | F43: 5914449 | G43: 5914464 | H43: 5914479 | I43: P | J43: ='MOMENTO DE TRANSPORTE - PRINC'!$E$4 -> 50
A44: 5914479 | B44: M1429 | C44: Tábua de pinho de terceira - E = 2,5 cm - Caminhão carroceria com capacidade de 15 t - 188 kW | D44: 0.01011 | E44: tkm | F44: 5914449 | G44: 5914464 | H44: 5914479 | I44: P | J44: ='MOMENTO DE TRANSPORTE - PRINC'!$E$4 -> 50
B46: PRINCIPAL: | C46: 2003373
A49: =IF(I49="P",H49,IF(I49="RP",G49,IF(I49="LN",F49,""))) -> 

Sheet MC MODULO
C1: Extensão | D1: = | E1: 2000 | F1: m | H1: QUANTIDADE DE MODULOS | I1: 10
C2: Largura | D2: = | E2: 7 | F2: m
C4: Extensão | D4: = | E4: 2 | F4: km
B6: MOBUILIZAÇÃO | L6: MOBUILIZAÇÃO
A7: 1 | B7: Implantação da obra | K7: 1 | L7: Implantação da obra
B9: Módulos(un) | D9: Módulos(un) | L9: Módulos(un) | N9: Módulos(un)
B10: 1 | C10: = | D10: =B10 -> 1 | L10: =I1 -> 10 | M10: = | N10: =L10 -> 10
A12: 2 | B12: Administração da obra | K12: 2 | L12: Administração da obra
B14: Módulos(un) | D14: Módulos(un) | L14: Módulos(un) | N14: Módulos(un)
B15: 1 | C15: = | D15: =B15 -> 1 | L15: =I1 -> 10 | M15: = | N15: =L15 -> 10
A17: 3 | B17: Canteiro de Obras e Almoxarifado | K17: 3 | L17: Canteiro de Obras e Almoxarifado
B19: Módulos(un) | D19: Módulos(un) | L19: Módulos(un) | N19: Módulos(un)
B20: 1 | C20: = | D20: =B20 -> 1 | L20: =I1 -> 10 | M20: = | N20: =L20 -> 10
A22: 4 | B22: Placa de Obra em Chapa de Aço Galvanizado | K22: 4 | L22: Placa de Obra em Chapa de Aço Galvanizado
B24: Módulos(un) | D24: Módulos(un) | L24: Módulos(un) | N24: Módulos(un)
B25: 1 | C25: = | D25: =B25 -> 1 | L25: =I1 -> 10 | M25: = | N25: =L25 -> 10 | T25: 24623444.15
T26: 23851033.67
B27: TERRAPLENAGEM | L27: TERRAPLENAGEM | T27: 23902795.53
A29: 5 | B29: serviços topográficos para pavimentação, inclusive notas de serviços, acompanhamento e greide | K29: 5 | L29: serviços topográficos para pavimentação, inclusive notas de serviços, acompanhamento e greide
T30: =SUM(T25:T27) -> 72377273.35
B31: Extensão (m) | D31: Largura (m) | H31: area (m2) | L31: Extensão (m) | N31: Largura (m) | R31: area (m2)
B32: =$E$1 -> 2000 | C32: x | D32: =$E$2 -> 7 | G32: = | H32: =B32*D32 -> 14000 | L32: =E1*$I$1 -> 20000 | M32: x | N32: =$E$2 -> 7 | Q32: = | R32: =L32*N32 -> 140000
A34: 6 | B34: Escavação, carga e transporte de material de 1ª categoria - DMT de 1.000 a 1.200 m - caminho de serviço em leito natural - com escavadeira e caminhão basculante de 14 m³ | K34: 6 | L34: Escavação, carga e transporte de material de 1ª categoria - DMT de 1.000 a 1.200 m - caminho de serviço em leito natural - com escavadeira e caminhão basculante de 14 m³
B36: Extensão (m) | D36: Largura (m) | F36: Espessura (m) | H36: Volume (m3) | L36: Extensão (m) | N36: Largura (m) | P36: Espessura (m) | R36: Volume (m3)
B37: =$E$1 -> 2000 | C37: x | D37: =$E$2 -> 7 | E37: x | F37: =0.15+0.08+0.04 -> 0.27 | G37: = | H37: =B37*D37*F37 -> 3780 | L37: =E1*$I$1 -> 20000 | M37: x | N37: =$E$2 -> 7 | O37: x | P37: =0.15+0.08+0.04 -> 0.27 | Q37: = | R37: =L37*N37*P37 -> 37800
A41: 7 | B41: Espalhamento de material em bota-fora | K41: 7 | L41: Espalhamento de material em bota-fora
B43: Extensão (m) | D43: Largura (m) | F43: Espessura (m) | H43: Volume (m3) | L43: Extensão (m) | N43: Largura (m) | P43: Espessura (m) | R43: Volume (m3)
B44: =$E$1 -> 2000 | C44: x | D44: =$E$2 -> 7 | E44: x | F44: 0.1 | G44: = | H44: =B44*D44*F44 -> 1400 | L44: =E1*$I$1 -> 20000 | M44: x | N44: =$E$2 -> 7 | O44: x | P44: 0.1 | Q44: = | R44: =L44*N44*P44 -> 14000
B46: PAVIMENTAÇÃO | L46: PAVIMENTAÇÃO
A48: 8 | B48: Execução de Pavimento em Piso Intertravado, com Bloco Sextavado de 25 X 25 cm, espessura 8 cm. AF_12/2015 | K48: 8 | L48: Execução de Pavimento em Piso Intertravado, com Bloco Sextavado de 25 X 25 cm, espessura 8 cm. AF_12/2015
B50: Extensão (m) | C50: Largura (m) | H50: area (m2) | L50: Extensão (m) | M50: Largura (m) | R50: area (m2)
B51: =$E$1 -> 2000 | C51: =$E$2 -> 7 | G51: = | H51: =B51*C51 -> 14000 | L51: =$E$1*I1 -> 20000 | M51: =$E$2 -> 7 | Q51: = | R51: =M51*L51 -> 140000
A53: 8 | B53: TRANSPORTE COM CAMINHÃO CARROCERIA COM GUINDAUTO (MUNCK), MOMENTO MÁXIMO DE CARGA 11,7 TM, EM VIA URBANA PAVIMENTADA, DMT ATÉ 30KM AF_07/2020 (bloquete) | K53: 8 | L53: TRANSPORTE COM CAMINHÃO CARROCERIA COM GUINDAUTO (MUNCK), MOMENTO MÁXIMO DE CARGA 11,7 TM, EM VIA URBANA PAVIMENTADA, DMT ATÉ 30KM AF_07/2020 (bloquete)
B55: Dimensoes (m³) | C55: Densidade bloco Intertravado (t/m³) | D55: Peso total (t) | E55: Distancia (km) | H55: TKM | L55: Dimensoes (m³) | M55: Densidade bloco Intertravado (t/m³) | N55: Peso total (t) | O55: Distancia (km) | R55: TKM
B56: =H51*0.08 -> 1120 | C56: 2.2 | D56: =C56*B56 -> 2464 | E56: 30 | G56: = | H56: =D56*E56 -> 73920 | L56: =R51*0.08 -> 11200 | M56: 2.2 | N56: =M56*L56 -> 24640 | O56: 30 | Q56: = | R56: =N56*O56 -> 739200
A59: 8 | B59: TRANSPORTE COM CAMINHÃO CARROCERIA COM GUINDAUTO (MUNCK), MOMENTO MÁXIMO DE CARGA 11,7 TM, EM VIA URBANA PAVIMENTADA, ADICIONAL PARA DMT EXCEDENTE A 30 KM (UNIDADE: TXKM). AF_07/2020 (bloquete) | K59: 8 | L59: TRANSPORTE COM CAMINHÃO CARROCERIA COM GUINDAUTO (MUNCK), MOMENTO MÁXIMO DE CARGA 11,7 TM, EM VIA URBANA PAVIMENTADA, ADICIONAL PARA DMT EXCEDENTE A 30 KM (UNIDADE: TXKM). AF_07/2020 (bloquete)
B61: Dimensoes (m³) | C61: Densidade bloco Intertravado (t/m³) | D61: Peso total (t) | E61: Distancia (km) | H61: TKM | L61: Dimensoes (m³) | M61: Densidade bloco Intertravado (t/m³) | N61: Peso total (t) | O61: Distancia (km) | R61: TKM
B62: =B56 -> 1120 | C62: 2.2 | D62: =C62*B62 -> 2464 | E62: 20 | G62: = | H62: =D62*E62 -> 49280 | L62: =L56 -> 11200 | M62: 2.2 | N62: =M62*L62 -> 24640 | O62: 20 | Q62: = | R62: =N62*O62 -> 492800
A65: 8 | B65: TRANSPORTE COM CAMINHÃO BASCULANTE DE 10 M³, EM VIA URBANA PAVIMENTADA , DMT ATÉ 30 KM (UNIDADE: TXKM). AF_07/2020 (areia) | K65: 8 | L65: TRANSPORTE COM CAMINHÃO BASCULANTE DE 10 M³, EM VIA URBANA PAVIMENTADA , DMT ATÉ 30 KM (UNIDADE: TXKM). AF_07/2020 (areia) | U65: =7*20 -> 140
U66: =26*5 -> 130
B67: Area | C67: Densidade areia (t/m³) | D67: Peso total (t) | E67: Distancia (km) | H67: TKM | L67: Area | M67: Densidade areia (t/m³) | N67: Peso total (t) | O67: Distancia (km) | R67: TKM | U67: =23*5 -> 115
B68: =H51 -> 14000 | C68: 1.5 | D68: =B68*C68*0.04 -> 840 | E68: 30 | G68: = | H68: =D68*E68 -> 25200 | L68: =R51 -> 140000 | M68: 1.5 | N68: =L68*M68*0.04 -> 8400 | O68: 30 | Q68: = | R68: =N68*O68 -> 252000 | U68: =U65+U66+U67 -> 385
A70: 8 | B70: TRANSPORTE COM CAMINHÃO BASCULANTE DE 14 M³, EM VIA URBANA PAVIMENTADA, ADICIONAL PARA DMT EXCEDENTE A 30 KM (UNIDADE: TXKM) (AREIA) | K70: 8 | L70: TRANSPORTE COM CAMINHÃO BASCULANTE DE 14 M³, EM VIA URBANA PAVIMENTADA, ADICIONAL PARA DMT EXCEDENTE A 30 KM (UNIDADE: TXKM) (AREIA) | U70: =7*20 -> 140
U71: =26*5 -> 130
B72: Area | C72: Densidade areia (t/m³) | D72: Peso total (t) | E72: Distancia (km) | H72: TKM | L72: Area | M72: Densidade areia (t/m³) | N72: Peso total (t) | O72: Distancia (km) | R72: TKM | U72: =23*5 -> 115
B73: =B68 -> 14000 | C73: 1.5 | D73: =B73*C73*0.04 -> 840 | E73: 20 | G73: = | H73: =D73*E73 -> 16800 | L73: =L68 -> 140000 | M73: 1.5 | N73: =L73*M73*0.04 -> 8400 | O73: 20 | Q73: = | R73: =N73*O73 -> 168000 | U73: =U70+U71+U72 -> 385
A75: 8 | B75: TRANSPORTE COM CAMINHÃO BASCULANTE DE 10 M³, EM VIA URBANA PAVIMENTADA , DMT ATÉ 30 KM (UNIDADE: TXKM). AF_07/2020 (PO DE PEDRA) | K75: 8 | L75: TRANSPORTE COM CAMINHÃO BASCULANTE DE 10 M³, EM VIA URBANA PAVIMENTADA , DMT ATÉ 30 KM (UNIDADE: TXKM). AF_07/2020 (PO DE PEDRA) | U75: =7*20 -> 140
D76: 0.009 | N76: 0.009 | U76: =26*5 -> 130
B77: Area | C77: Densidade pó de pedra (t/m³) | D77: Quantidade total de pó de pedra (m³) | E77: Peso total (t) | F77: Distancia (km) | H77: TKM | L77: Area | M77: Densidade pó de pedra (t/m³) | N77: Quantidade total de pó de pedra (m³) | O77: Peso total (t) | P77: Distancia (km) | R77: TKM | U77: =23*5 -> 115
B78: =H51 -> 14000 | C78: 1.5 | D78: =B78*D76 -> 126 | E78: =D78*C78 -> 189 | F78: 30 | G78: = | H78: =E78*F78 -> 5670 | L78: =R51 -> 140000 | M78: 1.5 | N78: =L78*N76 -> 1260 | O78: =N78*M78 -> 1890 | P78: 30 | Q78: = | R78: =O78*P78 -> 56700 | U78: =U75+U76+U77 -> 385
A80: 8 | B80: TRANSPORTE COM CAMINHÃO BASCULANTE DE 10 M³, EM VIA URBANA PAVIMENTADA , DMT ATÉ 30 KM (UNIDADE: TXKM). AF_07/2020 (PO DE PEDRA) | K80: 8 | L80: TRANSPORTE COM CAMINHÃO BASCULANTE DE 10 M³, EM VIA URBANA PAVIMENTADA , DMT ATÉ 30 KM (UNIDADE: TXKM). AF_07/2020 (PO DE PEDRA) | U80: =7*20 -> 140
D81: 0.009 | N81: 0.009 | U81: =26*5 -> 130
B82: Area | C82: Densidade pó de pedra (t/m³) | D82: Quantidade total de pó de pedra (m³) | E82: Peso total (t) | F82: Distancia (km) | H82: TKM | L82: Area | M82: Densidade pó de pedra (t/m³) | N82: Quantidade total de pó de pedra (m³) | O82: Peso total (t) | P82: Distancia (km) | R82: TKM | U82: =23*5 -> 115
B83: =B78 -> 14000 | C83: 1.5 | D83: =B83*D81 -> 126 | E83: =D83*C83 -> 189 | F83: 20 | G83: = | H83: =E83*F83 -> 3780 | L83: =L78 -> 140000 | M83: 1.5 | N83: =L83*N81 -> 1260 | O83: =N83*M83 -> 1890 | P83: 20 | Q83: = | R83: =O83*P83 -> 37800 | U83: =U80+U81+U82 -> 385
A85: 9 | B85: Base estabilizada granulometricamente com mistura solo brita (70% - 30%) em usina com material de jazida e brita comercial | K85: 9 | L85: Base ou sub-base de brita graduada com brita comercial
B87: Extensão (m) | D87: Largura (m) | F87: Espessura (m) | H87: Volume (m3) | L87: Extensão (m) | N87: Largura (m) | P87: Espessura (m) | R87: Volume (m3)
B88: =$E$1 -> 2000 | C88: x | D88: =$E$2 -> 7 | E88: x | F88: 0.15 | G88: = | H88: =B88*D88*F88 -> 2100 | L88: =E1*$I$1 -> 20000 | M88: x | N88: =$E$2 -> 7 | O88: x | P88: 0.15 | Q88: = | R88: =L88*N88*P88 -> 21000
A90: 10 | B90: Regularização do subleito | K90: 10 | L90: Regularização do subleito
B92: Extensão (m) | D92: Largura (m) | H92: area (m2) | L92: Extensão (m) | N92: Largura (m) | R92: area (m2)
B93: =$E$1 -> 2000 | C93: x | D93: =$E$2 -> 7 | G93: = | H93: =B93*D93 -> 14000 | L93: =E1*$I$1 -> 20000 | M93: x | N93: =$E$2 -> 7 | Q93: = | R93: =L93*N93 -> 140000
B95: SINALIZAÇÃO | L95: SINALIZAÇÃO
A97: 11 | B97: Fornecimento e implantação de placa de regulamentação em aço D = 0,60 m - película retrorrefletiva tipo I + SI | K97: 11 | L97: Fornecimento e implantação de placa de regulamentação em aço D = 0,60 m - película retrorrefletiva tipo I + SI
B99: Extensão (km) | D99: Quant. (un) | H99: Quant. (un) | L99: Extensão (km) | N99: Quant. (un) | R99: Quant. (un)
B100: =$E$4 -> 2 | C100: x | D100: 0.5 | G100: = | H100: =B100*D100 -> 1 | L100: =$E$4*$I$1 -> 20 | M100: x | N100: 0.5 | Q100: = | R100: =L100*N100 -> 10
A103: 12 | B103: Fornecimento e implantação de suporte metálico galvanizado para placa de regulamentação - D = 0,60 m | K103: 12 | L103: Fornecimento e implantação de suporte metálico galvanizado para placa de regulamentação - D = 0,60 m
B105: Extensão (km) | D105: Quant. (un) | H105: Quant. (un) | L105: Extensão (km) | N105: Quant. (un) | R105: Quant. (un)
B106: =$E$4 -> 2 | C106: x | D106: 0.5 | G106: = | H106: =B106*D106 -> 1 | L106: =$E$4*$I$1 -> 20 | M106: x | N106: 0.5 | Q106: = | R106: =L106*N106 -> 10
A108: 13 | B108: Pintura de faixa com tinta acrílica - espessura de 0,4 mm (bordos) | K108: 13 | L108: Pintura de faixa com tinta acrílica - espessura de 0,4 mm (bordos)
B110: Extensão (m) | D110: Espessura (m) | H110: Quant. (m²) | L110: Extensão (m) | N110: Espessura (m) | R110: Quant. (m²)
B111: =E1 -> 2000 | C111: x | D111: 0.1 | G111: = | H111: =B111*D111 -> 200 | L111: =E1*I1 -> 20000 | M111: x | N111: 0.1 | Q111: = | R111: =L111*N111 -> 2000
B113: Pintura de faixa com tinta acrílica - espessura de 0,4 mm (faixa central) | L113: Pintura de faixa com tinta acrílica - espessura de 0,4 mm (faixa central)
H115: Quant. (m²) | R115: Quant. (m²)
H116: =H111*0.4 -> 80 | R116: =R111*0.4 -> 800
B119: DRENAGEM | L119: DRENAGEM
A120: 14 | B120: Meio-fio de concreto - MFC 03 - areia e brita comerciais - fôrma de madeira | K120: 14 | L120: Meio-fio de concreto - MFC 03 - areia e brita comerciais - fôrma de madeira
B122: Extensão (m) | D122: Quant. (un) | H122: Extensão(m) | L122: Extensão (m) | N122: Quant. (un) | R122: Extensão(m)
B123: =$E$1 -> 2000 | C123: x | D123: 2 | G123: = | H123: =B123*D123 -> 4000 | L123: =$E$1*$I$1 -> 20000 | M123: x | N123: 2 | Q123: = | R123: =L123*N123 -> 40000
B125: SERVIÇOS COMPLEMENTARES | L125: SERVIÇOS COMPLEMENTARES
A126: 15 | K126: 15
B128: Extensão (m) | D128: Largura (m) | G128: 0.1 | H128: extensão (m) | L128: Extensão (m) | N128: Largura (m) | Q128: 0.1 | R128: extensão (m)
B129: =$E$1 -> 2000 | C129: x | D129: 1 | E129: x | G129: = | H129: =G128*B129 -> 200 | L129: =$E$1*I1 -> 20000 | M129: x | N129: 1 | O129: x | Q129: = | R129: =Q128*L129 -> 2000
B132: PROJETO EXECUTIVO | L132: PROJETO EXECUTIVO
A133: 16 | B133: Projeto Executivo | K133: 16 | L133: Projeto Executivo
B135: Extensão (m) | D135: Largura (m) | F135: Quant. (un) | H135: Área (m²) | L135: Extensão (m) | N135: Largura (m) | P135: Quant. (un) | R135: Área (m²)
B136: =$E$1 -> 2000 | C136: x | D136: =E2 -> 7 | E136: x | F136: 1 | G136: = | H136: =B136*D136 -> 14000 | L136: =$E$1*I1 -> 20000 | M136: x | N136: =D136 -> 7 | O136: x | P136: 1 | Q136: = | R136: =L136*N136 -> 140000
B138: CONTROLE TECNOLOGICO - OBRA | L138: CONTROLE TECNOLOGICO - OBRA
A139: 17 | B139: Projeto Executivo | K139: 17 | L139: Projeto Executivo
B141: Extensão (m) | D141: Largura (m) | F141: Quant. (un) | H141: meses | L141: Extensão (m) | N141: Largura (m) | P141: Quant. (un) | R141: meses
G142: = | H142: =B10/2 -> 0.5 | Q142: = | R142: =0.5*I1 -> 5

Sheet SINTÉTICO SICRO
A1: CGCIT | B1: SISTEMA DE CUSTOS REFERENCIAIS DE OBRAS - SICRO | D1: DNIT
A2: CGCIT | B2: Pernambuco - Julho/2023
A3: Código | B3: Descrição do Serviço | C3: Unidade | D3: Custo Unitário (R$)
A4: 307731 | B4: Aparelho de apoio de neoprene fretado para estruturas moldadas no local - fornecimento e instalação | C4: dm³ | D4: 114.37
A5: 307732 | B5: Aparelho de apoio de neoprene fretado para estruturas pré-moldadas - fornecimento e instalação | C5: dm³ | D5: 91.31
A6: 308308 | B6: Aparelho de apoio metálico elastomérico fixo com capacidade de 1.500 kN - fornecimento e instalação | C6: un | D6: 14232.94
A7: 308313 | B7: Aparelho de apoio metálico elastomérico fixo com capacidade de 10.000 kN - fornecimento e instalação | C7: un | D7: 93251.58
A8: 308309 | B8: Aparelho de apoio metálico elastomérico fixo com capacidade de 2.500 kN - fornecimento e instalação | C8: un | D8: 23245.13
A9: 308310 | B9: Aparelho de apoio metálico elastomérico fixo com capacidade de 4.000 kN - fornecimento e instalação | C9: un | D9: 37431.68
A10: 308311 | B10: Aparelho de apoio metálico elastomérico fixo com capacidade de 5.500 kN - fornecimento e instalação | C10: un | D10: 50233.48
A11: 308312 | B11: Aparelho de apoio metálico elastomérico fixo com capacidade de 7.500 kN - fornecimento e instalação | C11: un | D11: 68907.37
A12: 308307 | B12: Aparelho de apoio metálico elastomérico fixo com capacidade de 700 kN - fornecimento e instalação | C12: un | D12: 10157.54
A13: 308322 | B13: Aparelho de apoio metálico elastomérico multidirecional com capacidade de 1.500 kN - fornecimento e instalação | C13: un | D13: 9166.9
A14: 308327 | B14: Aparelho de apoio metálico elastomérico multidirecional com capacidade de 10.000 kN - fornecimento e instalação | C14: un | D14: 59662.39
A15: 308323 | B15: Aparelho de apoio metálico elastomérico multidirecional com capacidade de 2.500 kN - fornecimento e instalação | C15: un | D15: 12741.93
A16: 308324 | B16: Aparelho de apoio metálico elastomérico multidirecional com capacidade de 4.000 kN - fornecimento e instalação | C16: un | D16: 21220.45
A17: 308325 | B17: Aparelho de apoio metálico elastomérico multidirecional com capacidade de 5.500 kN - fornecimento e instalação | C17: un | D17: 30477.33
A18: 308326 | B18: Aparelho de apoio metálico elastomérico multidirecional com capacidade de 7.500 kN - fornecimento e instalação | C18: un | D18: 43107.87
A19: 308321 | B19: Aparelho de apoio metálico elastomérico multidirecional com capacidade de 700 kN - fornecimento e instalação | C19: un | D19: 5299.19
A20: 308315 | B20: Aparelho de apoio metálico elastomérico unidirecional com capacidade de 1.500 kN - fornecimento e instalação | C20: un | D20: 10847.95
A21: 308320 | B21: Aparelho de apoio metálico elastomérico unidirecional com capacidade de 10.000 kN - fornecimento e instalação | C21: un | D21: 63435.82
A22: 308316 | B22: Aparelho de apoio metálico elastomérico unidirecional com capacidade de 2.500 kN - fornecimento e instalação | C22: un | D22: 14876.26
A23: 308317 | B23: Aparelho de apoio metálico elastomérico unidirecional com capacidade de 4.000 kN - fornecimento e instalação | C23: un | D23: 26596.22
A24: 308318 | B24: Aparelho de apoio metálico elastomérico unidirecional com capacidade de 5.500 kN - fornecimento e instalação | C24: un | D24: 34556.56
A25: 308319 | B25: Aparelho de apoio metálico elastomérico unidirecional com capacidade de 7.500 kN - fornecimento e instalação | C25: un | D25: 47951.7
A26: 308314 | B26: Aparelho de apoio metálico elastomérico unidirecional com capacidade de 700 kN - fornecimento e instalação | C26: un | D26: 6711.42
A27: 308250 | B27: Aparelho de apoio metálico esférico fixo com capacidade de 1.000 kN - fornecimento e instalação | C27: un | D27: 5816.51
A28: 308251 | B28: Aparelho de apoio metálico esférico fixo com capacidade de 1.500 kN - fornecimento e instalação | C28: un | D28: 8643.05
A29: 308268 | B29: Aparelho de apoio metálico esférico fixo com capacidade de 10.000 kN - fornecimento e instalação | C29: un | D29: 129106.67
A30: 308252 | B30: Aparelho de apoio metálico esférico fixo com capacidade de 2.000 kN - fornecimento e instalação | C30: un | D30: 10932.37
A31: 308253 | B31: Aparelho de apoio metálico esférico fixo com capacidade de 2.500 kN - fornecimento e instalação | C31: un | D31: 13789.89
A32: 308254 | B32: Aparelho de apoio metálico esférico fixo com capacidade de 3.000 kN - fornecimento e instalação | C32: un | D32: 15837.67
A33: 308255 | B33: Aparelho de apoio metálico esférico fixo com capacidade de 3.500 kN - fornecimento e instalação | C33: un | D33: 19125.76
A34: 308256 | B34: Aparelho de apoio metálico esférico fixo com capacidade de 4.000 kN - fornecimento e instalação | C34: un | D34: 22544.02
A35: 308257 | B35: Aparelho de apoio metálico esférico fixo com capacidade de 4.500 kN - fornecimento e instalação | C35: un | D35: 57130.3
A36: 308258 | B36: Aparelho de apoio metálico esférico fixo com capacidade de 5.000 kN - fornecimento e instalação | C36: un | D36: 63516.55
A37: 308259 | B37: Aparelho de apoio metálico esférico fixo com capacidade de 5.500 kN - fornecimento e instalação | C37: un | D37: 68874.8
A38: 308260 | B38: Aparelho de apoio metálico esférico fixo com capacidade de 6.000 kN - fornecimento e instalação | C38: un | D38: 74285.23
A39: 308261 | B39: Aparelho de apoio metálico esférico fixo com capacidade de 6.500 kN - fornecimento e instalação | C39: un | D39: 84408.89
A40: 308262 | B40: Aparelho de apoio metálico esférico fixo com capacidade de 7.000 kN - fornecimento e instalação | C40: un | D40: 87108.39
A41: 308263 | B41: Aparelho de apoio metálico esférico fixo com capacidade de 7.500 kN - fornecimento e instalação | C41: un | D41: 97318.81
A42: 308264 | B42: Aparelho de apoio metálico esférico fixo com capacidade de 8.000 kN - fornecimento e instalação | C42: un | D42: 104059.99
A43: 308265 | B43: Aparelho de apoio metálico esférico fixo com capacidade de 8.500 kN - fornecimento e instalação | C43: un | D43: 106592.9
A44: 308266 | B44: Aparelho de apoio metálico esférico fixo com capacidade de 9.000 kN - fornecimento e instalação | C44: un | D44: 115190.03
A45: 308267 | B45: Aparelho de apoio metálico esférico fixo com capacidade de 9.500 kN - fornecimento e instalação | C45: un | D45: 121462.9
A46: 308288 | B46: Aparelho de apoio metálico esférico multidirecional com capacidade de 1.000 kN - fornecimento e instalação | C46: un | D46: 12952.87
A47: 308289 | B47: Aparelho de apoio metálico esférico multidirecional com capacidade de 1.500 kN - fornecimento e instalação | C47: un | D47: 18318.64
A48: 308306 | B48: Aparelho de apoio metálico esférico multidirecional com capacidade de 10.000 kN - fornecimento e instalação | C48: un | D48: 121768.48
A49: 308290 | B49: Aparelho de apoio metálico esférico multidirecional com capacidade de 2.000 kN - fornecimento e instalação | C49: un | D49: 24368.14
A50: 308291 | B50: Aparelho de apoio metálico esférico multidirecional com capacidade de 2.500 kN - fornecimento e instalação | C50: un | D50: 29042.54
A51: 308292 | B51: Aparelho de apoio metálico esférico multidirecional com capacidade de 3.000 kN - fornecimento e instalação | C51: un | D51: 34028.38
A52: 308293 | B52: Aparelho de apoio metálico esférico multidirecional com capacidade de 3.500 kN - fornecimento e instalação | C52: un | D52: 38675.57
A53: 308294 | B53: Aparelho de apoio metálico esférico multidirecional com capacidade de 4.000 kN - fornecimento e instalação | C53: un | D53: 44121.76
A54: 308295 | B54: Aparelho de apoio metálico esférico multidirecional com capacidade de 4.500 kN - fornecimento e instalação | C54: un | D54: 51127.32
A55: 308296 | B55: Aparelho de apoio metálico esférico multidirecional com capacidade de 5.000 kN - fornecimento e instalação | C55: un | D55: 56926.66
A56: 308297 | B56: Aparelho de apoio metálico esférico multidirecional com capacidade de 5.500 kN - fornecimento e instalação | C56: un | D56: 61690.98
A57: 308298 | B57: Aparelho de apoio metálico esférico multidirecional com capacidade de 6.000 kN - fornecimento e instalação | C57: un | D57: 70358.52
A58: 308299 | B58: Aparelho de apoio metálico esférico multidirecional com capacidade de 6.500 kN - fornecimento e instalação | C58: un | D58: 76022.66
A59: 308300 | B59: Aparelho de apoio metálico esférico multidirecional com capacidade de 7.000 kN - fornecimento e instalação | C59: un | D59: 81848.46
A60: 308301 | B60: Aparelho de apoio metálico esférico multidirecional com capacidade de 7.500 kN - fornecimento e instalação | C60: un | D60: 88337.2
A61: 308302 | B61: Aparelho de apoio metálico esférico multidirecional com capacidade de 8.000 kN - fornecimento e instalação | C61: un | D61: 94124.93
A62: 308303 | B62: Aparelho de apoio metálico esférico multidirecional com capacidade de 8.500 kN - fornecimento e instalação | C62: un | D62: 103573.17
A63: 308304 | B63: Aparelho de apoio metálico esférico multidirecional com capacidade de 9.000 kN - fornecimento e instalação | C63: un | D63: 109143.59
A64: 308305 | B64: Aparelho de apoio metálico esférico multidirecional com capacidade de 9.500 kN - fornecimento e instalação | C64: un | D64: 115946.95
A65: 308269 | B65: Aparelho de apoio metálico esférico unidirecional com capacidade de 1.000 kN - fornecimento e instalação | C65: un | D65: 10154.57
A66: 308270 | B66: Aparelho de apoio metálico esférico unidirecional com capacidade de 1.500 kN - fornecimento e instalação | C66: un | D66: 14764.88
A67: 308287 | B67: Aparelho de apoio metálico esférico unidirecional com capacidade de 10.000 kN - fornecimento e instalação | C67: un | D67: 135669.5
A68: 308271 | B68: Aparelho de apoio metálico esférico unidirecional com capacidade de 2.000 kN - fornecimento e instalação | C68: un | D68: 18025.59
A69: 308272 | B69: Aparelho de apoio metálico esférico unidirecional com capacidade de 2.500 kN - fornecimento e instalação | C69: un | D69: 21255.61
A70: 308273 | B70: Aparelho de apoio metálico esférico unidirecional com capacidade de 3.000 kN - fornecimento e instalação | C70: un | D70: 26092.71
A71: 308274 | B71: Aparelho de apoio metálico esférico unidirecional com capacidade de 3.500 kN - fornecimento e instalação | C71: un | D71: 30026.4
A72: 308275 | B72: Aparelho de apoio metálico esférico unidirecional com capacidade de 4.000 kN - fornecimento e instalação | C72: un | D72: 39119.61
A73: 308276 | B73: Aparelho de apoio metálico esférico unidirecional com capacidade de 4.500 kN - fornecimento e instalação | C73: un | D73: 59874.23
A74: 308277 | B74: Aparelho de apoio metálico esférico unidirecional com capacidade de 5.000 kN - fornecimento e instalação | C74: un | D74: 66288.58
A75: 308278 | B75: Aparelho de apoio metálico esférico unidirecional com capacidade de 5.500 kN - fornecimento e instalação | C75: un | D75: 72036.23
A76: 308279 | B76: Aparelho de apoio metálico esférico unidirecional com capacidade de 6.000 kN - fornecimento e instalação | C76: un | D76: 75765.14
A77: 308280 | B77: Aparelho de apoio metálico esférico unidirecional com capacidade de 6.500 kN - fornecimento e instalação | C77: un | D77: 86554.84
A78: 308281 | B78: Aparelho de apoio metálico esférico unidirecional com capacidade de 7.000 kN - fornecimento e instalação | C78: un | D78: 92983.68
A79: 308282 | B79: Aparelho de apoio metálico esférico unidirecional com capacidade de 7.500 kN - fornecimento e instalação | C79: un | D79: 99995.75
A80: 308283 | B80: Aparelho de apoio metálico esférico unidirecional com capacidade de 8.000 kN - fornecimento e instalação | C80: un | D80: 106241.96
A81: 308284 | B81: Aparelho de apoio metálico esférico unidirecional com capacidade de 8.500 kN - fornecimento e instalação | C81: un | D81: 114902.95
A82: 308285 | B82: Aparelho de apoio metálico esférico unidirecional com capacidade de 9.000 kN - fornecimento e instalação | C82: un | D82: 122009.82
A83: 308286 | B83: Aparelho de apoio metálico esférico unidirecional com capacidade de 9.500 kN - fornecimento e instalação | C83: un | D83: 129158.48
A84: 307733 | B84: Junta de dilatação em elastômero e perfil VV - L = 20 mm e H = 40 mm - fornecimento e instalação | C84: m | D84: 459.42
A85: 307734 | B85: Junta de dilatação em elastômero e perfil VV - L = 25 mm e H = 50 mm - fornecimento e instalação | C85: m | D85: 594.31
A86: 307735 | B86: Junta de dilatação em elastômero e perfil VV - L = 35 mm e H = 60 mm - fornecimento e instalação | C86: m | D86: 1001.73
A87: 307736 | B87: Junta de dilatação em elastômero e perfil VV - L = 40 mm e H = 70 mm - fornecimento e instalação | C87: m | D87: 1362.96
A88: 307737 | B88: Junta de dilatação em elastômero e perfil VV - L = 50 mm e H = 80 mm - fornecimento e instalação | C88: m | D88: 1662.89
A89: 307730 | B89: Junta de dilatação em perfil extrudado de borracha vulcanizada | C89: m | D89: 0
A90: 307084 | B90: Lábios poliméricos em junta de pavimento de concreto - L = 20 mm e H = 30 mm - confecção e assentamento | C90: m | D90: 30.25
A91: 407818 | B91: Armação em aço CA-25 - fornecimento, preparo e colocação | C91: kg | D91: 12.07
A92: 407819 | B92: Armação em aço CA-50 - fornecimento, preparo e colocação | C92: kg | D92: 11.94
A93: 407820 | B93: Armação em aço CA-60 - fornecimento, preparo e colocação | C93: kg | D93: 12.99
A94: 407740 | B94: Chumbador tipo espera em aço CA-25 para fixação de estrutura metálica em concreto - fornecimento e instalação | C94: kg | D94: 14.78
A95: 408037 | B95: Luva de emenda com rosca cônica para aço CA-50 - D = 12,5 mm - fornecimento e instalação | C95: un | D95: 22.69
A96: 408038 | B96: Luva de emenda com rosca cônica para aço CA-50 - D = 16 mm - fornecimento e instalação | C96: un | D96: 33.03
A97: 408039 | B97: Luva de emenda com rosca cônica para aço CA-50 - D = 20 mm - fornecimento e instalação | C97: un | D97: 43.51
A98: 408041 | B98: Luva de emenda com rosca cônica para aço CA-50 - D = 25 mm - fornecimento e instalação | C98: un | D98: 61
A99: 408042 | B99: Luva de emenda com rosca cônica para aço CA-50 - D = 32 mm - fornecimento e instalação | C99: un | D99: 91.53
A100: 408031 | B100: Luva de emenda prensada para aço CA-50 - D = 12,5 mm - fornecimento e instalação | C100: un | D100: 21.46
A101: 408032 | B101: Luva de emenda prensada para aço CA-50 - D = 16 mm - fornecimento e instalação | C101: un | D101: 29.14
A102: 408033 | B102: Luva de emenda prensada para aço CA-50 - D = 20 mm - fornecimento e instalação | C102: un | D102: 40.96
A103: 408035 | B103: Luva de emenda prensada para aço CA-50 - D = 25 mm - fornecimento e instalação | C103: un | D103: 75.19
A104: 408036 | B104: Luva de emenda prensada para aço CA-50 - D = 32 mm - fornecimento e instalação | C104: un | D104: 145.53
A105: 408067 | B105: Tela de aço eletrossoldada - fornecimento, preparo e colocação | C105: kg | D105: 12.06
A106: 407743 | B106: Treliça nervurada três barras longitudinais interligadas por duas diagonais sinusoidal - fornecimento e instalação | C106: kg | D106: 13.19
A107: 607137 | B107: Arco metálico galvanizado tipo MP 152S - arco alto - vão = 10,08 m e altura = 6,12 m - aterro rodoviário mínimo = 0,90 m e máximo = 5,00 m - areia e brita comerciais | C107: m | D107: 60265.54
A108: 606785 | B108: Arco metálico galvanizado tipo MP 152S - arco alto - vão = 10,08 m e altura = 6,12 m - aterro rodoviário mínimo = 0,90 m e máximo = 5,00 m - areia extraída e brita produzida | C108: m | D108: 59695.72
A109: 607139 | B109: Arco metálico galvanizado tipo MP 152S - arco alto - vão = 10,31 m e altura = 6,17 m - aterro rodoviário mínimo = 0,90 m e máximo = 4,90 m - areia e brita comerciais | C109: m | D109: 61068.51
A110: 606787 | B110: Arco metálico galvanizado tipo MP 152S - arco alto - vão = 10,31 m e altura = 6,17 m - aterro rodoviário mínimo = 0,90 m e máximo = 4,90 m - areia extraída e brita produzida | C110: m | D110: 60184.33
A111: 607140 | B111: Arco metálico galvanizado tipo MP 152S - arco alto - vão = 10,36 m e altura = 5,38 m - aterro rodoviário mínimo = 1,20 m e máximo = 3,60 m - areia e brita comerciais | C111: m | D111: 55824.3
A112: 606788 | B112: Arco metálico galvanizado tipo MP 152S - arco alto - vão = 10,36 m e altura = 5,38 m - aterro rodoviário mínimo = 1,20 m e máximo = 3,60 m - areia extraída e brita produzida | C112: m | D112: 55627.22
A113: 607141 | B113: Arco metálico galvanizado tipo MP 152S - arco alto - vão = 10,54 m e altura = 6,05 m - aterro rodoviário mínimo = 1,20 m e máximo = 4,20 m - areia e brita comerciais | C113: m | D113: 62117.38
A114: 606789 | B114: Arco metálico galvanizado tipo MP 152S - arco alto - vão = 10,54 m e altura = 6,05 m - aterro rodoviário mínimo = 1,20 m e máximo = 4,20 m - areia extraída e brita produzida | C114: m | D114: 61525.19
A115: 607144 | B115: Arco metálico galvanizado tipo MP 152S - arco alto - vão = 10,57 m e altura = 5,41 m - aterro rodoviário mínimo = 1,20 m e máximo = 4,10 m - areia e brita comerciais | C115: m | D115: 72982.52
A116: 606792 | B116: Arco metálico galvanizado tipo MP 152S - arco alto - vão = 10,57 m e altura = 5,41 m - aterro rodoviário mínimo = 1,20 m e máximo = 4,10 m - areia extraída e brita produzida | C116: m | D116: 72441.62
A117: 607142 | B117: Arco metálico galvanizado tipo MP 152S - arco alto - vão = 10,74 m e altura = 6,48 m - aterro rodoviário mínimo = 1,20 m e máximo = 4,70 m - areia e brita comerciais | C117: m | D117: 65139.89
A118: 606790 | B118: Arco metálico galvanizado tipo MP 152S - arco alto - vão = 10,74 m e altura = 6,48 m - aterro rodoviário mínimo = 1,20 m e máximo = 4,70 m - areia extraída e brita produzida | C118: m | D118: 64502.92
A119: 607145 | B119: Arco metálico galvanizado tipo MP 152S - arco alto - vão = 10,77 m e altura = 6,10 m - aterro rodoviário mínimo = 1,20 m e máximo = 4,70 m - areia e brita comerciais | C119: m | D119: 80493.02
A120: 606793 | B120: Arco metálico galvanizado tipo MP 152S - arco alto - vão = 10,77 m e altura = 6,10 m - aterro rodoviário mínimo = 1,20 m e máximo = 4,70 m - areia extraída e brita produzida | C120: m | D120: 79888.07
A121: 607146 | B121: Arco metálico galvanizado tipo MP 152S - arco alto - vão = 10,97 m e altura = 6,53 m - aterro rodoviário mínimo = 1,20 m e máximo = 4,70 m - areia e brita comerciais | C121: m | D121: 83968.19
A122: 606794 | B122: Arco metálico galvanizado tipo MP 152S - arco alto - vão = 10,97 m e altura = 6,53 m - aterro rodoviário mínimo = 1,20 m e máximo = 4,70 m - areia extraída e brita produzida | C122: m | D122: 83311.6
A123: 607143 | B123: Arco metálico galvanizado tipo MP 152S - arco alto - vão = 11,35 m e altura = 7,12 m - aterro rodoviário mínimo = 1,20 m e máximo = 4,70 m - areia e brita comerciais | C123: m | D123: 70343.67
A124: 606791 | B124: Arco metálico galvanizado tipo MP 152S - arco alto - vão = 11,35 m e altura = 7,12 m - aterro rodoviário mínimo = 1,20 m e máximo = 4,70 m - areia extraída e brita produzida | C124: m | D124: 69610.34
A125: 607147 | B125: Arco metálico galvanizado tipo MP 152S - arco alto - vão = 11,58 m e altura = 7,16 m - aterro rodoviário mínimo = 1,20 m e máximo = 6,40 m - areia e brita comerciais | C125: m | D125: 90567.18
A126: 606795 | B126: Arco metálico galvanizado tipo MP 152S - arco alto - vão = 11,58 m e altura = 7,16 m - aterro rodoviário mínimo = 1,20 m e máximo = 6,40 m - areia extraída e brita produzida | C126: m | D126: 89810.58
A127: 607112 | B127: Arco metálico galvanizado tipo MP 152S - arco alto - vão = 6,12 m e altura = 2,77 m - aterro rodoviário mínimo = 0,75 m e máximo = 5,40 m - areia e brita comerciais | C127: m | D127: 29246.26
A128: 606760 | B128: Arco metálico galvanizado tipo MP 152S - arco alto - vão = 6,12 m e altura = 2,77 m - aterro rodoviário mínimo = 0,75 m e máximo = 5,40 m - areia extraída e brita produzida | C128: m | D128: 29047.93
A129: 607113 | B129: Arco metálico galvanizado tipo MP 152S - arco alto - vão = 6,30 m e altura = 3,68 m - aterro rodoviário mínimo = 0,75 m e máximo = 7,50 m - areia e brita comerciais | C129: m | D129: 34476.98
A130: 606761 | B130: Arco metálico galvanizado tipo MP 152S - arco alto - vão = 6,30 m e altura = 3,68 m - aterro rodoviário mínimo = 0,75 m e máximo = 7,50 m - areia extraída e brita produzida | C130: m | D130: 34249
A131: 606762 | B131: Arco metálico galvanizado tipo MP 152S - arco alto - vão = 6,55 m e altura = 3,56 m - aterro rodoviário mínimo = 0,75 m e máximo = 4,9 m - areia extraída e brita produzida | C131: m | D131: 34625.27
A132: 607114 | B132: Arco metálico galvanizado tipo MP 152S - arco alto - vão = 6,55 m e altura = 3,56 m - aterro rodoviário mínimo = 0,75 m e máximo = 4,90 m - areia e brita comerciais | C132: m | D132: 34857.55
A133: 607116 | B133: Arco metálico galvanizado tipo MP 152S - arco alto - vão = 6,78 m e altura = 3,61 m - aterro rodoviário mínimo = 0,75 m e máximo = 4,80 m - areia e brita comerciais | C133: m | D133: 36373.45
A134: 606764 | B134: Arco metálico galvanizado tipo MP 152S - arco alto - vão = 6,78 m e altura = 3,61 m - aterro rodoviário mínimo = 0,75 m e máximo = 4,80 m - areia extraída e brita produzida | C134: m | D134: 36131.39
A135: 607115 | B135: Arco metálico galvanizado tipo MP 152S - arco alto - vão = 6,96 m e altura = 4,42 m - aterro rodoviário mínimo = 0,75 m e máximo = 8,10 m - areia e brita comerciais | C135: m | D135: 41288.83
A136: 606763 | B136: Arco metálico galvanizado tipo MP 152S - arco alto - vão = 6,96 m e altura = 4,42 m - aterro rodoviário mínimo = 0,75 m e máximo = 8,10 m - areia extraída e brita produzida | C136: m | D136: 40997.61
A137: 607117 | B137: Arco metálico galvanizado tipo MP 152S - arco alto - vão = 6,99 m e altura = 4,27 m - aterro rodoviário mínimo = 0,75 m e máximo = 5,70 m - areia e brita comerciais | C137: m | D137: 41270.55
A138: 606765 | B138: Arco metálico galvanizado tipo MP 152S - arco alto - vão = 6,99 m e altura = 4,27 m - aterro rodoviário mínimo = 0,75 m e máximo = 5,70 m - areia extraída e brita produzida | C138: m | D138: 40987.33
A139: 607118 | B139: Arco metálico galvanizado tipo MP 152S - arco alto - vão = 7,01 m e altura = 3,63 m - aterro rodoviário mínimo = 0,75 m e máximo = 4,60 m - areia e brita comerciais | C139: m | D139: 37011.17
A140: 606766 | B140: Arco metálico galvanizado tipo MP 152S - arco alto - vão = 7,01 m e altura = 3,63 m - aterro rodoviário mínimo = 0,75 m e máximo = 4,60 m - areia extraída e brita produzida | C140: m | D140: 36761.28
A141: 607120 | B141: Arco metálico galvanizado tipo MP 152S - arco alto - vão = 7,24 m e altura = 3,68 m - aterro rodoviário mínimo = 0,90 m e máximo = 4,4 m - areia e brita comerciais | C141: m | D141: 37685.64
A142: 606768 | B142: Arco metálico galvanizado tipo MP 152S - arco alto - vão = 7,24 m e altura = 3,68 m - aterro rodoviário mínimo = 0,90 m e máximo = 4,40 m - areia extraída e brita produzida | C142: m | D142: 37422.49
A143: 607119 | B143: Arco metálico galvanizado tipo MP 152S - arco alto - vão = 7,42 m e altura = 4,52 m - aterro rodoviário mínimo = 0,90 m e máximo = 6,40 m - areia e brita comerciais | C143: m | D143: 43289.85
A144: 606767 | B144: Arco metálico galvanizado tipo MP 152S - arco alto - vão = 7,42 m e altura = 4,52 m - aterro rodoviário mínimo = 0,90 m e máximo = 6,40 m - areia extraída e brita produzida | C144: m | D144: 42968.93
A145: 607121 | B145: Arco metálico galvanizado tipo MP 152S - arco alto - vão = 7,47 m e altura = 4,19 m - aterro rodoviário mínimo = 0,90 m e máximo = 4,30 m - areia e brita comerciais | C145: m | D145: 40803.59
A146: 606769 | B146: Arco metálico galvanizado tipo MP 152S - arco alto - vão = 7,47 m e altura = 4,19 m - aterro rodoviário mínimo = 0,90 m e máximo = 4,30 m - areia extraída e brita produzida | C146: m | D146: 40503.57
A147: 607123 | B147: Arco metálico galvanizado tipo MP 152S - arco alto - vão = 7,67 m e altura = 3,99 m - aterro rodoviário mínimo = 0,90 m e máximo = 4,10 m - areia e brita comerciais | C147: m | D147: 40256.71
A148: 606771 | B148: Arco metálico galvanizado tipo MP 152S - arco alto - vão = 7,67 m e altura = 3,99 m - aterro rodoviário mínimo = 0,90 m e máximo = 4,10 m - areia extraída e brita produzida | C148: m | D148: 39957.81
A149: 607122 | B149: Arco metálico galvanizado tipo MP 152S - arco alto - vão = 7,85 m e altura = 4,60 m - aterro rodoviário mínimo = 0,90 m e máximo = 6,00 m - areia e brita comerciais | C149: m | D149: 44631.12
A150: 606770 | B150: Arco metálico galvanizado tipo MP 152S - arco alto - vão = 7,85 m e altura = 4,60 m - aterro rodoviário mínimo = 0,90 m e máximo = 6,00 m - areia extraída e brita produzida | C150: m | D150: 44286.39
A151: 607125 | B151: Arco metálico galvanizado tipo MP 152S - arco alto - vão = 7,90 m e altura = 4,04 m - aterro rodoviário mínimo = 0,90 m e máximo = 4,00 m - areia e brita comerciais | C151: m | D151: 41599.68
A152: 606773 | B152: Arco metálico galvanizado tipo MP 152S - arco alto - vão = 7,90 m e altura = 4,04 m - aterro rodoviário mínimo = 0,90 m e máximo = 4,00 m - areia extraída e brita produzida | C152: m | D152: 41285.18
A153: 607124 | B153: Arco metálico galvanizado tipo MP 152S - arco alto - vão = 8,08 m e altura = 4,65 m - aterro rodoviário mínimo = 0,90 m e máximo = 5,80 m - areia e brita comerciais | C153: m | D153: 45298.39
A154: 606772 | B154: Arco metálico galvanizado tipo MP 152S - arco alto - vão = 8,08 m e altura = 4,65 m - aterro rodoviário mínimo = 0,90 m e máximo = 5,80 m - areia extraída e brita produzida | C154: m | D154: 44942.63
A155: 607126 | B155: Arco metálico galvanizado tipo MP 152S - arco alto - vão = 8,31 m e altura = 4,70 m - aterro rodoviário mínimo = 0,90 m e máximo = 5,60 m - areia e brita comerciais | C155: m | D155: 46548.73
A156: 606774 | B156: Arco metálico galvanizado tipo MP 152S - arco alto - vão = 8,31 m e altura = 4,70 m - aterro rodoviário mínimo = 0,90 m e máximo = 5,60 m - areia extraída e brita produzida | C156: m | D156: 46175.83
A157: 607127 | B157: Arco metálico galvanizado tipo MP 152S - arco alto - vão = 8,36 m e altura = 4,11 m - aterro rodoviário mínimo = 0,90 m e máximo = 3,70 m - areia e brita comerciais | C157: m | D157: 42881.99
A158: 606775 | B158: Arco metálico galvanizado tipo MP 152S - arco alto - vão = 8,36 m e altura = 4,11 m - aterro rodoviário mínimo = 0,90 m e máximo = 3,70 m - areia extraída e brita produzida | C158: m | D158: 42548.6
A159: 607129 | B159: Arco metálico galvanizado tipo MP 152S - arco alto - vão = 8,59 m e altura = 4,39 m - aterro rodoviário mínimo = 0,90 m e máximo = 3,60 m - areia e brita comerciais | C159: m | D159: 44867.46
A160: 606777 | B160: Arco metálico galvanizado tipo MP 152S - arco alto - vão = 8,59 m e altura = 4,39 m - aterro rodoviário mínimo = 0,90 m e máximo = 3,60 m - areia extraída e brita produzida | C160: m | D160: 44502.34
A161: 607128 | B161: Arco metálico galvanizado tipo MP 152S - arco alto - vão = 8,97 m e altura = 5,00 m - aterro rodoviário mínimo = 0,90 m e máximo = 5,80 m - areia e brita comerciais | C161: m | D161: 49311.79
A162: 606776 | B162: Arco metálico galvanizado tipo MP 152S - arco alto - vão = 8,97 m e altura = 5,00 m - aterro rodoviário mínimo = 0,90 m e máximo = 5,80 m - areia extraída e brita produzida | C162: m | D162: 48885.17
A163: 607130 | B163: Arco metálico galvanizado tipo MP 152S - arco alto - vão = 9,17 m e altura = 5,49 m - aterro rodoviário mínimo = 0,90 m e máximo = 5,60 m - areia e brita comerciais | C163: m | D163: 52549.89
A164: 606778 | B164: Arco metálico galvanizado tipo MP 152S - arco alto - vão = 9,17 m e altura = 5,49 m - aterro rodoviário mínimo = 0,90 m e máximo = 5,60 m - areia extraída e brita produzida | C164: m | D164: 52080.97
A165: 607131 | B165: Arco metálico galvanizado tipo MP 152S - arco alto - vão = 9,22 m e altura = 4,70 m - aterro rodoviário mínimo = 0,90 m e máximo = 4,10 m - areia e brita comerciais | C165: m | D165: 49311.39
A166: 606779 | B166: Arco metálico galvanizado tipo MP 152S - arco alto - vão = 9,22 m e altura = 4,70 m - aterro rodoviário mínimo = 0,90 m e máximo = 4,10 m - areia extraída e brita produzida | C166: m | D166: 48896.54
A167: 607133 | B167: Arco metálico galvanizado tipo MP 152S - arco alto - vão = 9,45 m e altura = 4,75 m - aterro rodoviário mínimo = 0,90 m e máximo = 4,00 m - areia e brita comerciais | C167: m | D167: 50048.13
A168: 606781 | B168: Arco metálico galvanizado tipo MP 152S - arco alto - vão = 9,45 m e altura = 4,75 m - aterro rodoviário mínimo = 0,90 m e máximo = 4,00 m - areia extraída e brita produzida | C168: m | D168: 49620.81
A169: 607132 | B169: Arco metálico galvanizado tipo MP 152S - arco alto - vão = 9,63 m e altura = 5,59 m - aterro rodoviário mínimo = 0,90 m e máximo = 5,30 m - areia e brita comerciais | C169: m | D169: 54564.65
A170: 606780 | B170: Arco metálico galvanizado tipo MP 152S - arco alto - vão = 9,63 m e altura = 5,59 m - aterro rodoviário mínimo = 0,90 m e máximo = 5,30 m - areia extraída e brita produzida | C170: m | D170: 54062.85
A171: 607134 | B171: Arco metálico galvanizado tipo MP 152S - arco alto - vão = 9,65 m e altura = 5,41 m - aterro rodoviário mínimo = 0,90 m e máximo = 4,70 m - areia e brita comerciais | C171: m | D171: 54023.41
A172: 606782 | B172: Arco metálico galvanizado tipo MP 152S - arco alto - vão = 9,65 m e altura = 5,41 m - aterro rodoviário mínimo = 0,90 m e máximo = 4,70 m - areia extraída e brita produzida | C172: m | D172: 53533.08
A173: 607136 | B173: Arco metálico galvanizado tipo MP 152S - arco alto - vão = 9,68 m e altura = 5,23 m - aterro rodoviário mínimo = 0,90 m e máximo = 3,90 m - areia e brita comerciais | C173: m | D173: 53303.89
A174: 606784 | B174: Arco metálico galvanizado tipo MP 152S - arco alto - vão = 9,68 m e altura = 5,23 m - aterro rodoviário mínimo = 0,90 m e máximo = 3,90 m - areia extraída e brita produzida | C174: m | D174: 52829.23
A175: 607135 | B175: Arco metálico galvanizado tipo MP 152S - arco alto - vão = 9,86 m e altura = 6,07 m - aterro rodoviário mínimo = 0,90 m e máximo = 5,20 m - areia e brita comerciais | C175: m | D175: 59417.74
A176: 606783 | B176: Arco metálico galvanizado tipo MP 152S - arco alto - vão = 9,86 m e altura = 6,07 m - aterro rodoviário mínimo = 0,90 m e máximo = 5,20 m - areia extraída e brita produzida | C176: m | D176: 58867.49
A177: 607138 | B177: Arco metálico galvanizado tipo MP 152S - arco alto - vão = 9,91 m e altura = 5,28 m - aterro rodoviário mínimo = 0,90 m e máximo = 3,80 m - areia e brita comerciais | C177: m | D177: 54208.62
A178: 606786 | B178: Arco metálico galvanizado tipo MP 152S - arco alto - vão = 9,91 m e altura = 5,28 m - aterro rodoviário mínimo = 0,90 m e máximo = 3,80 m - areia extraída e brita produzida | C178: m | D178: 53702.97
A179: 606842 | B179: Arco metálico galvanizado tipo MP 152S - ovoide - vão = 7,21 m e altura = 7,82 m - aterro rodoviário mínimo = 0,75 m e máximo = 6,70 m - areia e brita comerciais | C179: m | D179: 67560.94
A180: 606832 | B180: Arco metálico galvanizado tipo MP 152S - ovoide - vão = 7,21 m e altura = 7,82 m - aterro rodoviário mínimo = 0,75 m e máximo = 6,70 m - areia extraída e brita produzida | C180: m | D180: 67278.03
A181: 606843 | B181: Arco metálico galvanizado tipo MP 152S - ovoide - vão = 7,31 m e altura = 7,87 m - aterro rodoviário mínimo = 0,90 m e máximo = 6,80 m - areia e brita comerciais | C181: m | D181: 70192.29
A182: 606833 | B182: Arco metálico galvanizado tipo MP 152S - ovoide - vão = 7,31 m e altura = 7,87 m - aterro rodoviário mínimo = 0,90 m e máximo = 6,80 m - areia extraída e brita produzida | C182: m | D182: 69894.89
A183: 606845 | B183: Arco metálico galvanizado tipo MP 152S - ovoide - vão = 7,57 m e altura = 8,44 m - aterro rodoviário mínimo = 0,90 m e máximo = 5,60 m - areia e brita comerciais | C183: m | D183: 72777.49
A184: 606835 | B184: Arco metálico galvanizado tipo MP 152S - ovoide - vão = 7,57 m e altura = 8,44 m - aterro rodoviário mínimo = 0,90 m e máximo = 5,60 m - areia extraída e brita produzida | C184: m | D184: 72481.19
A185: 606844 | B185: Arco metálico galvanizado tipo MP 152S - ovoide - vão = 7,77 m e altura = 7,90 m - aterro rodoviário mínimo = 0,90 m e máximo = 6,80 m - areia e brita comerciais | C185: m | D185: 71004.81
A186: 606834 | B186: Arco metálico galvanizado tipo MP 152S - ovoide - vão = 7,77 m e altura = 7,90 m - aterro rodoviário mínimo = 0,90 m e máximo = 6,80 m - areia extraída e brita produzida | C186: m | D186: 70699.79
A187: 606847 | B187: Arco metálico galvanizado tipo MP 152S - ovoide - vão = 8,13 m e altura = 8,01 m - aterro rodoviário mínimo = 0,90 m e máximo = 3,50 m - areia e brita comerciais | C187: m | D187: 76112.34
A188: 606837 | B188: Arco metálico galvanizado tipo MP 152S - ovoide - vão = 8,13 m e altura = 8,01 m - aterro rodoviário mínimo = 0,90 m e máximo = 3,50 m - areia extraída e brita produzida | C188: m | D188: 75778.74
A189: 606846 | B189: Arco metálico galvanizado tipo MP 152S - ovoide - vão = 8,36 m e altura = 8,23 m - aterro rodoviário mínimo = 0,90 m e máximo = 4,30 m - areia e brita comerciais | C189: m | D189: 76576.05
A190: 606836 | B190: Arco metálico galvanizado tipo MP 152S - ovoide - vão = 8,36 m e altura = 8,23 m - aterro rodoviário mínimo = 0,90 m e máximo = 4,30 m - areia extraída e brita produzida | C190: m | D190: 76238.84
A191: 606848 | B191: Arco metálico galvanizado tipo MP 152S - ovoide - vão = 8,56 m e altura = 8,48 m - aterro rodoviário mínimo = 0,90 m e máximo = 5,30 m - areia e brita comerciais | C191: m | D191: 76414.18
A192: 606838 | B192: Arco metálico galvanizado tipo MP 152S - ovoide - vão = 8,56 m e altura = 8,48 m - aterro rodoviário mínimo = 0,90 m e máximo = 5,30 m - areia extraída e brita produzida | C192: m | D192: 76063.37
A193: 606849 | B193: Arco metálico galvanizado tipo MP 152S - ovoide - vão = 8,71 m e altura = 9,32 m - aterro rodoviário mínimo = 0,90 m e máximo = 6,00 m - areia e brita comerciais | C193: m | D193: 82224.7
A194: 606839 | B194: Arco metálico galvanizado tipo MP 152S - ovoide - vão = 8,71 m e altura = 9,32 m - aterro rodoviário mínimo = 0,90 m e máximo = 6,00 m - areia extraída e brita produzida | C194: m | D194: 81882.67
A195: 606850 | B195: Arco metálico galvanizado tipo MP 152S - ovoide - vão = 9,15 m e altura = 9,04 m - aterro rodoviário mínimo = 0,90 m e máximo = 4,70 m - areia e brita comerciais | C195: m | D195: 83714.95
A196: 606840 | B196: Arco metálico galvanizado tipo MP 152S - ovoide - vão = 9,15 m e altura = 9,04 m - aterro rodoviário mínimo = 0,90 m e máximo = 4,70 m - areia extraída e brita produzida | C196: m | D196: 83340.74
A197: 606851 | B197: Arco metálico galvanizado tipo MP 152S - ovoide - vão = 9,15 m e altura = 9,50 m - aterro rodoviário mínimo = 0,90 m e máximo = 5,70 m - areia e brita comerciais | C197: m | D197: 84443.71
A198: 606841 | B198: Arco metálico galvanizado tipo MP 152S - ovoide - vão = 9,15 m e altura = 9,50 m - aterro rodoviário mínimo = 0,90 m e máximo = 5,70 m - areia extraída e brita produzida | C198: m | D198: 84085.64
A199: 605604 | B199: Argamassa de solo-cimento com 10% de cimento e material de jazida - preparo e injeção em tunnel liner | C199: m³ | D199: 289.49
A200: 605695 | B200: Bueiro metálico com chapas múltiplas MP 100 com revestimento em epóxi - D = 0,60 m - brita comercial | C200: m | D200: 1608.69
... 6173 more rows

Sheet INSUMOS SINAPI
A1: PRECOS DE INSUMOS
A3: MES DE COLETA: 09/2023
A4: LOCALIDADE: 1250 - RECIFE
A5: ENCARGOS SOCIAIS (%) HORISTA 114,55 MENSALISTA 70,11
A7: CODIGO | B7: DESCRICAO DO INSUMO | C7: UNIDADE | D7: ORIGEM DO PRECO | E7: PRECO MEDIANO R$
A8: 38605 | B8: ABERTURA PARA ENCAIXE DE CUBA OU LAVATORIO EM BANCADA DE MARMORE/ GRANITO OU OUTRO TIPO DE PEDRA NATURAL | C8: UN | D8: CR | E8: 159,92
A9: 11270 | B9: ABRACADEIRA DE LATAO PARA FIXACAO DE CABO PARA-RAIO, DIMENSOES 32 X 24 X 24 MM | C9: UN | D9: CR | E9: 3,40
A10: 412 | B10: ABRACADEIRA DE NYLON PARA AMARRACAO DE CABOS, COMPRIMENTO DE *230* X *7,6* MM | C10: UN | D10: CR | E10: 1,13
A11: 414 | B11: ABRACADEIRA DE NYLON PARA AMARRACAO DE CABOS, COMPRIMENTO DE 100 X 2,5 MM | C11: UN | D11: CR | E11: 0,07
A12: 410 | B12: ABRACADEIRA DE NYLON PARA AMARRACAO DE CABOS, COMPRIMENTO DE 150 X *3,6* MM | C12: UN | D12: CR | E12: 0,17
A13: 411 | B13: ABRACADEIRA DE NYLON PARA AMARRACAO DE CABOS, COMPRIMENTO DE 200 X *4,6* MM | C13: UN | D13: C | E13: 0,22
A14: 408 | B14: ABRACADEIRA DE NYLON PARA AMARRACAO DE CABOS, COMPRIMENTO DE 390 X *4,6* MM | C14: UN | D14: CR | E14: 1,09
A15: 39131 | B15: ABRACADEIRA EM ACO PARA AMARRACAO DE ELETRODUTOS, TIPO D, COM 1 1/2" E CUNHA DE FIXACAO | C15: UN | D15: CR | E15: 5,10
A16: 394 | B16: ABRACADEIRA EM ACO PARA AMARRACAO DE ELETRODUTOS, TIPO D, COM 1 1/2" E PARAFUSO DE FIXACAO | C16: UN | D16: CR | E16: 5,17
A17: 39130 | B17: ABRACADEIRA EM ACO PARA AMARRACAO DE ELETRODUTOS, TIPO D, COM 1 1/4" E CUNHA DE FIXACAO | C17: UN | D17: CR | E17: 4,65
A18: 395 | B18: ABRACADEIRA EM ACO PARA AMARRACAO DE ELETRODUTOS, TIPO D, COM 1 1/4" E PARAFUSO DE FIXACAO | C18: UN | D18: CR | E18: 4,97
A19: 39127 | B19: ABRACADEIRA EM ACO PARA AMARRACAO DE ELETRODUTOS, TIPO D, COM 1/2" E CUNHA DE FIXACAO | C19: UN | D19: CR | E19: 2,45
A20: 392 | B20: ABRACADEIRA EM ACO PARA AMARRACAO DE ELETRODUTOS, TIPO D, COM 1/2" E PARAFUSO DE FIXACAO | C20: UN | D20: CR | E20: 2,52
A21: 39129 | B21: ABRACADEIRA EM ACO PARA AMARRACAO DE ELETRODUTOS, TIPO D, COM 1" E CUNHA DE FIXACAO | C21: UN | D21: CR | E21: 2,87
A22: 393 | B22: ABRACADEIRA EM ACO PARA AMARRACAO DE ELETRODUTOS, TIPO D, COM 1" E PARAFUSO DE FIXACAO | C22: UN | D22: C | E22: 3,00
A23: 39133 | B23: ABRACADEIRA EM ACO PARA AMARRACAO DE ELETRODUTOS, TIPO D, COM 2 1/2" E CUNHA DE FIXACAO | C23: UN | D23: CR | E23: 6,70
A24: 397 | B24: ABRACADEIRA EM ACO PARA AMARRACAO DE ELETRODUTOS, TIPO D, COM 2 1/2" E PARAFUSO DE FIXACAO | C24: UN | D24: CR | E24: 7,40
A25: 39132 | B25: ABRACADEIRA EM ACO PARA AMARRACAO DE ELETRODUTOS, TIPO D, COM 2" E CUNHA DE FIXACAO | C25: UN | D25: CR | E25: 5,36
A26: 396 | B26: ABRACADEIRA EM ACO PARA AMARRACAO DE ELETRODUTOS, TIPO D, COM 2" E PARAFUSO DE FIXACAO | C26: UN | D26: CR | E26: 5,74
A27: 39135 | B27: ABRACADEIRA EM ACO PARA AMARRACAO DE ELETRODUTOS, TIPO D, COM 3 1/2" E CUNHA DE FIXACAO | C27: UN | D27: CR | E27: 10,72
A28: 39128 | B28: ABRACADEIRA EM ACO PARA AMARRACAO DE ELETRODUTOS, TIPO D, COM 3/4" E CUNHA DE FIXACAO | C28: UN | D28: CR | E28: 2,68
A29: 400 | B29: ABRACADEIRA EM ACO PARA AMARRACAO DE ELETRODUTOS, TIPO D, COM 3/4" E PARAFUSO DE FIXACAO | C29: UN | D29: CR | E29: 2,61
A30: 39125 | B30: ABRACADEIRA EM ACO PARA AMARRACAO DE ELETRODUTOS, TIPO D, COM 3/8" E PARAFUSO DE FIXACAO | C30: UN | D30: CR | E30: 2,68
A31: 39134 | B31: ABRACADEIRA EM ACO PARA AMARRACAO DE ELETRODUTOS, TIPO D, COM 3" E CUNHA DE FIXACAO | C31: UN | D31: CR | E31: 8,93
A32: 398 | B32: ABRACADEIRA EM ACO PARA AMARRACAO DE ELETRODUTOS, TIPO D, COM 3" E PARAFUSO DE FIXACAO | C32: UN | D32: CR | E32: 8,23
A33: 39126 | B33: ABRACADEIRA EM ACO PARA AMARRACAO DE ELETRODUTOS, TIPO D, COM 4" E CUNHA DE FIXACAO | C33: UN | D33: CR | E33: 12,06
A34: 399 | B34: ABRACADEIRA EM ACO PARA AMARRACAO DE ELETRODUTOS, TIPO D, COM 4" E PARAFUSO DE FIXACAO | C34: UN | D34: CR | E34: 10,62
A35: 39158 | B35: ABRACADEIRA EM ACO PARA AMARRACAO DE ELETRODUTOS, TIPO ECONOMICA (GOTA), COM 8" | C35: UN | D35: CR | E35: 28,53
A36: 39141 | B36: ABRACADEIRA EM ACO PARA AMARRACAO DE ELETRODUTOS, TIPO U SIMPLES, COM 1 1/2" | C36: UN | D36: CR | E36: 2,07
A37: 39140 | B37: ABRACADEIRA EM ACO PARA AMARRACAO DE ELETRODUTOS, TIPO U SIMPLES, COM 1 1/4" | C37: UN | D37: CR | E37: 1,88
A38: 39137 | B38: ABRACADEIRA EM ACO PARA AMARRACAO DE ELETRODUTOS, TIPO U SIMPLES, COM 1/2" | C38: UN | D38: CR | E38: 1,08
A39: 39139 | B39: ABRACADEIRA EM ACO PARA AMARRACAO DE ELETRODUTOS, TIPO U SIMPLES, COM 1" | C39: UN | D39: CR | E39: 1,56
A40: 39143 | B40: ABRACADEIRA EM ACO PARA AMARRACAO DE ELETRODUTOS, TIPO U SIMPLES, COM 2 1/2" | C40: UN | D40: CR | E40: 4,27
A41: 39142 | B41: ABRACADEIRA EM ACO PARA AMARRACAO DE ELETRODUTOS, TIPO U SIMPLES, COM 2" | C41: UN | D41: CR | E41: 3,06
A42: 39138 | B42: ABRACADEIRA EM ACO PARA AMARRACAO DE ELETRODUTOS, TIPO U SIMPLES, COM 3/4" | C42: UN | D42: CR | E42: 1,14
A43: 39136 | B43: ABRACADEIRA EM ACO PARA AMARRACAO DE ELETRODUTOS, TIPO U SIMPLES, COM 3/8" | C43: UN | D43: CR | E43: 0,76
A44: 39144 | B44: ABRACADEIRA EM ACO PARA AMARRACAO DE ELETRODUTOS, TIPO U SIMPLES, COM 3" | C44: UN | D44: CR | E44: 4,97
A45: 39145 | B45: ABRACADEIRA EM ACO PARA AMARRACAO DE ELETRODUTOS, TIPO U SIMPLES, COM 4" | C45: UN | D45: CR | E45: 8,20
A46: 12615 | B46: ABRACADEIRA PVC, PARA CALHA PLUVIAL, DIAMETRO ENTRE *80 E 100* MM, PARA DRENAGEM PLUVIAL PREDIAL | C46: UN | D46: CR | E46: 13,85
A47: 11927 | B47: ABRACADEIRA, GALVANIZADA/ZINCADA, ROSCA SEM FIM, PARAFUSO INOX, LARGURA FITA *12,6 A *14 MM, D = 2" A 2 1/2" | C47: UN | D47: CR | E47: 10,17
A48: 11928 | B48: ABRACADEIRA, GALVANIZADA/ZINCADA, ROSCA SEM FIM, PARAFUSO INOX, LARGURA FITA *12,6 A *14 MM, D = 3" A 3 3/4" | C48: UN | D48: CR | E48: 11,65
A49: 11929 | B49: ABRACADEIRA, GALVANIZADA/ZINCADA, ROSCA SEM FIM, PARAFUSO INOX, LARGURA FITA *12,6 A *14 MM, D = 4" A 4 3/4" | C49: UN | D49: CR | E49: 18,02
A50: 36801 | B50: ACABAMENTO DE METAL CROMADO PARA REGISTRO PEQUENO, DE PAREDE, 1/2 " OU 3/4 " | C50: UN | D50: CR | E50: 31,63
A51: 36246 | B51: ACABAMENTO SIMPLES/CONVENCIONAL PARA FORRO PVC, TIPO "U" OU "C", COR BRANCA, COMPRIMENTO 6 M | C51: M | D51: CR | E51: 4,26
A52: 37600 | B52: ACESSORIO DE LIGACAO NAO ELETRICO PARA CARGAS EXPLOSIVAS, TUBO DE 6 M | C52: UN | D52: AS | E52: 104,86
A53: 37599 | B53: ACESSORIO INICIADOR NAO ELETRICO, TUBO DE 6 M, TEMPO DE RETARDO DE *160* MS | C53: UN | D53: AS | E53: 97,60
A54: 1 | B54: ACETILENO (RECARGA DE GAS ACETILENO PARA CILINDRO DE CONJUNTO OXICORTE GRANDE) NAO INCLUI TROCA/MANUTENCAO DO CILINDRO | C54: KG | D54: AS | E54: 72,65
A55: 3 | B55: ACIDO CLORIDRICO / ACIDO MURIATICO, DILUICAO 10% A 12% PARA USO EM LIMPEZA | C55: L | D55: CR | E55: 23,45
A56: 43054 | B56: ACO CA-25, 10,0 MM, OU 12,5 MM, OU 16,0 MM, OU 20,0 MM, OU 25,0 MM, VERGALHAO | C56: KG | D56: CR | E56: 10,57
A57: 42402 | B57: ACO CA-25, 16,0 MM, BARRA DE TRANSFERENCIA | C57: KG | D57: CR | E57: 10,10
A58: 42403 | B58: ACO CA-25, 20,0 MM, BARRA DE TRANSFERENCIA | C58: KG | D58: CR | E58: 12,96
A59: 42404 | B59: ACO CA-25, 25,0 MM, BARRA DE TRANSFERENCIA | C59: KG | D59: CR | E59: 12,88
A60: 42405 | B60: ACO CA-25, 32,0 MM, BARRA DE TRANSFERENCIA | C60: KG | D60: CR | E60: 13,72
A61: 34341 | B61: ACO CA-25, 32,0 MM, VERGALHAO | C61: KG | D61: CR | E61: 11,91
A62: 43053 | B62: ACO CA-25, 6,3 MM OU 8,0 MM, VERGALHAO | C62: KG | D62: CR | E62: 9,44
A63: 43058 | B63: ACO CA-50, 10,0 MM, OU 12,5 MM, OU 16,0 MM, OU 20,0 MM, DOBRADO E CORTADO | C63: KG | D63: CR | E63: 9,79
A64: 34 | B64: ACO CA-50, 10,0 MM, VERGALHAO | C64: KG | D64: CR | E64: 9,84
A65: 43055 | B65: ACO CA-50, 12,5 MM OU 16,0 MM, VERGALHAO | C65: KG | D65: C | E65: 8,52
A66: 43056 | B66: ACO CA-50, 20,0 MM OU 25,0 MM, VERGALHAO | C66: KG | D66: CR | E66: 9,82
A67: 43057 | B67: ACO CA-50, 32,0 MM, VERGALHAO | C67: KG | D67: CR | E67: 10,79
A68: 34449 | B68: ACO CA-50, 6,3 MM, DOBRADO E CORTADO | C68: KG | D68: CR | E68: 11,54
A69: 32 | B69: ACO CA-50, 6,3 MM, VERGALHAO | C69: KG | D69: CR | E69: 10,38
A70: 33 | B70: ACO CA-50, 8,0 MM, VERGALHAO | C70: KG | D70: CR | E70: 10,43
A71: 43061 | B71: ACO CA-60, 4,2 MM OU 5,0 MM, DOBRADO E CORTADO | C71: KG | D71: CR | E71: 9,75
A72: 43059 | B72: ACO CA-60, 4,2 MM, OU 5,0 MM, OU 6,0 MM, OU 7,0 MM, VERGALHAO | C72: KG | D72: CR | E72: 9,31
A73: 43062 | B73: ACO CA-60, 6,0 MM OU 7,0 MM, DOBRADO E CORTADO | C73: KG | D73: CR | E73: 10,31
A74: 43060 | B74: ACO CA-60, 8,0 MM OU 9,5 MM, VERGALHAO | C74: KG | D74: CR | E74: 8,11
A75: 40410 | B75: ACOPLAMENTO RIGIDO EM FERRO FUNDIDO PARA SISTEMA DE TUBULACAO RANHURADA, DN 50 MM (2") | C75: UN | D75: AS | E75: 23,71
A76: 40411 | B76: ACOPLAMENTO RIGIDO EM FERRO FUNDIDO PARA SISTEMA DE TUBULACAO RANHURADA, DN 65 MM (2 1/2") | C76: UN | D76: AS | E76: 25,73
A77: 40412 | B77: ACOPLAMENTO RIGIDO EM FERRO FUNDIDO PARA SISTEMA DE TUBULACAO RANHURADA, DN 80 MM (3") | C77: UN | D77: AS | E77: 28,88
A78: 44254 | B78: ADAPTADOR CPVC, ROSCAVEL, COM FLANGES E ANEL DE VEDACAO, 15 MM, CAIXA D'AGUA PARA AGUA QUENTE | C78: UN | D78: CR | E78: 26,51
A79: 44255 | B79: ADAPTADOR CPVC, ROSCAVEL, COM FLANGES E ANEL DE VEDACAO, 22 MM, CAIXA D'AGUA PARA AGUA QUENTE | C79: UN | D79: CR | E79: 29,38
A80: 44256 | B80: ADAPTADOR CPVC, ROSCAVEL, COM FLANGES E ANEL DE VEDACAO, 28 MM, CAIXA D'AGUA PARA AGUA QUENTE | C80: UN | D80: CR | E80: 33,19
A81: 44257 | B81: ADAPTADOR CPVC, ROSCAVEL, COM FLANGES E ANEL DE VEDACAO, 35 MM, CAIXA D'AGUA PARA AGUA QUENTE | C81: UN | D81: CR | E81: 52,50
A82: 44258 | B82: ADAPTADOR CPVC, ROSCAVEL, COM FLANGES E ANEL DE VEDACAO, 42 MM, CAIXA D'AGUA PARA AGUA QUENTE | C82: UN | D82: CR | E82: 60,00
A83: 44259 | B83: ADAPTADOR CPVC, ROSCAVEL, COM FLANGES E ANEL DE VEDACAO, 54 MM, CAIXA D'AGUA PARA AGUA QUENTE | C83: UN | D83: CR | E83: 82,36
A84: 37997 | B84: ADAPTADOR CPVC, SOLDAVEL, 15 MM, PARA AGUA QUENTE | C84: UN | D84: CR | E84: 15,80
A85: 37998 | B85: ADAPTADOR CPVC, SOLDAVEL, 22 MM, PARA AGUA QUENTE | C85: UN | D85: CR | E85: 21,14
A86: 55 | B86: ADAPTADOR DE COMPRESSAO EM POLIPROPILENO (PP), PARA TUBO EM PEAD, 20 MM X 1/2", PARA LIGACAO PREDIAL DE AGUA (NTS 179) | C86: UN | D86: AS | E86: 3,87
A87: 61 | B87: ADAPTADOR DE COMPRESSAO EM POLIPROPILENO (PP), PARA TUBO EM PEAD, 20 MM X 3/4", PARA LIGACAO PREDIAL DE AGUA (NTS 179) | C87: UN | D87: AS | E87: 3,66
A88: 62 | B88: ADAPTADOR DE COMPRESSAO EM POLIPROPILENO (PP), PARA TUBO EM PEAD, 32 MM X 1", PARA LIGACAO PREDIAL DE AGUA (NTS 179) | C88: UN | D88: AS | E88: 7,58
A89: 10899 | B89: ADAPTADOR EM LATAO, ENGATE RAPIDO 2 1/2" X ROSCA INTERNA 5 FIOS 2 1/2", PARA INSTALACAO PREDIAL DE COMBATE A INCENDIO | C89: UN | D89: CR | E89: 109,52
A90: 10900 | B90: ADAPTADOR EM LATAO, ENGATE RAPIDO1 1/2" X ROSCA INTERNA 5 FIOS 2 1/2", PARA INSTALACAO PREDIAL DE COMBATE A INCENDIO | C90: UN | D90: CR | E90: 85,71
A91: 103 | B91: ADAPTADOR PVC SOLDAVEL CURTO COM BOLSA E ROSCA, 110 MM X 4", PARA AGUA FRIA | C91: UN | D91: CR | E91: 47,70
A92: 107 | B92: ADAPTADOR PVC SOLDAVEL CURTO COM BOLSA E ROSCA, 20 MM X 1/2", PARA AGUA FRIA | C92: UN | D92: CR | E92: 0,90
A93: 65 | B93: ADAPTADOR PVC SOLDAVEL CURTO COM BOLSA E ROSCA, 25 MM X 3/4", PARA AGUA FRIA | C93: UN | D93: CR | E93: 0,98
A94: 108 | B94: ADAPTADOR PVC SOLDAVEL CURTO COM BOLSA E ROSCA, 32 MM X 1", PARA AGUA FRIA | C94: UN | D94: CR | E94: 1,98
A95: 110 | B95: ADAPTADOR PVC SOLDAVEL CURTO COM BOLSA E ROSCA, 40 MM X 1 1/2", PARA AGUA FRIA | C95: UN | D95: CR | E95: 6,86
A96: 109 | B96: ADAPTADOR PVC SOLDAVEL CURTO COM BOLSA E ROSCA, 40 MM X 1 1/4", PARA AGUA FRIA | C96: UN | D96: CR | E96: 4,09
A97: 111 | B97: ADAPTADOR PVC SOLDAVEL CURTO COM BOLSA E ROSCA, 50 MM X 1 1/4", PARA AGUA FRIA | C97: UN | D97: CR | E97: 9,28
A98: 112 | B98: ADAPTADOR PVC SOLDAVEL CURTO COM BOLSA E ROSCA, 50 MM X1 1/2", PARA AGUA FRIA | C98: UN | D98: CR | E98: 4,92
A99: 113 | B99: ADAPTADOR PVC SOLDAVEL CURTO COM BOLSA E ROSCA, 60 MM X 2", PARA AGUA FRIA | C99: UN | D99: CR | E99: 12,32
A100: 104 | B100: ADAPTADOR PVC SOLDAVEL CURTO COM BOLSA E ROSCA, 75 MM X 2 1/2", PARA AGUA FRIA | C100: UN | D100: CR | E100: 21,44
A101: 102 | B101: ADAPTADOR PVC SOLDAVEL CURTO COM BOLSA E ROSCA, 85 MM X 3", PARA AGUA FRIA | C101: UN | D101: CR | E101: 29,56
A102: 95 | B102: ADAPTADOR PVC SOLDAVEL, COM FLANGE E ANEL DE VEDACAO, 20 MM X 1/2", PARA CAIXA D'AGUA | C102: UN | D102: CR | E102: 12,49
A103: 96 | B103: ADAPTADOR PVC SOLDAVEL, COM FLANGE E ANEL DE VEDACAO, 25 MM X 3/4", PARA CAIXA D'AGUA | C103: UN | D103: CR | E103: 13,59
A104: 97 | B104: ADAPTADOR PVC SOLDAVEL, COM FLANGE E ANEL DE VEDACAO, 32 MM X 1", PARA CAIXA D'AGUA | C104: UN | D104: CR | E104: 20,44
A105: 98 | B105: ADAPTADOR PVC SOLDAVEL, COM FLANGE E ANEL DE VEDACAO, 40 MM X 1 1/4", PARA CAIXA D'AGUA | C105: UN | D105: CR | E105: 30,60
A106: 99 | B106: ADAPTADOR PVC SOLDAVEL, COM FLANGE E ANEL DE VEDACAO, 50 MM X 1 1/2", PARA CAIXA D'AGUA | C106: UN | D106: CR | E106: 28,92
A107: 100 | B107: ADAPTADOR PVC SOLDAVEL, COM FLANGES E ANEL DE VEDACAO, 60 MM X 2", PARA CAIXA D' AGUA | C107: UN | D107: CR | E107: 50,53
A108: 75 | B108: ADAPTADOR PVC SOLDAVEL, COM FLANGES LIVRES, 110 MM X 4", PARA CAIXA D' AGUA | C108: UN | D108: CR | E108: 294,59
A109: 83 | B109: ADAPTADOR PVC SOLDAVEL, COM FLANGES LIVRES, 75 MM X 2 1/2", PARA CAIXA D' AGUA | C109: UN | D109: CR | E109: 235,51
A110: 74 | B110: ADAPTADOR PVC SOLDAVEL, COM FLANGES LIVRES, 85 MM X 3", PARA CAIXA D' AGUA | C110: UN | D110: CR | E110: 336,72
A111: 106 | B111: ADAPTADOR PVC SOLDAVEL, LONGO, COM FLANGE LIVRE, 110 MM X 4", PARA CAIXA D' AGUA | C111: UN | D111: CR | E111: 425,79
A112: 88 | B112: ADAPTADOR PVC SOLDAVEL, LONGO, COM FLANGE LIVRE, 32 MM X 1", PARA CAIXA D' AGUA | C112: UN | D112: CR | E112: 11,97
A113: 82 | B113: ADAPTADOR PVC SOLDAVEL, LONGO, COM FLANGE LIVRE, 75 MM X 2 1/2", PARA CAIXA D' AGUA | C113: UN | D113: CR | E113: 224,07
A114: 105 | B114: ADAPTADOR PVC SOLDAVEL, LONGO, COM FLANGE LIVRE, 85 MM X 3", PARA CAIXA D' AGUA | C114: UN | D114: CR | E114: 317,51
A115: 60 | B115: ADAPTADOR PVC, COM REGISTRO, PARA PEAD, 20 MM X 3/4", PARA LIGACAO PREDIAL DE AGUA | C115: UN | D115: AS | E115: 5,02
A116: 72 | B116: ADAPTADOR PVC, ROSCAVEL, COM FLANGES E ANEL DE VEDACAO, 1 1/2", PARA CAIXA D'AGUA | C116: UN | D116: CR | E116: 55,46
A117: 67 | B117: ADAPTADOR PVC, ROSCAVEL, COM FLANGES E ANEL DE VEDACAO, 1/2", PARA CAIXA D' AGUA | C117: UN | D117: CR | E117: 17,93
A118: 71 | B118: ADAPTADOR PVC, ROSCAVEL, COM FLANGES E ANEL DE VEDACAO, 1", PARA CAIXA D' AGUA | C118: UN | D118: CR | E118: 34,25
A119: 73 | B119: ADAPTADOR PVC, ROSCAVEL, COM FLANGES E ANEL DE VEDACAO, 3/4", PARA CAIXA D' AGUA | C119: UN | D119: CR | E119: 17,16
A120: 46 | B120: ADAPTADOR, PVC PBA, BOLSA/ROSCA, JE, DN 75 / DE 85 MM | C120: UN | D120: AS | E120: 38,06
A121: 47 | B121: ADAPTADOR, PVC PBA, BOLSA/ROSCA, JE, DN 100 / DE 110 MM | C121: UN | D121: AS | E121: 65,07
A122: 48 | B122: ADAPTADOR, PVC PBA, BOLSA/ROSCA, JE, DN 50 / DE 60 MM | C122: UN | D122: AS | E122: 16,97
A123: 52 | B123: ADAPTADOR, PVC PBA, PONTA/ROSCA, JE, DN 50 / DE 60 MM | C123: UN | D123: AS | E123: 12,89
A124: 43 | B124: ADAPTADOR, PVC PBA, PONTA/ROSCA, JE, DN 75 / DE 85 MM | C124: UN | D124: AS | E124: 43,52
A125: 39719 | B125: ADESIVO / COLA DE CONTATO LIQUIDO, A BASE DE RESINAS, PARA COLAGEM DE ESPUMA PARA ISOLAMENTO TERMICO FLEXIVEL | C125: L | D125: CR | E125: 150,11
A126: 3410 | B126: ADESIVO / COLA PARA EPS (ISOPOR) E OUTROS MATERIAIS | C126: KG | D126: CR | E126: 33,76
A127: 4791 | B127: ADESIVO ACRILICO DE BASE AQUOSA / COLA DE CONTATO | C127: KG | D127: CR | E127: 42,99
A128: 157 | B128: ADESIVO ESTRUTURAL A BASE DE RESINA EPOXI PARA INJECAO EM TRINCAS, BICOMPONENTE, BAIXA VISCOSIDADE | C128: KG | D128: CR | E128: 157,36
A129: 156 | B129: ADESIVO ESTRUTURAL A BASE DE RESINA EPOXI, BICOMPONENTE, FLUIDO | C129: KG | D129: CR | E129: 56,03
A130: 131 | B130: ADESIVO ESTRUTURAL A BASE DE RESINA EPOXI, BICOMPONENTE, PASTOSO (TIXOTROPICO) | C130: KG | D130: CR | E130: 47,92
A131: 21114 | B131: ADESIVO PARA TUBOS CPVC, *75* G | C131: UN | D131: CR | E131: 29,59
A132: 119 | B132: ADESIVO PLASTICO PARA PVC, BISNAGA COM 75 GR | C132: UN | D132: C | E132: 7,50
A133: 122 | B133: ADESIVO PLASTICO PARA PVC, FRASCO COM *850* GR | C133: UN | D133: CR | E133: 57,70
A134: 20080 | B134: ADESIVO PLASTICO PARA PVC, FRASCO COM 175 GR | C134: UN | D134: CR | E134: 18,83
A135: 124 | B135: ADITIVO ACELERADOR DE PEGA E ENDURECIMENTO PARA ARGAMASSAS E CONCRETOS, LIQUIDO E ISENTO DE CLORETOS | C135: L | D135: CR | E135: 18,48
A136: 7334 | B136: ADITIVO ADESIVO LIQUIDO PARA ARGAMASSAS DE REVESTIMENTOS CIMENTICIOS | C136: L | D136: CR | E136: 16,08
A137: 123 | B137: ADITIVO IMPERMEABILIZANTE DE PEGA NORMAL PARA ARGAMASSAS E CONCRETOS SEM ARMACAO, LIQUIDO E ISENTO DE CLORETOS | C137: L | D137: C | E137: 7,56
A138: 127 | B138: ADITIVO IMPERMEABILIZANTE DE PEGA ULTRARRAPIDA, LIQUIDO E ISENTO DE CLORETOS | C138: L | D138: CR | E138: 18,05
A139: 41373 | B139: ADITIVO LIQUIDO IMPERMEABILIZANTE CRISTALIZANTE | C139: L | D139: CR | E139: 25,15
A140: 133 | B140: ADITIVO LIQUIDO INCORPORADOR DE AR PARA CONCRETO E ARGAMASSA, LIQUIDO E ISENTO DE CLORETOS | C140: L | D140: CR | E140: 7,49
A141: 43617 | B141: ADITIVO PLASTIFICANTE E ESTABILIZADOR PARA ARGAMASSAS DE ASSENTAMENTO E REBOCO, LIQUIDO E ISENTO DE CLORETOS | C141: L | D141: CR | E141: 8,37
A142: 132 | B142: ADITIVO PLASTIFICANTE RETARDADOR DE PEGA E REDUTOR DE AGUA PARA CONCRETO, LIQUIDO E ISENTO DE CLORETOS | C142: L | D142: CR | E142: 7,77
A143: 43618 | B143: ADITIVO SUPERPLASTIFICANTE DE PEGA NORMAL PARA CONCRETO, LIQUIDO E ISENTO DE CLORETOS | C143: KG | D143: CR | E143: 19,56
A144: 37476 | B144: ADUELA/ GALERIA PRE-MOLDADA DE CONCRETO ARMADO, SECAO QUADRADA INTERNA DE 1,50 X 1,50 M (L X A), MISULA DE 20 X 20 CM, C = 1,00 M, ESPESSURA MIN = 15 CM, TB-45 E FCK DO CONCRETO = 30 MPA | C144: UN | D144: CR | E144: 2.911,76
A145: 37478 | B145: ADUELA/ GALERIA PRE-MOLDADA DE CONCRETO ARMADO, SECAO RETANGULAR INTERNA DE 2,00 X 2,00 M (L X A), MISULA DE 20 X 20 CM, C = 1,00 M, ESPESSURA MIN = 15 CM, TB-45 E FCK DO CONCRETO = 30 MPA | C145: UN | D145: CR | E145: 3.647,05
A146: 37477 | B146: ADUELA/ GALERIA PRE-MOLDADA DE CONCRETO ARMADO, SECAO RETANGULAR INTERNA DE 2,50 X 2,50 M (L X A), MISULA DE 20 X 20 CM, C = 1,00 M, ESPESSURA MIN = 15 CM, TB-45 E FCK DO CONCRETO = 30 MPA | C146: UN | D146: CR | E146: 4.941,17
A147: 37479 | B147: ADUELA/ GALERIA PRE-MOLDADA DE CONCRETO ARMADO, SECAO RETANGULAR INTERNA DE 3,00 X 3,00 M (L X A), MISULA DE 20 X 20 CM, C = 1.00 M, ESPESSURA MIN = 20 CM, TB-45 E FCK DO CONCRETO = 30 MPA | C147: UN | D147: CR | E147: 5.860,29
A148: 4319 | B148: AFASTADOR PARA TELHA DE FIBROCIMENTO CANALETE 90 OU KALHETAO | C148: UN | D148: CR | E148: 1,44
A149: 42409 | B149: AGENTE DE CURA, PROTETOR DA EVAPORACAO DA AGUA DE HIDRATACAO DO CONCRETO | C149: KG | D149: CR | E149: 12,32
A150: 40553 | B150: AGREGADO RECICLADO, TIPO RACHAO RECICLADO CINZA, CLASSE A | C150: M3 | D150: AS | E150: 52,50
A151: 6114 | B151: AJUDANTE DE ARMADOR (HORISTA) | C151: H | D151: CR | E151: 15,06
A152: 40912 | B152: AJUDANTE DE ARMADOR (MENSALISTA) | C152: MES | D152: CR | E152: 2.627,68
A153: 247 | B153: AJUDANTE DE ELETRICISTA (HORISTA) | C153: H | D153: CR | E153: 14,24
A154: 40919 | B154: AJUDANTE DE ELETRICISTA (MENSALISTA) | C154: MES | D154: CR | E154: 2.487,85
A155: 40984 | B155: AJUDANTE DE ESTRUTURAS METALICAS (MENSALISTA) | C155: MES | D155: CR | E155: 3.125,55
A156: 44499 | B156: AJUDANTE DE ESTRUTURAS METALICAS HORISTA | C156: H | D156: CR | E156: 17,91
A157: 248 | B157: AJUDANTE DE OPERACAO EM GERAL (HORISTA) | C157: H | D157: CR | E157: 17,59
A158: 41086 | B158: AJUDANTE DE OPERACAO EM GERAL (MENSALISTA) | C158: MES | D158: CR | E158: 3.072,39
A159: 34466 | B159: AJUDANTE DE PINTOR (HORISTA) | C159: H | D159: CR | E159: 15,03
A160: 41083 | B160: AJUDANTE DE PINTOR (MENSALISTA) | C160: MES | D160: CR | E160: 2.627,12
A161: 252 | B161: AJUDANTE DE SERRALHEIRO (HORISTA) | C161: H | D161: CR | E161: 17,59
A162: 40909 | B162: AJUDANTE DE SERRALHEIRO (MENSALISTA) | C162: MES | D162: CR | E162: 3.072,39
A163: 242 | B163: AJUDANTE ESPECIALIZADO (HORISTA) | C163: H | D163: CR | E163: 17,57
A164: 41085 | B164: AJUDANTE ESPECIALIZADO (MENSALISTA) | C164: MES | D164: CR | E164: 3.065,68
A165: 427 | B165: ALCA PREFORMADA DE CONTRA POSTE, EM ACO GALVANIZADO, PARA CABO 3/16", COMPRIMENTO *860* MM | C165: UN | D165: AS | E165: 6,31
A166: 417 | B166: ALCA PREFORMADA DE DISTRIBUICAO, EM ACO GALVANIZADO, PARA CABO DE ALUMINIO DIAMETRO 16 A 25 MM | C166: UN | D166: AS | E166: 2,97
A167: 11273 | B167: ALCA PREFORMADA DE DISTRIBUICAO, EM ACO GALVANIZADO, PARA CONDUTORES DE ALUMINIO AWG 1/0 (CAA 6/1 OU CA 7 FIOS) | C167: UN | D167: AS | E167: 9,22
A168: 11272 | B168: ALCA PREFORMADA DE DISTRIBUICAO, EM ACO GALVANIZADO, PARA CONDUTORES DE ALUMINIO AWG 2 (CAA 6/1 OU CA 7 FIOS) | C168: UN | D168: AS | E168: 5,57
A169: 11275 | B169: ALCA PREFORMADA DE SERVICO, EM ACO GALVANIZADO, PARA CONDUTORES DE ALUMINIO AWG 4 (CAA 6/1) | C169: UN | D169: AS | E169: 2,23
A170: 11274 | B170: ALCA PREFORMADA DE SERVICO, EM ACO GALVANIZADO, PARA CONDUTORES DE ALUMINIO AWG 6 (CAA 6/1) | C170: UN | D170: AS | E170: 1,70
A171: 38470 | B171: ALICATE DE CORTE DIAGONAL 6 " COM ISOLAMENTO | C171: UN | D171: C | E171: 42,00
A172: 38547 | B172: ALICATE DE CRIMPAR RJ11, RJ12 E RJ45 | C172: UN | D172: CR | E172: 114,61
A173: 38469 | B173: ALICATE DE PRESSAO PARA SOLDA DE CHAPA 18 " | C173: UN | D173: CR | E173: 123,24
A174: 38467 | B174: ALICATE DE PRESSAO 11 " PARA SOLDA, TIPO C | C174: UN | D174: CR | E174: 69,34
A175: 38468 | B175: ALICATE DE PRESSAO 11 " PARA SOLDA, TIPO U | C175: UN | D175: CR | E175: 76,30
A176: 38471 | B176: ALICATE PARA ANEIS DE PISTAO, CAPACIDADE 50 A 100 MM | C176: UN | D176: CR | E176: 99,09
A177: 37370 | B177: ALIMENTACAO - HORISTA (COLETADO CAIXA - ENCARGOS COMPLEMENTARES) | C177: H | D177: C | E177: 2,28
A178: 40862 | B178: ALIMENTACAO - MENSALISTA (COLETADO CAIXA - ENCARGOS COMPLEMENTARES) | C178: MES | D178: C | E178: 429,36
A179: 10658 | B179: ALISADORA DE CONCRETO COM MOTOR A GASOLINA DE 5,5 HP, PESO COM MOTOR DE 78 KG, 4 PAS | C179: UN | D179: AS | E179: 7.359,00
A180: 253 | B180: ALMOXARIFE (HORISTA) | C180: H | D180: C | E180: 20,03
A181: 40809 | B181: ALMOXARIFE (MENSALISTA) | C181: MES | D181: CR | E181: 3.495,42
A182: 42428 | B182: ALONGADOR COM TRES ALTURAS, EM TUBO DE ACO CARBONO, PINTURA NO PROCESSO ELETROSTATICO - EQUIPAMENTO DE GINASTICA PARA ACADEMIA AO AR LIVRE / ACADEMIA DA TERCEIRA IDADE - ATI | C182: UN | D182: AS | E182: 2.271,00
A183: 301 | B183: ANEL BORRACHA PARA TUBO ESGOTO PREDIAL, DN 100 MM (NBR 5688) | C183: UN | D183: C | E183: 4,00
A184: 296 | B184: ANEL BORRACHA PARA TUBO ESGOTO PREDIAL, DN 50 MM (NBR 5688) | C184: UN | D184: CR | E184: 2,26
A185: 297 | B185: ANEL BORRACHA PARA TUBO ESGOTO PREDIAL, DN 75 MM (NBR 5688) | C185: UN | D185: CR | E185: 3,32
A186: 299 | B186: ANEL BORRACHA, DN 100 MM, PARA TUBO SERIE REFORCADA ESGOTO PREDIAL | C186: UN | D186: CR | E186: 4,69
A187: 300 | B187: ANEL BORRACHA, DN 150 MM, PARA TUBO SERIE REFORCADA ESGOTO PREDIAL | C187: UN | D187: CR | E187: 16,24
A188: 20085 | B188: ANEL BORRACHA, DN 50 MM, PARA TUBO SERIE REFORCADA ESGOTO PREDIAL | C188: UN | D188: CR | E188: 2,97
A189: 298 | B189: ANEL BORRACHA, DN 75 MM, PARA TUBO SERIE REFORCADA ESGOTO PREDIAL | C189: UN | D189: CR | E189: 3,61
A190: 311 | B190: ANEL BORRACHA, PARA TUBO PVC DEFOFO, DN 100 MM (NBR 7665) | C190: UN | D190: CR | E190: 13,39
A191: 318 | B191: ANEL BORRACHA, PARA TUBO PVC DEFOFO, DN 150 MM (NBR 7665) | C191: UN | D191: CR | E191: 26,97
A192: 319 | B192: ANEL BORRACHA, PARA TUBO PVC DEFOFO, DN 200 MM (NBR 7665) | C192: UN | D192: CR | E192: 42,28
A193: 303 | B193: ANEL BORRACHA, PARA TUBO PVC, REDE COLETOR ESGOTO, DN 100 MM (NBR 7362) | C193: UN | D193: CR | E193: 4,43
A194: 305 | B194: ANEL BORRACHA, PARA TUBO PVC, REDE COLETOR ESGOTO, DN 150 MM (NBR 7362) | C194: UN | D194: CR | E194: 13,94
A195: 306 | B195: ANEL BORRACHA, PARA TUBO PVC, REDE COLETOR ESGOTO, DN 200 MM (NBR 7362) | C195: UN | D195: CR | E195: 21,14
A196: 307 | B196: ANEL BORRACHA, PARA TUBO PVC, REDE COLETOR ESGOTO, DN 250 MM (NBR 7362) | C196: UN | D196: CR | E196: 53,41
A197: 309 | B197: ANEL BORRACHA, PARA TUBO PVC, REDE COLETOR ESGOTO, DN 350 MM (NBR 7362) | C197: UN | D197: CR | E197: 87,49
A198: 310 | B198: ANEL BORRACHA, PARA TUBO PVC, REDE COLETOR ESGOTO, DN 400 MM (NBR 7362) | C198: UN | D198: CR | E198: 121,26
A199: 328 | B199: ANEL BORRACHA, PARA TUBO/CONEXAO PVC PBA, DN 100 MM, PARA REDE AGUA | C199: UN | D199: CR | E199: 10,60
A200: 325 | B200: ANEL BORRACHA, PARA TUBO/CONEXAO PVC PBA, DN 50 MM, PARA REDE AGUA | C200: UN | D200: CR | E200: 3,13
A201: 20326 | B201: ANEL BORRACHA, PARA TUBO/CONEXAO PVC PBA, DN 60 MM, PARA REDE AGUA | C201: UN | D201: CR | E201: 5,72
A202: 329 | B202: ANEL BORRACHA, PARA TUBO/CONEXAO PVC PBA, DN 75 MM, PARA REDE AGUA | C202: UN | D202: CR | E202: 8,86
... 4740 more rows

Sheet COMP Sint. Sinapi
A1: PCI.817.01 - CUSTO DE COMPOSIÇÕES - SINTÉTICO DATA DE EMISSÃO: 16/10/2023 23:45:25 DATA DE RT: 16/10/2023
A2: ENCARGOS SOCIAIS SOBRE PREÇOS DA MÃO-DE-OBRA: 114,55%(HORA) 70,11%(MÊS)
A3: ABRANGÊNCIA : NACIONAL LOCALIDADE : RECIFE DATA DE PREÇO : 09/2023 REFERÊNCIA COLETA : MEDIANO
A5: DESCRICAO DA CLASSE | B5: SIGLA DA CLASSE | C5: DESCRICAO DO TIPO 1 | D5: SIGLA DO TIPO 1 | E5: CODIGO DO AGRUPADOR | F5: DESCRICAO DO AGRUPADOR | G5: CODIGO DA COMPOSICAO | H5: DESCRICAO DA COMPOSICAO | I5: UNIDADE | J5: ORIGEM DE PREÇO | K5: CUSTO TOTAL | L5: VINCULO
A7: ASSENTAMENTO DE TUBOS E PECAS | B7: ASTU | C7: FORNEC E/OU ASSENT DE TUBO DE FERRO FUNDIDO JUNTA ELASTICA | D7: 0045 | G7: 97141 | H7: ASSENTAMENTO DE TUBO DE FERRO FUNDIDO PARA REDE DE ÁGUA, DN 80 MM, JUNTA ELÁSTICA, INSTALADO EM LOCAL COM NÍVEL ALTO DE INTERFERÊNCIAS (NÃO INCLUI FORNECIMENTO). AF_11/2017 | I7: M | J7: COEFICIENTE DE REPRESENTATIVIDADE | K7: 9,81 | L7: CAIXA REFERENCIAL
A8: ASSENTAMENTO DE TUBOS E PECAS | B8: ASTU | C8: FORNEC E/OU ASSENT DE TUBO DE FERRO FUNDIDO JUNTA ELASTICA | D8: 0045 | G8: 97142 | H8: ASSENTAMENTO DE TUBO DE FERRO FUNDIDO PARA REDE DE ÁGUA, DN 100 MM, JUNTA ELÁSTICA, INSTALADO EM LOCAL COM NÍVEL ALTO DE INTERFERÊNCIAS (NÃO INCLUI FORNECIMENTO). AF_11/2017 | I8: M | J8: COEFICIENTE DE REPRESENTATIVIDADE | K8: 10,90 | L8: CAIXA REFERENCIAL
A9: ASSENTAMENTO DE TUBOS E PECAS | B9: ASTU | C9: FORNEC E/OU ASSENT DE TUBO DE FERRO FUNDIDO JUNTA ELASTICA | D9: 0045 | G9: 97143 | H9: ASSENTAMENTO DE TUBO DE FERRO FUNDIDO PARA REDE DE ÁGUA, DN 150 MM, JUNTA ELÁSTICA, INSTALADO EM LOCAL COM NÍVEL ALTO DE INTERFERÊNCIAS (NÃO INCLUI FORNECIMENTO). AF_11/2017 | I9: M | J9: COEFICIENTE DE REPRESENTATIVIDADE | K9: 13,64 | L9: CAIXA REFERENCIAL
A10: ASSENTAMENTO DE TUBOS E PECAS | B10: ASTU | C10: FORNEC E/OU ASSENT DE TUBO DE FERRO FUNDIDO JUNTA ELASTICA | D10: 0045 | G10: 97144 | H10: ASSENTAMENTO DE TUBO DE FERRO FUNDIDO PARA REDE DE ÁGUA, DN 200 MM, JUNTA ELÁSTICA, INSTALADO EM LOCAL COM NÍVEL ALTO DE INTERFERÊNCIAS (NÃO INCLUI FORNECIMENTO). AF_11/2017 | I10: M | J10: COEFICIENTE DE REPRESENTATIVIDADE | K10: 16,36 | L10: CAIXA REFERENCIAL
A11: ASSENTAMENTO DE TUBOS E PECAS | B11: ASTU | C11: FORNEC E/OU ASSENT DE TUBO DE FERRO FUNDIDO JUNTA ELASTICA | D11: 0045 | G11: 97145 | H11: ASSENTAMENTO DE TUBO DE FERRO FUNDIDO PARA REDE DE ÁGUA, DN 250 MM, JUNTA ELÁSTICA, INSTALADO EM LOCAL COM NÍVEL ALTO DE INTERFERÊNCIAS (NÃO INCLUI FORNECIMENTO). AF_11/2017 | I11: M | J11: COEFICIENTE DE REPRESENTATIVIDADE | K11: 19,11 | L11: CAIXA REFERENCIAL
A12: ASSENTAMENTO DE TUBOS E PECAS | B12: ASTU | C12: FORNEC E/OU ASSENT DE TUBO DE FERRO FUNDIDO JUNTA ELASTICA | D12: 0045 | G12: 97146 | H12: ASSENTAMENTO DE TUBO DE FERRO FUNDIDO PARA REDE DE ÁGUA, DN 300 MM, JUNTA ELÁSTICA, INSTALADO EM LOCAL COM NÍVEL ALTO DE INTERFERÊNCIAS (NÃO INCLUI FORNECIMENTO). AF_11/2017 | I12: M | J12: COEFICIENTE DE REPRESENTATIVIDADE | K12: 21,85 | L12: CAIXA REFERENCIAL
A13: ASSENTAMENTO DE TUBOS E PECAS | B13: ASTU | C13: FORNEC E/OU ASSENT DE TUBO DE FERRO FUNDIDO JUNTA ELASTICA | D13: 0045 | G13: 97147 | H13: ASSENTAMENTO DE TUBO DE FERRO FUNDIDO PARA REDE DE ÁGUA, DN 350 MM, JUNTA ELÁSTICA, INSTALADO EM LOCAL COM NÍVEL ALTO DE INTERFERÊNCIAS (NÃO INCLUI FORNECIMENTO). AF_11/2017 | I13: M | J13: COEFICIENTE DE REPRESENTATIVIDADE | K13: 24,61 | L13: CAIXA REFERENCIAL
A14: ASSENTAMENTO DE TUBOS E PECAS | B14: ASTU | C14: FORNEC E/OU ASSENT DE TUBO DE FERRO FUNDIDO JUNTA ELASTICA | D14: 0045 | G14: 97148 | H14: ASSENTAMENTO DE TUBO DE FERRO FUNDIDO PARA REDE DE ÁGUA, DN 400 MM, JUNTA ELÁSTICA, INSTALADO EM LOCAL COM NÍVEL ALTO DE INTERFERÊNCIAS (NÃO INCLUI FORNECIMENTO). AF_11/2017 | I14: M | J14: COEFICIENTE DE REPRESENTATIVIDADE | K14: 27,35 | L14: CAIXA REFERENCIAL
A15: ASSENTAMENTO DE TUBOS E PECAS | B15: ASTU | C15: FORNEC E/OU ASSENT DE TUBO DE FERRO FUNDIDO JUNTA ELASTICA | D15: 0045 | G15: 97149 | H15: ASSENTAMENTO DE TUBO DE FERRO FUNDIDO PARA REDE DE ÁGUA, DN 450 MM, JUNTA ELÁSTICA, INSTALADO EM LOCAL COM NÍVEL ALTO DE INTERFERÊNCIAS (NÃO INCLUI FORNECIMENTO). AF_11/2017 | I15: M | J15: COEFICIENTE DE REPRESENTATIVIDADE | K15: 30,14 | L15: CAIXA REFERENCIAL
A16: ASSENTAMENTO DE TUBOS E PECAS | B16: ASTU | C16: FORNEC E/OU ASSENT DE TUBO DE FERRO FUNDIDO JUNTA ELASTICA | D16: 0045 | G16: 97150 | H16: ASSENTAMENTO DE TUBO DE FERRO FUNDIDO PARA REDE DE ÁGUA, DN 500 MM, JUNTA ELÁSTICA, INSTALADO EM LOCAL COM NÍVEL ALTO DE INTERFERÊNCIAS (NÃO INCLUI FORNECIMENTO). AF_11/2017 | I16: M | J16: COEFICIENTE DE REPRESENTATIVIDADE | K16: 37,12 | L16: CAIXA REFERENCIAL
A17: ASSENTAMENTO DE TUBOS E PECAS | B17: ASTU | C17: FORNEC E/OU ASSENT DE TUBO DE FERRO FUNDIDO JUNTA ELASTICA | D17: 0045 | G17: 97151 | H17: ASSENTAMENTO DE TUBO DE FERRO FUNDIDO PARA REDE DE ÁGUA, DN 600 MM, JUNTA ELÁSTICA, INSTALADO EM LOCAL COM NÍVEL ALTO DE INTERFERÊNCIAS (NÃO INCLUI FORNECIMENTO). AF_11/2017 | I17: M | J17: COEFICIENTE DE REPRESENTATIVIDADE | K17: 43,26 | L17: CAIXA REFERENCIAL
A18: ASSENTAMENTO DE TUBOS E PECAS | B18: ASTU | C18: FORNEC E/OU ASSENT DE TUBO DE FERRO FUNDIDO JUNTA ELASTICA | D18: 0045 | G18: 97152 | H18: ASSENTAMENTO DE TUBO DE FERRO FUNDIDO PARA REDE DE ÁGUA, DN 700 MM, JUNTA ELÁSTICA, INSTALADO EM LOCAL COM NÍVEL ALTO DE INTERFERÊNCIAS (NÃO INCLUI FORNECIMENTO). AF_11/2017 | I18: M | J18: COEFICIENTE DE REPRESENTATIVIDADE | K18: 49,18 | L18: CAIXA REFERENCIAL
A19: ASSENTAMENTO DE TUBOS E PECAS | B19: ASTU | C19: FORNEC E/OU ASSENT DE TUBO DE FERRO FUNDIDO JUNTA ELASTICA | D19: 0045 | G19: 97153 | H19: ASSENTAMENTO DE TUBO DE FERRO FUNDIDO PARA REDE DE ÁGUA, DN 800 MM, JUNTA ELÁSTICA, INSTALADO EM LOCAL COM NÍVEL ALTO DE INTERFERÊNCIAS (NÃO INCLUI FORNECIMENTO). AF_11/2017 | I19: M | J19: COEFICIENTE DE REPRESENTATIVIDADE | K19: 55,23 | L19: CAIXA REFERENCIAL
A20: ASSENTAMENTO DE TUBOS E PECAS | B20: ASTU | C20: FORNEC E/OU ASSENT DE TUBO DE FERRO FUNDIDO JUNTA ELASTICA | D20: 0045 | G20: 97154 | H20: ASSENTAMENTO DE TUBO DE FERRO FUNDIDO PARA REDE DE ÁGUA, DN 900 MM, JUNTA ELÁSTICA, INSTALADO EM LOCAL COM NÍVEL ALTO DE INTERFERÊNCIAS (NÃO INCLUI FORNECIMENTO). AF_11/2017 | I20: M | J20: COEFICIENTE DE REPRESENTATIVIDADE | K20: 61,31 | L20: CAIXA REFERENCIAL
A21: ASSENTAMENTO DE TUBOS E PECAS | B21: ASTU | C21: FORNEC E/OU ASSENT DE TUBO DE FERRO FUNDIDO JUNTA ELASTICA | D21: 0045 | G21: 97155 | H21: ASSENTAMENTO DE TUBO DE FERRO FUNDIDO PARA REDE DE ÁGUA, DN 1000 MM, JUNTA ELÁSTICA, INSTALADO EM LOCAL COM NÍVEL ALTO DE INTERFERÊNCIAS (NÃO INCLUI FORNECIMENTO). AF_11/2017 | I21: M | J21: COEFICIENTE DE REPRESENTATIVIDADE | K21: 67,39 | L21: CAIXA REFERENCIAL
A22: ASSENTAMENTO DE TUBOS E PECAS | B22: ASTU | C22: FORNEC E/OU ASSENT DE TUBO DE FERRO FUNDIDO JUNTA ELASTICA | D22: 0045 | G22: 97156 | H22: ASSENTAMENTO DE TUBO DE FERRO FUNDIDO PARA REDE DE ÁGUA, DN 1200 MM, JUNTA ELÁSTICA, INSTALADO EM LOCAL COM NÍVEL ALTO DE INTERFERÊNCIAS (NÃO INCLUI FORNECIMENTO). AF_11/2017 | I22: M | J22: COEFICIENTE DE REPRESENTATIVIDADE | K22: 79,93 | L22: CAIXA REFERENCIAL
A23: ASSENTAMENTO DE TUBOS E PECAS | B23: ASTU | C23: FORNEC E/OU ASSENT DE TUBO DE FERRO FUNDIDO JUNTA ELASTICA | D23: 0045 | G23: 97157 | H23: ASSENTAMENTO DE TUBO DE FERRO FUNDIDO PARA REDE DE ÁGUA, DN 80 MM, JUNTA ELÁSTICA, INSTALADO EM LOCAL COM NÍVEL BAIXO DE INTERFERÊNCIAS (NÃO INCLUI FORNECIMENTO). AF_11/2017 | I23: M | J23: COEFICIENTE DE REPRESENTATIVIDADE | K23: 5,88 | L23: CAIXA REFERENCIAL
A24: ASSENTAMENTO DE TUBOS E PECAS | B24: ASTU | C24: FORNEC E/OU ASSENT DE TUBO DE FERRO FUNDIDO JUNTA ELASTICA | D24: 0045 | G24: 97158 | H24: ASSENTAMENTO DE TUBO DE FERRO FUNDIDO PARA REDE DE ÁGUA, DN 100 MM, JUNTA ELÁSTICA, INSTALADO EM LOCAL COM NÍVEL BAIXO DE INTERFERÊNCIAS (NÃO INCLUI FORNECIMENTO). AF_11/2017 | I24: M | J24: COEFICIENTE DE REPRESENTATIVIDADE | K24: 6,54 | L24: CAIXA REFERENCIAL
A25: ASSENTAMENTO DE TUBOS E PECAS | B25: ASTU | C25: FORNEC E/OU ASSENT DE TUBO DE FERRO FUNDIDO JUNTA ELASTICA | D25: 0045 | G25: 97159 | H25: ASSENTAMENTO DE TUBO DE FERRO FUNDIDO PARA REDE DE ÁGUA, DN 150 MM, JUNTA ELÁSTICA, INSTALADO EM LOCAL COM NÍVEL BAIXO DE INTERFERÊNCIAS (NÃO INCLUI FORNECIMENTO). AF_11/2017 | I25: M | J25: COEFICIENTE DE REPRESENTATIVIDADE | K25: 8,20 | L25: CAIXA REFERENCIAL
A26: ASSENTAMENTO DE TUBOS E PECAS | B26: ASTU | C26: FORNEC E/OU ASSENT DE TUBO DE FERRO FUNDIDO JUNTA ELASTICA | D26: 0045 | G26: 97160 | H26: ASSENTAMENTO DE TUBO DE FERRO FUNDIDO PARA REDE DE ÁGUA, DN 200 MM, JUNTA ELÁSTICA, INSTALADO EM LOCAL COM NÍVEL BAIXO DE INTERFERÊNCIAS (NÃO INCLUI FORNECIMENTO). AF_11/2017 | I26: M | J26: COEFICIENTE DE REPRESENTATIVIDADE | K26: 9,84 | L26: CAIXA REFERENCIAL
A27: ASSENTAMENTO DE TUBOS E PECAS | B27: ASTU | C27: FORNEC E/OU ASSENT DE TUBO DE FERRO FUNDIDO JUNTA ELASTICA | D27: 0045 | G27: 97161 | H27: ASSENTAMENTO DE TUBO DE FERRO FUNDIDO PARA REDE DE ÁGUA, DN 250 MM, JUNTA ELÁSTICA, INSTALADO EM LOCAL COM NÍVEL BAIXO DE INTERFERÊNCIAS (NÃO INCLUI FORNECIMENTO). AF_11/2017 | I27: M | J27: COEFICIENTE DE REPRESENTATIVIDADE | K27: 11,53 | L27: CAIXA REFERENCIAL
A28: ASSENTAMENTO DE TUBOS E PECAS | B28: ASTU | C28: FORNEC E/OU ASSENT DE TUBO DE FERRO FUNDIDO JUNTA ELASTICA | D28: 0045 | G28: 97162 | H28: ASSENTAMENTO DE TUBO DE FERRO FUNDIDO PARA REDE DE ÁGUA, DN 300 MM, JUNTA ELÁSTICA, INSTALADO EM LOCAL COM NÍVEL BAIXO DE INTERFERÊNCIAS (NÃO INCLUI FORNECIMENTO). AF_11/2017 | I28: M | J28: COEFICIENTE DE REPRESENTATIVIDADE | K28: 13,19 | L28: CAIXA REFERENCIAL
A29: ASSENTAMENTO DE TUBOS E PECAS | B29: ASTU | C29: FORNEC E/OU ASSENT DE TUBO DE FERRO FUNDIDO JUNTA ELASTICA | D29: 0045 | G29: 97163 | H29: ASSENTAMENTO DE TUBO DE FERRO FUNDIDO PARA REDE DE ÁGUA, DN 350 MM, JUNTA ELÁSTICA, INSTALADO EM LOCAL COM NÍVEL BAIXO DE INTERFERÊNCIAS (NÃO INCLUI FORNECIMENTO). AF_11/2017 | I29: M | J29: COEFICIENTE DE REPRESENTATIVIDADE | K29: 14,87 | L29: CAIXA REFERENCIAL
A30: ASSENTAMENTO DE TUBOS E PECAS | B30: ASTU | C30: FORNEC E/OU ASSENT DE TUBO DE FERRO FUNDIDO JUNTA ELASTICA | D30: 0045 | G30: 97164 | H30: ASSENTAMENTO DE TUBO DE FERRO FUNDIDO PARA REDE DE ÁGUA, DN 400 MM, JUNTA ELÁSTICA, INSTALADO EM LOCAL COM NÍVEL BAIXO DE INTERFERÊNCIAS (NÃO INCLUI FORNECIMENTO). AF_11/2017 | I30: M | J30: COEFICIENTE DE REPRESENTATIVIDADE | K30: 16,53 | L30: CAIXA REFERENCIAL
A31: ASSENTAMENTO DE TUBOS E PECAS | B31: ASTU | C31: FORNEC E/OU ASSENT DE TUBO DE FERRO FUNDIDO JUNTA ELASTICA | D31: 0045 | G31: 97165 | H31: ASSENTAMENTO DE TUBO DE FERRO FUNDIDO PARA REDE DE ÁGUA, DN 450 MM, JUNTA ELÁSTICA, INSTALADO EM LOCAL COM NÍVEL BAIXO DE INTERFERÊNCIAS (NÃO INCLUI FORNECIMENTO). AF_11/2017 | I31: M | J31: COEFICIENTE DE REPRESENTATIVIDADE | K31: 18,23 | L31: CAIXA REFERENCIAL
A32: ASSENTAMENTO DE TUBOS E PECAS | B32: ASTU | C32: FORNEC E/OU ASSENT DE TUBO DE FERRO FUNDIDO JUNTA ELASTICA | D32: 0045 | G32: 97166 | H32: ASSENTAMENTO DE TUBO DE FERRO FUNDIDO PARA REDE DE ÁGUA, DN 500 MM, JUNTA ELÁSTICA, INSTALADO EM LOCAL COM NÍVEL BAIXO DE INTERFERÊNCIAS (NÃO INCLUI FORNECIMENTO). AF_11/2017 | I32: M | J32: COEFICIENTE DE REPRESENTATIVIDADE | K32: 22,49 | L32: CAIXA REFERENCIAL
A33: ASSENTAMENTO DE TUBOS E PECAS | B33: ASTU | C33: FORNEC E/OU ASSENT DE TUBO DE FERRO FUNDIDO JUNTA ELASTICA | D33: 0045 | G33: 97167 | H33: ASSENTAMENTO DE TUBO DE FERRO FUNDIDO PARA REDE DE ÁGUA, DN 600 MM, JUNTA ELÁSTICA, INSTALADO EM LOCAL COM NÍVEL BAIXO DE INTERFERÊNCIAS (NÃO INCLUI FORNECIMENTO). AF_11/2017 | I33: M | J33: COEFICIENTE DE REPRESENTATIVIDADE | K33: 26,24 | L33: CAIXA REFERENCIAL
A34: ASSENTAMENTO DE TUBOS E PECAS | B34: ASTU | C34: FORNEC E/OU ASSENT DE TUBO DE FERRO FUNDIDO JUNTA ELASTICA | D34: 0045 | G34: 97168 | H34: ASSENTAMENTO DE TUBO DE FERRO FUNDIDO PARA REDE DE ÁGUA, DN 700 MM, JUNTA ELÁSTICA, INSTALADO EM LOCAL COM NÍVEL BAIXO DE INTERFERÊNCIAS (NÃO INCLUI FORNECIMENTO). AF_11/2017 | I34: M | J34: COEFICIENTE DE REPRESENTATIVIDADE | K34: 29,77 | L34: CAIXA REFERENCIAL
A35: ASSENTAMENTO DE TUBOS E PECAS | B35: ASTU | C35: FORNEC E/OU ASSENT DE TUBO DE FERRO FUNDIDO JUNTA ELASTICA | D35: 0045 | G35: 97169 | H35: ASSENTAMENTO DE TUBO DE FERRO FUNDIDO PARA REDE DE ÁGUA, DN 800 MM, JUNTA ELÁSTICA, INSTALADO EM LOCAL COM NÍVEL BAIXO DE INTERFERÊNCIAS (NÃO INCLUI FORNECIMENTO). AF_11/2017 | I35: M | J35: COEFICIENTE DE REPRESENTATIVIDADE | K35: 33,43 | L35: CAIXA REFERENCIAL
A36: ASSENTAMENTO DE TUBOS E PECAS | B36: ASTU | C36: FORNEC E/OU ASSENT DE TUBO DE FERRO FUNDIDO JUNTA ELASTICA | D36: 0045 | G36: 97170 | H36: ASSENTAMENTO DE TUBO DE FERRO FUNDIDO PARA REDE DE ÁGUA, DN 900 MM, JUNTA ELÁSTICA, INSTALADO EM LOCAL COM NÍVEL BAIXO DE INTERFERÊNCIAS (NÃO INCLUI FORNECIMENTO). AF_11/2017 | I36: M | J36: COEFICIENTE DE REPRESENTATIVIDADE | K36: 37,13 | L36: CAIXA REFERENCIAL
A37: ASSENTAMENTO DE TUBOS E PECAS | B37: ASTU | C37: FORNEC E/OU ASSENT DE TUBO DE FERRO FUNDIDO JUNTA ELASTICA | D37: 0045 | G37: 97171 | H37: ASSENTAMENTO DE TUBO DE FERRO FUNDIDO PARA REDE DE ÁGUA, DN 1000 MM, JUNTA ELÁSTICA, INSTALADO EM LOCAL COM NÍVEL BAIXO DE INTERFERÊNCIAS (NÃO INCLUI FORNECIMENTO). AF_11/2017 | I37: M | J37: COEFICIENTE DE REPRESENTATIVIDADE | K37: 40,84 | L37: CAIXA REFERENCIAL
A38: ASSENTAMENTO DE TUBOS E PECAS | B38: ASTU | C38: FORNEC E/OU ASSENT DE TUBO DE FERRO FUNDIDO JUNTA ELASTICA | D38: 0045 | G38: 97172 | H38: ASSENTAMENTO DE TUBO DE FERRO FUNDIDO PARA REDE DE ÁGUA, DN 1200 MM, JUNTA ELÁSTICA, INSTALADO EM LOCAL COM NÍVEL BAIXO DE INTERFERÊNCIAS (NÃO INCLUI FORNECIMENTO). AF_11/2017 | I38: M | J38: COEFICIENTE DE REPRESENTATIVIDADE | K38: 48,59 | L38: CAIXA REFERENCIAL
A39: ASSENTAMENTO DE TUBOS E PECAS | B39: ASTU | C39: FORNEC E/OU ASSENT DE TUBO DE ACO COM JUNTA SOLDADA | D39: 0046 | G39: 97173 | H39: ASSENTAMENTO DE TUBO DE AÇO CARBONO PARA REDE DE ÁGUA, DN 600 MM (24), JUNTA SOLDADA, INSTALADO EM LOCAL COM NÍVEL ALTO DE INTERFERÊNCIAS (NÃO INCLUI FORNECIMENTO). AF_11/2017 | I39: M | J39: COEFICIENTE DE REPRESENTATIVIDADE | K39: 37,86 | L39: CAIXA REFERENCIAL
A40: ASSENTAMENTO DE TUBOS E PECAS | B40: ASTU | C40: FORNEC E/OU ASSENT DE TUBO DE ACO COM JUNTA SOLDADA | D40: 0046 | G40: 97174 | H40: ASSENTAMENTO DE TUBO DE AÇO CARBONO PARA REDE DE ÁGUA, DN 700 MM (28), JUNTA SOLDADA, INSTALADO EM LOCAL COM NÍVEL ALTO DE INTERFERÊNCIAS (NÃO INCLUI FORNECIMENTO). AF_11/2017 | I40: M | J40: COEFICIENTE DE REPRESENTATIVIDADE | K40: 43,78 | L40: CAIXA REFERENCIAL
A41: ASSENTAMENTO DE TUBOS E PECAS | B41: ASTU | C41: FORNEC E/OU ASSENT DE TUBO DE ACO COM JUNTA SOLDADA | D41: 0046 | G41: 97175 | H41: ASSENTAMENTO DE TUBO DE AÇO CARBONO PARA REDE DE ÁGUA, DN 800 MM (32), JUNTA SOLDADA, INSTALADO EM LOCAL COM NÍVEL ALTO DE INTERFERÊNCIAS (NÃO INCLUI FORNECIMENTO). AF_11/2017 | I41: M | J41: COEFICIENTE DE REPRESENTATIVIDADE | K41: 49,71 | L41: CAIXA REFERENCIAL
A42: ASSENTAMENTO DE TUBOS E PECAS | B42: ASTU | C42: FORNEC E/OU ASSENT DE TUBO DE ACO COM JUNTA SOLDADA | D42: 0046 | G42: 97176 | H42: ASSENTAMENTO DE TUBO DE AÇO CARBONO PARA REDE DE ÁGUA, DN 900 MM (36), JUNTA SOLDADA, INSTALADO EM LOCAL COM NÍVEL ALTO DE INTERFERÊNCIAS (NÃO INCLUI FORNECIMENTO). AF_11/2017 | I42: M | J42: COEFICIENTE DE REPRESENTATIVIDADE | K42: 55,63 | L42: CAIXA REFERENCIAL
A43: ASSENTAMENTO DE TUBOS E PECAS | B43: ASTU | C43: FORNEC E/OU ASSENT DE TUBO DE ACO COM JUNTA SOLDADA | D43: 0046 | G43: 97177 | H43: ASSENTAMENTO DE TUBO DE AÇO CARBONO PARA REDE DE ÁGUA, DN 1000 MM (40) OU DN 1100 MM (44), JUNTA SOLDADA, INSTALADO EM LOCAL COM NÍVEL ALTO DE INTERFERÊNCIAS (NÃO INCLUI FORNECIMENTO). AF_11/2017 | I43: M | J43: COEFICIENTE DE REPRESENTATIVIDADE | K43: 67,48 | L43: CAIXA REFERENCIAL
A44: ASSENTAMENTO DE TUBOS E PECAS | B44: ASTU | C44: FORNEC E/OU ASSENT DE TUBO DE ACO COM JUNTA SOLDADA | D44: 0046 | G44: 97178 | H44: ASSENTAMENTO DE TUBO DE AÇO CARBONO PARA REDE DE ÁGUA, DN 1200 MM (48) OU DN 1300 MM (52), JUNTA SOLDADA, INSTALADO EM LOCAL COM NÍVEL ALTO DE INTERFERÊNCIAS (NÃO INCLUI FORNECIMENTO). AF_11/2017 | I44: M | J44: COEFICIENTE DE REPRESENTATIVIDADE | K44: 79,34 | L44: CAIXA REFERENCIAL
A45: ASSENTAMENTO DE TUBOS E PECAS | B45: ASTU | C45: FORNEC E/OU ASSENT DE TUBO DE ACO COM JUNTA SOLDADA | D45: 0046 | G45: 97179 | H45: ASSENTAMENTO DE TUBO DE AÇO CARBONO PARA REDE DE ÁGUA, DN 1400 MM (56'') OU DN 1500 MM (60), JUNTA SOLDADA, INSTALADO EM LOCAL COM NÍVEL ALTO DE INTERFERÊNCIAS (NÃO INCLUI FORNECIMENTO). AF_11/2017 | I45: M | J45: COEFICIENTE DE REPRESENTATIVIDADE | K45: 91,19 | L45: CAIXA REFERENCIAL
A46: ASSENTAMENTO DE TUBOS E PECAS | B46: ASTU | C46: FORNEC E/OU ASSENT DE TUBO DE ACO COM JUNTA SOLDADA | D46: 0046 | G46: 97180 | H46: ASSENTAMENTO DE TUBO DE AÇO CARBONO PARA REDE DE ÁGUA, DN 1600 MM (64) OU DN 1700 MM (68), JUNTA SOLDADA, INSTALADO EM LOCAL COM NÍVEL ALTO DE INTERFERÊNCIAS (NÃO INCLUI FORNECIMENTO). AF_11/2017 | I46: M | J46: COEFICIENTE DE REPRESENTATIVIDADE | K46: 103,05 | L46: CAIXA REFERENCIAL
A47: ASSENTAMENTO DE TUBOS E PECAS | B47: ASTU | C47: FORNEC E/OU ASSENT DE TUBO DE ACO COM JUNTA SOLDADA | D47: 0046 | G47: 97181 | H47: ASSENTAMENTO DE TUBO DE AÇO CARBONO PARA REDE DE ÁGUA, DN 1800 MM (72) OU DN 1900 MM (76), JUNTA SOLDADA, INSTALADO EM LOCAL COM NÍVEL ALTO DE INTERFERÊNCIAS (NÃO INCLUI FORNECIMENTO). AF_11/2017 | I47: M | J47: COEFICIENTE DE REPRESENTATIVIDADE | K47: 119,67 | L47: CAIXA REFERENCIAL
A48: ASSENTAMENTO DE TUBOS E PECAS | B48: ASTU | C48: FORNEC E/OU ASSENT DE TUBO DE ACO COM JUNTA SOLDADA | D48: 0046 | G48: 97182 | H48: ASSENTAMENTO DE TUBO DE AÇO CARBONO PARA REDE DE ÁGUA, DN 2000 MM (80) OU DN 2100 MM (84), JUNTA SOLDADA, INSTALADO EM LOCAL COM NÍVEL ALTO DE INTERFERÊNCIAS (NÃO INCLUI FORNECIMENTO). AF_11/2017 | I48: M | J48: COEFICIENTE DE REPRESENTATIVIDADE | K48: 132,04 | L48: CAIXA REFERENCIAL
A49: ASSENTAMENTO DE TUBOS E PECAS | B49: ASTU | C49: FORNEC E/OU ASSENT DE TUBO DE ACO COM JUNTA SOLDADA | D49: 0046 | G49: 97183 | H49: ASSENTAMENTO DE TUBO DE AÇO CARBONO PARA REDE DE ÁGUA, DN 600 MM (24), JUNTA SOLDADA, INSTALADO EM LOCAL COM NÍVEL BAIXO DE INTERFERÊNCIAS (NÃO INCLUI FORNECIMENTO). AF_11/2017 | I49: M | J49: COEFICIENTE DE REPRESENTATIVIDADE | K49: 29,80 | L49: CAIXA REFERENCIAL
A50: ASSENTAMENTO DE TUBOS E PECAS | B50: ASTU | C50: FORNEC E/OU ASSENT DE TUBO DE ACO COM JUNTA SOLDADA | D50: 0046 | G50: 97184 | H50: ASSENTAMENTO DE TUBO DE AÇO CARBONO PARA REDE DE ÁGUA, DN 700 MM (28), JUNTA SOLDADA, INSTALADO EM LOCAL COM NÍVEL BAIXO DE INTERFERÊNCIAS (NÃO INCLUI FORNECIMENTO). AF_11/2017 | I50: M | J50: COEFICIENTE DE REPRESENTATIVIDADE | K50: 34,52 | L50: CAIXA REFERENCIAL
A51: ASSENTAMENTO DE TUBOS E PECAS | B51: ASTU | C51: FORNEC E/OU ASSENT DE TUBO DE ACO COM JUNTA SOLDADA | D51: 0046 | G51: 97185 | H51: ASSENTAMENTO DE TUBO DE AÇO CARBONO PARA REDE DE ÁGUA, DN 800 MM (32), JUNTA SOLDADA, INSTALADO EM LOCAL COM NÍVEL BAIXO DE INTERFERÊNCIAS (NÃO INCLUI FORNECIMENTO). AF_11/2017 | I51: M | J51: COEFICIENTE DE REPRESENTATIVIDADE | K51: 39,26 | L51: CAIXA REFERENCIAL
A52: ASSENTAMENTO DE TUBOS E PECAS | B52: ASTU | C52: FORNEC E/OU ASSENT DE TUBO DE ACO COM JUNTA SOLDADA | D52: 0046 | G52: 97186 | H52: ASSENTAMENTO DE TUBO DE AÇO CARBONO PARA REDE DE ÁGUA, DN 900 MM (36), JUNTA SOLDADA, INSTALADO EM LOCAL COM NÍVEL BAIXO DE INTERFERÊNCIAS (NÃO INCLUI FORNECIMENTO). AF_11/2017 | I52: M | J52: COEFICIENTE DE REPRESENTATIVIDADE | K52: 44,00 | L52: CAIXA REFERENCIAL
A53: ASSENTAMENTO DE TUBOS E PECAS | B53: ASTU | C53: FORNEC E/OU ASSENT DE TUBO DE ACO COM JUNTA SOLDADA | D53: 0046 | G53: 97187 | H53: ASSENTAMENTO DE TUBO DE AÇO CARBONO PARA REDE DE ÁGUA, DN 1000 MM (40 ) OU DN 1100 MM (44 ), JUNTA SOLDADA, INSTALADO EM LOCAL COM NÍVEL BAIXO DE INTERFERÊNCIAS (NÃO INCLUI FORNECIMENTO). AF_11/2017 | I53: M | J53: COEFICIENTE DE REPRESENTATIVIDADE | K53: 53,47 | L53: CAIXA REFERENCIAL
A54: ASSENTAMENTO DE TUBOS E PECAS | B54: ASTU | C54: FORNEC E/OU ASSENT DE TUBO DE ACO COM JUNTA SOLDADA | D54: 0046 | G54: 97188 | H54: ASSENTAMENTO DE TUBO DE AÇO CARBONO PARA REDE DE ÁGUA, DN 1200 MM (48) OU DN 1300 MM (52), JUNTA SOLDADA, INSTALADO EM LOCAL COM NÍVEL BAIXO DE INTERFERÊNCIAS (NÃO INCLUI FORNECIMENTO). AF_11/2017 | I54: M | J54: COEFICIENTE DE REPRESENTATIVIDADE | K54: 62,94 | L54: CAIXA REFERENCIAL
A55: ASSENTAMENTO DE TUBOS E PECAS | B55: ASTU | C55: FORNEC E/OU ASSENT DE TUBO DE ACO COM JUNTA SOLDADA | D55: 0046 | G55: 97189 | H55: ASSENTAMENTO DE TUBO DE AÇO CARBONO PARA REDE DE ÁGUA, DN 1400 MM (56'') OU DN 1500 MM (60), JUNTA SOLDADA, INSTALADO EM LOCAL COM NÍVEL BAIXO DE INTERFERÊNCIAS (NÃO INCLUI FORNECIMENTO). AF_11/2017 | I55: M | J55: COEFICIENTE DE REPRESENTATIVIDADE | K55: 72,40 | L55: CAIXA REFERENCIAL
A56: ASSENTAMENTO DE TUBOS E PECAS | B56: ASTU | C56: FORNEC E/OU ASSENT DE TUBO DE ACO COM JUNTA SOLDADA | D56: 0046 | G56: 97190 | H56: ASSENTAMENTO DE TUBO DE AÇO CARBONO PARA REDE DE ÁGUA, DN 1600 MM (64) OU DN 1700 MM (68), JUNTA SOLDADA, INSTALADO EM LOCAL COM NÍVEL BAIXO DE INTERFERÊNCIAS (NÃO INCLUI FORNECIMENTO). AF_11/2017 | I56: M | J56: COEFICIENTE DE REPRESENTATIVIDADE | K56: 81,88 | L56: CAIXA REFERENCIAL
A57: ASSENTAMENTO DE TUBOS E PECAS | B57: ASTU | C57: FORNEC E/OU ASSENT DE TUBO DE ACO COM JUNTA SOLDADA | D57: 0046 | G57: 97191 | H57: ASSENTAMENTO DE TUBO DE AÇO CARBONO PARA REDE DE ÁGUA, DN 1800 MM (72) OU DN 1900 MM (76), JUNTA SOLDADA, INSTALADO EM LOCAL COM NÍVEL BAIXO DE INTERFERÊNCIAS (NÃO INCLUI FORNECIMENTO). AF_11/2017 | I57: M | J57: COEFICIENTE DE REPRESENTATIVIDADE | K57: 94,85 | L57: CAIXA REFERENCIAL
A58: ASSENTAMENTO DE TUBOS E PECAS | B58: ASTU | C58: FORNEC E/OU ASSENT DE TUBO DE ACO COM JUNTA SOLDADA | D58: 0046 | G58: 97192 | H58: ASSENTAMENTO DE TUBO DE AÇO CARBONO PARA REDE DE ÁGUA, DN 2000 MM (80) OU DN 2100 MM (84), JUNTA SOLDADA, INSTALADO EM LOCAL COM NÍVEL BAIXO DE INTERFERÊNCIAS (NÃO INCLUI FORNECIMENTO). AF_11/2017 | I58: M | J58: COEFICIENTE DE REPRESENTATIVIDADE | K58: 104,70 | L58: CAIXA REFERENCIAL
A59: ASSENTAMENTO DE TUBOS E PECAS | B59: ASTU | C59: FORNEC E/OU ASSENT DE TUBO DE PVC COM JUNTA ELASTICA | D59: 0048 | G59: 90694 | H59: TUBO DE PVC PARA REDE COLETORA DE ESGOTO DE PAREDE MACIÇA, DN 100 MM, JUNTA ELÁSTICA - FORNECIMENTO E ASSENTAMENTO. AF_01/2021 | I59: M | J59: COEFICIENTE DE REPRESENTATIVIDADE | K59: 50,73 | L59: CAIXA REFERENCIAL
A60: ASSENTAMENTO DE TUBOS E PECAS | B60: ASTU | C60: FORNEC E/OU ASSENT DE TUBO DE PVC COM JUNTA ELASTICA | D60: 0048 | G60: 90695 | H60: TUBO DE PVC PARA REDE COLETORA DE ESGOTO DE PAREDE MACIÇA, DN 150 MM, JUNTA ELÁSTICA - FORNECIMENTO E ASSENTAMENTO. AF_01/2021 | I60: M | J60: COEFICIENTE DE REPRESENTATIVIDADE | K60: 96,37 | L60: CAIXA REFERENCIAL
A61: ASSENTAMENTO DE TUBOS E PECAS | B61: ASTU | C61: FORNEC E/OU ASSENT DE TUBO DE PVC COM JUNTA ELASTICA | D61: 0048 | G61: 90696 | H61: TUBO DE PVC PARA REDE COLETORA DE ESGOTO DE PAREDE MACIÇA, DN 200 MM, JUNTA ELÁSTICA - FORNECIMENTO E ASSENTAMENTO. AF_01/2021 | I61: M | J61: COEFICIENTE DE REPRESENTATIVIDADE | K61: 161,04 | L61: CAIXA REFERENCIAL
A62: ASSENTAMENTO DE TUBOS E PECAS | B62: ASTU | C62: FORNEC E/OU ASSENT DE TUBO DE PVC COM JUNTA ELASTICA | D62: 0048 | G62: 90697 | H62: TUBO DE PVC PARA REDE COLETORA DE ESGOTO DE PAREDE MACIÇA, DN 250 MM, JUNTA ELÁSTICA - FORNECIMENTO E ASSENTAMENTO. AF_01/2021 | I62: M | J62: COEFICIENTE DE REPRESENTATIVIDADE | K62: 249,83 | L62: CAIXA REFERENCIAL
A63: ASSENTAMENTO DE TUBOS E PECAS | B63: ASTU | C63: FORNEC E/OU ASSENT DE TUBO DE PVC COM JUNTA ELASTICA | D63: 0048 | G63: 90698 | H63: TUBO DE PVC PARA REDE COLETORA DE ESGOTO DE PAREDE MACIÇA, DN 300 MM, JUNTA ELÁSTICA, FORNECIMENTO E ASSENTAMENTO. AF_01/2021 | I63: M | J63: COEFICIENTE DE REPRESENTATIVIDADE | K63: 381,89 | L63: CAIXA REFERENCIAL
A64: ASSENTAMENTO DE TUBOS E PECAS | B64: ASTU | C64: FORNEC E/OU ASSENT DE TUBO DE PVC COM JUNTA ELASTICA | D64: 0048 | G64: 90699 | H64: TUBO DE PVC PARA REDE COLETORA DE ESGOTO DE PAREDE MACIÇA, DN 350 MM, JUNTA ELÁSTICA - FORNECIMENTO E ASSENTAMENTO. AF_01/2021 | I64: M | J64: COEFICIENTE DE REPRESENTATIVIDADE | K64: 537,51 | L64: CAIXA REFERENCIAL
A65: ASSENTAMENTO DE TUBOS E PECAS | B65: ASTU | C65: FORNEC E/OU ASSENT DE TUBO DE PVC COM JUNTA ELASTICA | D65: 0048 | G65: 90700 | H65: TUBO DE PVC PARA REDE COLETORA DE ESGOTO DE PAREDE MACIÇA, DN 400 MM, JUNTA ELÁSTICA FORNECIMENTO E ASSENTAMENTO. AF_01/2021 | I65: M | J65: COEFICIENTE DE REPRESENTATIVIDADE | K65: 627,74 | L65: CAIXA REFERENCIAL
A66: ASSENTAMENTO DE TUBOS E PECAS | B66: ASTU | C66: FORNEC E/OU ASSENT DE TUBO DE PVC COM JUNTA ELASTICA | D66: 0048 | G66: 90701 | H66: TUBO DE PVC CORRUGADO DE DUPLA PAREDE PARA REDE COLETORA DE ESGOTO, DN 150 MM, JUNTA ELÁSTICA - FORNECIMENTO E ASSENTAMENTO. AF_01/2021 | I66: M | J66: COEFICIENTE DE REPRESENTATIVIDADE | K66: 76,17 | L66: CAIXA REFERENCIAL
A67: ASSENTAMENTO DE TUBOS E PECAS | B67: ASTU | C67: FORNEC E/OU ASSENT DE TUBO DE PVC COM JUNTA ELASTICA | D67: 0048 | G67: 90702 | H67: TUBO DE PVC CORRUGADO DE DUPLA PAREDE PARA REDE COLETORA DE ESGOTO, DN 200 MM, JUNTA ELÁSTICA - FORNECIMENTO E ASSENTAMENTO. AF_01/2021 | I67: M | J67: COEFICIENTE DE REPRESENTATIVIDADE | K67: 126,03 | L67: CAIXA REFERENCIAL
A68: ASSENTAMENTO DE TUBOS E PECAS | B68: ASTU | C68: FORNEC E/OU ASSENT DE TUBO DE PVC COM JUNTA ELASTICA | D68: 0048 | G68: 90703 | H68: TUBO DE PVC CORRUGADO DE DUPLA PAREDE PARA REDE COLETORA DE ESGOTO, DN 250 MM, JUNTA ELÁSTICA - FORNECIMENTO E ASSENTAMENTO. AF_01/2021 | I68: M | J68: COEFICIENTE DE REPRESENTATIVIDADE | K68: 198,10 | L68: CAIXA REFERENCIAL
A69: ASSENTAMENTO DE TUBOS E PECAS | B69: ASTU | C69: FORNEC E/OU ASSENT DE TUBO DE PVC COM JUNTA ELASTICA | D69: 0048 | G69: 90704 | H69: TUBO DE PVC CORRUGADO DE DUPLA PAREDE PARA REDE COLETORA DE ESGOTO, DN 300 MM, JUNTA ELÁSTICA - FORNECIMENTO E ASSENTAMENTO. AF_01/2021 | I69: M | J69: COEFICIENTE DE REPRESENTATIVIDADE | K69: 295,72 | L69: CAIXA REFERENCIAL
A70: ASSENTAMENTO DE TUBOS E PECAS | B70: ASTU | C70: FORNEC E/OU ASSENT DE TUBO DE PVC COM JUNTA ELASTICA | D70: 0048 | G70: 90705 | H70: TUBO DE PVC CORRUGADO DE DUPLA PAREDE PARA REDE COLETORA DE ESGOTO, DN 350 MM, JUNTA ELÁSTICA - FORNECIMENTO E ASSENTAMENTO. AF_01/2021 | I70: M | J70: COEFICIENTE DE REPRESENTATIVIDADE | K70: 384,27 | L70: CAIXA REFERENCIAL
A71: ASSENTAMENTO DE TUBOS E PECAS | B71: ASTU | C71: FORNEC E/OU ASSENT DE TUBO DE PVC COM JUNTA ELASTICA | D71: 0048 | G71: 90706 | H71: TUBO DE PVC CORRUGADO DE DUPLA PAREDE PARA REDE COLETORA DE ESGOTO, DN 400 MM, JUNTA ELÁSTICA - FORNECIMENTO E ASSENTAMENTO. AF_01/2021 | I71: M | J71: COEFICIENTE DE REPRESENTATIVIDADE | K71: 509,52 | L71: CAIXA REFERENCIAL
A72: ASSENTAMENTO DE TUBOS E PECAS | B72: ASTU | C72: FORNEC E/OU ASSENT DE TUBO DE PVC COM JUNTA ELASTICA | D72: 0048 | G72: 90708 | H72: TUBO DE PEAD CORRUGADO DE DUPLA PAREDE PARA REDE COLETORA DE ESGOTO, DN 600 MM, JUNTA ELÁSTICA INTEGRADA - FORNECIMENTO E ASSENTAMENTO. AF_01/2021 | I72: M | J72: COEFICIENTE DE REPRESENTATIVIDADE | K72: 1.644,39 | L72: CAIXA REFERENCIAL
A73: ASSENTAMENTO DE TUBOS E PECAS | B73: ASTU | C73: FORNEC E/OU ASSENT DE TUBO DE PVC COM JUNTA ELASTICA | D73: 0048 | G73: 90724 | H73: JUNTA ARGAMASSADA ENTRE TUBO DN 100 MM E O POÇO DE VISITA/ CAIXA DE CONCRETO OU ALVENARIA EM REDES DE ESGOTO. AF_01/2021 | I73: UN | J73: COEFICIENTE DE REPRESENTATIVIDADE | K73: 27,09 | L73: CAIXA REFERENCIAL
A74: ASSENTAMENTO DE TUBOS E PECAS | B74: ASTU | C74: FORNEC E/OU ASSENT DE TUBO DE PVC COM JUNTA ELASTICA | D74: 0048 | G74: 90725 | H74: JUNTA ARGAMASSADA ENTRE TUBO DN 150 MM E O POÇO DE VISITA/ CAIXA DE CONCRETO OU ALVENARIA EM REDES DE ESGOTO. AF_01/2021 | I74: UN | J74: COEFICIENTE DE REPRESENTATIVIDADE | K74: 33,31 | L74: CAIXA REFERENCIAL
A75: ASSENTAMENTO DE TUBOS E PECAS | B75: ASTU | C75: FORNEC E/OU ASSENT DE TUBO DE PVC COM JUNTA ELASTICA | D75: 0048 | G75: 90726 | H75: JUNTA ARGAMASSADA ENTRE TUBO DN 200 MM E O POÇO/ CAIXA DE CONCRETO OU ALVENARIA EM REDES DE ESGOTO. AF_01/2021 | I75: UN | J75: COEFICIENTE DE REPRESENTATIVIDADE | K75: 39,60 | L75: CAIXA REFERENCIAL
A76: ASSENTAMENTO DE TUBOS E PECAS | B76: ASTU | C76: FORNEC E/OU ASSENT DE TUBO DE PVC COM JUNTA ELASTICA | D76: 0048 | G76: 90727 | H76: JUNTA ARGAMASSADA ENTRE TUBO DN 250 MM E O POÇO DE VISITA/ CAIXA DE CONCRETO OU ALVENARIA EM REDES DE ESGOTO. AF_01/2021 | I76: UN | J76: COEFICIENTE DE REPRESENTATIVIDADE | K76: 45,83 | L76: CAIXA REFERENCIAL
A77: ASSENTAMENTO DE TUBOS E PECAS | B77: ASTU | C77: FORNEC E/OU ASSENT DE TUBO DE PVC COM JUNTA ELASTICA | D77: 0048 | G77: 90728 | H77: JUNTA ARGAMASSADA ENTRE TUBO DN 300 MM E O POÇO DE VISITA/ CAIXA DE CONCRETO OU ALVENARIA EM REDES DE ESGOTO. AF_01/2021 | I77: UN | J77: COEFICIENTE DE REPRESENTATIVIDADE | K77: 52,06 | L77: CAIXA REFERENCIAL
A78: ASSENTAMENTO DE TUBOS E PECAS | B78: ASTU | C78: FORNEC E/OU ASSENT DE TUBO DE PVC COM JUNTA ELASTICA | D78: 0048 | G78: 90729 | H78: JUNTA ARGAMASSADA ENTRE TUBO DN 350 MM E O POÇO DE VISITA/ CAIXA DE CONCRETO OU ALVENARIA EM REDES DE ESGOTO. AF_01/2021 | I78: UN | J78: COEFICIENTE DE REPRESENTATIVIDADE | K78: 58,28 | L78: CAIXA REFERENCIAL
A79: ASSENTAMENTO DE TUBOS E PECAS | B79: ASTU | C79: FORNEC E/OU ASSENT DE TUBO DE PVC COM JUNTA ELASTICA | D79: 0048 | G79: 90730 | H79: JUNTA ARGAMASSADA ENTRE TUBO DN 400 MM E O POÇO DE VISITA/ CAIXA DE CONCRETO OU ALVENARIA EM REDES DE ESGOTO. AF_01/2021 | I79: UN | J79: COEFICIENTE DE REPRESENTATIVIDADE | K79: 64,51 | L79: CAIXA REFERENCIAL
A80: ASSENTAMENTO DE TUBOS E PECAS | B80: ASTU | C80: FORNEC E/OU ASSENT DE TUBO DE PVC COM JUNTA ELASTICA | D80: 0048 | G80: 90731 | H80: JUNTA ARGAMASSADA ENTRE TUBO DN 450 MM E O POÇO DE VISITA/ CAIXA DE CONCRETO OU ALVENARIA EM REDES DE ESGOTO. AF_01/2021 | I80: UN | J80: COEFICIENTE DE REPRESENTATIVIDADE | K80: 70,74 | L80: CAIXA REFERENCIAL
A81: ASSENTAMENTO DE TUBOS E PECAS | B81: ASTU | C81: FORNEC E/OU ASSENT DE TUBO DE PVC COM JUNTA ELASTICA | D81: 0048 | G81: 90732 | H81: JUNTA ARGAMASSADA ENTRE TUBO DN 600 MM E O POÇO DE VISITA/ CAIXA DE CONCRETO OU ALVENARIA EM REDES DE ESGOTO. AF_01/2021 | I81: UN | J81: COEFICIENTE DE REPRESENTATIVIDADE | K81: 89,41 | L81: CAIXA REFERENCIAL
A82: ASSENTAMENTO DE TUBOS E PECAS | B82: ASTU | C82: FORNEC E/OU ASSENT DE TUBO DE PVC COM JUNTA ELASTICA | D82: 0048 | G82: 90733 | H82: ASSENTAMENTO DE TUBO DE PVC PARA REDE COLETORA DE ESGOTO DE PAREDE MACIÇA, DN 100 MM, JUNTA ELÁSTICA (NÃO INCLUI FORNECIMENTO). AF_01/2021 | I82: M | J82: COEFICIENTE DE REPRESENTATIVIDADE | K82: 3,83 | L82: CAIXA REFERENCIAL
A83: ASSENTAMENTO DE TUBOS E PECAS | B83: ASTU | C83: FORNEC E/OU ASSENT DE TUBO DE PVC COM JUNTA ELASTICA | D83: 0048 | G83: 90734 | H83: ASSENTAMENTO DE TUBO DE PVC PARA REDE COLETORA DE ESGOTO DE PAREDE MACIÇA, DN 150 MM, JUNTA ELÁSTICA, (NÃO INCLUI FORNECIMENTO). AF_01/2021 | I83: M | J83: COEFICIENTE DE REPRESENTATIVIDADE | K83: 4,53 | L83: CAIXA REFERENCIAL
A84: ASSENTAMENTO DE TUBOS E PECAS | B84: ASTU | C84: FORNEC E/OU ASSENT DE TUBO DE PVC COM JUNTA ELASTICA | D84: 0048 | G84: 90735 | H84: ASSENTAMENTO DE TUBO DE PVC PARA REDE COLETORA DE ESGOTO DE PAREDE MACIÇA, DN 200 MM, JUNTA ELÁSTICA (NÃO INCLUI FORNECIMENTO). AF_01/2021 | I84: M | J84: COEFICIENTE DE REPRESENTATIVIDADE | K84: 5,24 | L84: CAIXA REFERENCIAL
A85: ASSENTAMENTO DE TUBOS E PECAS | B85: ASTU | C85: FORNEC E/OU ASSENT DE TUBO DE PVC COM JUNTA ELASTICA | D85: 0048 | G85: 90736 | H85: ASSENTAMENTO DE TUBO DE PVC PARA REDE COLETORA DE ESGOTO DE PAREDE MACIÇA, DN 250 MM, JUNTA ELÁSTICA (NÃO INCLUI FORNECIMENTO). AF_01/2021 | I85: M | J85: COEFICIENTE DE REPRESENTATIVIDADE | K85: 5,94 | L85: CAIXA REFERENCIAL
A86: ASSENTAMENTO DE TUBOS E PECAS | B86: ASTU | C86: FORNEC E/OU ASSENT DE TUBO DE PVC COM JUNTA ELASTICA | D86: 0048 | G86: 90737 | H86: ASSENTAMENTO DE TUBO DE PVC PARA REDE COLETORA DE ESGOTO DE PAREDE MACIÇA, DN 300 MM, JUNTA ELÁSTICA (NÃO INCLUI FORNECIMENTO). AF_01/2021 | I86: M | J86: COEFICIENTE DE REPRESENTATIVIDADE | K86: 6,66 | L86: CAIXA REFERENCIAL
A87: ASSENTAMENTO DE TUBOS E PECAS | B87: ASTU | C87: FORNEC E/OU ASSENT DE TUBO DE PVC COM JUNTA ELASTICA | D87: 0048 | G87: 90738 | H87: ASSENTAMENTO DE TUBO DE PVC PARA REDE COLETORA DE ESGOTO DE PAREDE MACIÇA, DN 350 MM, JUNTA ELÁSTICA (NÃO INCLUI FORNECIMENTO). AF_01/2021 | I87: M | J87: COEFICIENTE DE REPRESENTATIVIDADE | K87: 7,36 | L87: CAIXA REFERENCIAL
A88: ASSENTAMENTO DE TUBOS E PECAS | B88: ASTU | C88: FORNEC E/OU ASSENT DE TUBO DE PVC COM JUNTA ELASTICA | D88: 0048 | G88: 90739 | H88: ASSENTAMENTO DE TUBO DE PVC PARA REDE COLETORA DE ESGOTO DE PAREDE MACIÇA, DN 400 MM, JUNTA ELÁSTICA (NÃO INCLUI FORNECIMENTO). AF_01/2021 | I88: M | J88: COEFICIENTE DE REPRESENTATIVIDADE | K88: 10,33 | L88: CAIXA REFERENCIAL
A89: ASSENTAMENTO DE TUBOS E PECAS | B89: ASTU | C89: FORNEC E/OU ASSENT DE TUBO DE PVC COM JUNTA ELASTICA | D89: 0048 | G89: 90740 | H89: ASSENTAMENTO DE TUBO DE PVC CORRUGADO DE DUPLA PAREDE PARA REDE COLETORA DE ESGOTO, DN 150 MM, JUNTA ELÁSTICA (NÃO INCLUI FORNECIMENTO). AF_01/2021 | I89: M | J89: COEFICIENTE DE REPRESENTATIVIDADE | K89: 5,05 | L89: CAIXA REFERENCIAL
A90: ASSENTAMENTO DE TUBOS E PECAS | B90: ASTU | C90: FORNEC E/OU ASSENT DE TUBO DE PVC COM JUNTA ELASTICA | D90: 0048 | G90: 90741 | H90: ASSENTAMENTO DE TUBO DE PVC CORRUGADO DE DUPLA PAREDE PARA REDE COLETORA DE ESGOTO, DN 200 MM, JUNTA ELÁSTICA (NÃO INCLUI FORNECIMENTO). AF_01/2021 | I90: M | J90: COEFICIENTE DE REPRESENTATIVIDADE | K90: 5,75 | L90: CAIXA REFERENCIAL
A91: ASSENTAMENTO DE TUBOS E PECAS | B91: ASTU | C91: FORNEC E/OU ASSENT DE TUBO DE PVC COM JUNTA ELASTICA | D91: 0048 | G91: 90742 | H91: ASSENTAMENTO DE TUBO DE PVC CORRUGADO DE DUPLA PAREDE PARA REDE COLETORA DE ESGOTO, DN 250 MM, JUNTA ELÁSTICA (NÃO INCLUI FORNECIMENTO). AF_01/2021 | I91: M | J91: COEFICIENTE DE REPRESENTATIVIDADE | K91: 6,47 | L91: CAIXA REFERENCIAL
A92: ASSENTAMENTO DE TUBOS E PECAS | B92: ASTU | C92: FORNEC E/OU ASSENT DE TUBO DE PVC COM JUNTA ELASTICA | D92: 0048 | G92: 90743 | H92: ASSENTAMENTO DE TUBO DE PVC CORRUGADO DE DUPLA PAREDE PARA REDE COLETORA DE ESGOTO, DN 300 MM, JUNTA ELÁSTICA (NÃO INCLUI FORNECIMENTO). AF_01/2021 | I92: M | J92: COEFICIENTE DE REPRESENTATIVIDADE | K92: 7,18 | L92: CAIXA REFERENCIAL
A93: ASSENTAMENTO DE TUBOS E PECAS | B93: ASTU | C93: FORNEC E/OU ASSENT DE TUBO DE PVC COM JUNTA ELASTICA | D93: 0048 | G93: 90744 | H93: ASSENTAMENTO DE TUBO DE PVC CORRUGADO DE DUPLA PAREDE PARA REDE COLETORA DE ESGOTO, DN 350 MM, JUNTA ELÁSTICA (NÃO INCLUI FORNECIMENTO). AF_01/2021 | I93: M | J93: COEFICIENTE DE REPRESENTATIVIDADE | K93: 7,88 | L93: CAIXA REFERENCIAL
A94: ASSENTAMENTO DE TUBOS E PECAS | B94: ASTU | C94: FORNEC E/OU ASSENT DE TUBO DE PVC COM JUNTA ELASTICA | D94: 0048 | G94: 90745 | H94: ASSENTAMENTO DE TUBO DE PVC CORRUGADO DE DUPLA PAREDE PARA REDE COLETORA DE ESGOTO, DN 400 MM, JUNTA ELÁSTICA (NÃO INCLUI FORNECIMENTO). AF_01/2021 | I94: M | J94: COEFICIENTE DE REPRESENTATIVIDADE | K94: 11,53 | L94: CAIXA REFERENCIAL
A95: ASSENTAMENTO DE TUBOS E PECAS | B95: ASTU | C95: FORNEC E/OU ASSENT DE TUBO DE PVC COM JUNTA ELASTICA | D95: 0048 | G95: 90746 | H95: ASSENTAMENTO DE TUBO DE PEAD CORRUGADO DE DUPLA PAREDE PARA REDE COLETORA DE ESGOTO, DN 450 MM, JUNTA ELÁSTICA INTEGRADA (NÃO INCLUI FORNECIMENTO). AF_01/2021 | I95: M | J95: COEFICIENTE DE REPRESENTATIVIDADE | K95: 4,14 | L95: CAIXA REFERENCIAL
A96: ASSENTAMENTO DE TUBOS E PECAS | B96: ASTU | C96: FORNEC E/OU ASSENT DE TUBO DE PVC COM JUNTA ELASTICA | D96: 0048 | G96: 90747 | H96: ASSENTAMENTO DE TUBO DE PEAD CORRUGADO DE DUPLA PAREDE PARA REDE COLETORA DE ESGOTO, DN 600 MM, JUNTA ELÁSTICA INTEGRADA (NÃO INCLUI FORNECIMENTO). AF_01/2021 | I96: M | J96: COEFICIENTE DE REPRESENTATIVIDADE | K96: 18,56 | L96: CAIXA REFERENCIAL
A97: ASSENTAMENTO DE TUBOS E PECAS | B97: ASTU | C97: FORNEC E/OU ASSENT DE TUBO DE PVC COM JUNTA ELASTICA | D97: 0048 | G97: 94869 | H97: TUBO DE PEAD CORRUGADO DE DUPLA PAREDE PARA REDE COLETORA DE ESGOTO, DN 250 MM, JUNTA ELÁSTICA INTEGRADA - FORNECIMENTO E ASSENTAMENTO. AF_01/2021 | I97: M | J97: COEFICIENTE DE REPRESENTATIVIDADE | K97: 291,31 | L97: CAIXA REFERENCIAL
A98: ASSENTAMENTO DE TUBOS E PECAS | B98: ASTU | C98: FORNEC E/OU ASSENT DE TUBO DE PVC COM JUNTA ELASTICA | D98: 0048 | G98: 94870 | H98: ASSENTAMENTO DE TUBO DE PEAD CORRUGADO DE DUPLA PAREDE PARA REDE COLETORA DE ESGOTO, DN 250 MM, JUNTA ELÁSTICA INTEGRADA (NÃO INCLUI FORNECIMENTO). AF_01/2021 | I98: M | J98: COEFICIENTE DE REPRESENTATIVIDADE | K98: 1,91 | L98: CAIXA REFERENCIAL
A99: ASSENTAMENTO DE TUBOS E PECAS | B99: ASTU | C99: FORNEC E/OU ASSENT DE TUBO DE PVC COM JUNTA ELASTICA | D99: 0048 | G99: 94871 | H99: TUBO DE PEAD CORRUGADO DE DUPLA PAREDE PARA REDE COLETORA DE ESGOTO, DN 300 MM, JUNTA ELÁSTICA INTEGRADA - FORNECIMENTO E ASSENTAMENTO. AF_01/2021 | I99: M | J99: COEFICIENTE DE REPRESENTATIVIDADE | K99: 456,17 | L99: CAIXA REFERENCIAL
A100: ASSENTAMENTO DE TUBOS E PECAS | B100: ASTU | C100: FORNEC E/OU ASSENT DE TUBO DE PVC COM JUNTA ELASTICA | D100: 0048 | G100: 94872 | H100: ASSENTAMENTO DE TUBO DE PEAD CORRUGADO DE DUPLA PAREDE PARA REDE COLETORA DE ESGOTO, DN 300 MM, JUNTA ELÁSTICA INTEGRADA (NÃO INCLUI FORNECIMENTO). AF_01/2021 | I100: M | J100: COEFICIENTE DE REPRESENTATIVIDADE | K100: 2,76 | L100: CAIXA REFERENCIAL
A101: ASSENTAMENTO DE TUBOS E PECAS | B101: ASTU | C101: FORNEC E/OU ASSENT DE TUBO DE PVC COM JUNTA ELASTICA | D101: 0048 | G101: 94875 | H101: TUBO DE PEAD CORRUGADO DE DUPLA PAREDE PARA REDE COLETORA DE ESGOTO, DN 800 MM, JUNTA ELÁSTICA INTEGRADA - FORNECIMENTO E ASSENTAMENTO. AF_01/2021 | I101: M | J101: COEFICIENTE DE REPRESENTATIVIDADE | K101: 2.672,36 | L101: CAIXA REFERENCIAL
A102: ASSENTAMENTO DE TUBOS E PECAS | B102: ASTU | C102: FORNEC E/OU ASSENT DE TUBO DE PVC COM JUNTA ELASTICA | D102: 0048 | G102: 94876 | H102: ASSENTAMENTO DE TUBO DE PEAD CORRUGADO DE DUPLA PAREDE PARA REDE COLETORA DE ESGOTO, DN 800 MM, JUNTA ELÁSTICA INTEGRADA (NÃO INCLUI FORNECIMENTO). AF_01/2021 | I102: M | J102: COEFICIENTE DE REPRESENTATIVIDADE | K102: 30,58 | L102: CAIXA REFERENCIAL
A103: ASSENTAMENTO DE TUBOS E PECAS | B103: ASTU | C103: FORNEC E/OU ASSENT DE TUBO DE PVC COM JUNTA ELASTICA | D103: 0048 | G103: 94878 | H103: ASSENTAMENTO DE TUBO DE PEAD CORRUGADO DE DUPLA PAREDE PARA REDE COLETORA DE ESGOTO, DN 900 MM, JUNTA ELÁSTICA INTEGRADA (NÃO INCLUI FORNECIMENTO). AF_01/2021 | I103: M | J103: COEFICIENTE DE REPRESENTATIVIDADE | K103: 35,46 | L103: CAIXA REFERENCIAL
A104: ASSENTAMENTO DE TUBOS E PECAS | B104: ASTU | C104: FORNEC E/OU ASSENT DE TUBO DE PVC COM JUNTA ELASTICA | D104: 0048 | G104: 94879 | H104: TUBO DE PEAD CORRUGADO DE DUPLA PAREDE PARA REDE COLETORA DE ESGOTO, DN 1000 MM, JUNTA ELÁSTICA INTEGRADA - FORNECIMENTO E ASSENTAMENTO. AF_01/2021 | I104: M | J104: COEFICIENTE DE REPRESENTATIVIDADE | K104: 4.114,94 | L104: CAIXA REFERENCIAL
A105: ASSENTAMENTO DE TUBOS E PECAS | B105: ASTU | C105: FORNEC E/OU ASSENT DE TUBO DE PVC COM JUNTA ELASTICA | D105: 0048 | G105: 94880 | H105: ASSENTAMENTO DE TUBO DE PEAD CORRUGADO DE DUPLA PAREDE PARA REDE COLETORA DE ESGOTO, DN 1000 MM, JUNTA ELÁSTICA INTEGRADA (NÃO INCLUI FORNECIMENTO). AF_01/2021 | I105: M | J105: COEFICIENTE DE REPRESENTATIVIDADE | K105: 45,33 | L105: CAIXA REFERENCIAL
A106: ASSENTAMENTO DE TUBOS E PECAS | B106: ASTU | C106: FORNEC E/OU ASSENT DE TUBO DE PVC COM JUNTA ELASTICA | D106: 0048 | G106: 94881 | H106: TUBO DE PEAD CORRUGADO DE DUPLA PAREDE PARA REDE COLETORA DE ESGOTO, DN 1200 MM, JUNTA ELÁSTICA INTEGRADA - FORNECIMENTO E ASSENTAMENTO. AF_01/2021 | I106: M | J106: COEFICIENTE DE REPRESENTATIVIDADE | K106: 5.677,30 | L106: CAIXA REFERENCIAL
A107: ASSENTAMENTO DE TUBOS E PECAS | B107: ASTU | C107: FORNEC E/OU ASSENT DE TUBO DE PVC COM JUNTA ELASTICA | D107: 0048 | G107: 94882 | H107: ASSENTAMENTO DE TUBO DE PEAD CORRUGADO DE DUPLA PAREDE PARA REDE COLETORA DE ESGOTO, DN 1200 MM, JUNTA ELÁSTICA INTEGRADA (NÃO INCLUI FORNECIMENTO). AF_01/2021 | I107: M | J107: COEFICIENTE DE REPRESENTATIVIDADE | K107: 52,84 | L107: CAIXA REFERENCIAL
A108: ASSENTAMENTO DE TUBOS E PECAS | B108: ASTU | C108: FORNEC E/OU ASSENT DE TUBO DE PVC COM JUNTA ELASTICA | D108: 0048 | G108: 94884 | H108: ASSENTAMENTO DE TUBO DE PEAD CORRUGADO DE DUPLA PAREDE PARA REDE COLETORA DE ESGOTO, DN 1500 MM, JUNTA ELÁSTICA INTEGRADA (NÃO INCLUI FORNECIMENTO). AF_01/2021 | I108: M | J108: COEFICIENTE DE REPRESENTATIVIDADE | K108: 68,11 | L108: CAIXA REFERENCIAL
A109: ASSENTAMENTO DE TUBOS E PECAS | B109: ASTU | C109: FORNEC E/OU ASSENT DE TUBO DE PVC COM JUNTA ELASTICA | D109: 0048 | G109: 97121 | H109: ASSENTAMENTO DE TUBO DE PVC PBA PARA REDE DE ÁGUA, DN 50 MM, JUNTA ELÁSTICA INTEGRADA, INSTALADO EM LOCAL COM NÍVEL ALTO DE INTERFERÊNCIAS (NÃO INCLUI FORNECIMENTO). AF_11/2017 | I109: M | J109: COEFICIENTE DE REPRESENTATIVIDADE | K109: 2,26 | L109: CAIXA REFERENCIAL
A110: ASSENTAMENTO DE TUBOS E PECAS | B110: ASTU | C110: FORNEC E/OU ASSENT DE TUBO DE PVC COM JUNTA ELASTICA | D110: 0048 | G110: 97122 | H110: ASSENTAMENTO DE TUBO DE PVC PBA PARA REDE DE ÁGUA, DN 75 MM, JUNTA ELÁSTICA INTEGRADA, INSTALADO EM LOCAL COM NÍVEL ALTO DE INTERFERÊNCIAS (NÃO INCLUI FORNECIMENTO). AF_11/2017 | I110: M | J110: COEFICIENTE DE REPRESENTATIVIDADE | K110: 3,12 | L110: CAIXA REFERENCIAL
A111: ASSENTAMENTO DE TUBOS E PECAS | B111: ASTU | C111: FORNEC E/OU ASSENT DE TUBO DE PVC COM JUNTA ELASTICA | D111: 0048 | G111: 97123 | H111: ASSENTAMENTO DE TUBO DE PVC PBA PARA REDE DE ÁGUA, DN 100 MM, JUNTA ELÁSTICA INTEGRADA, INSTALADO EM LOCAL COM NÍVEL ALTO DE INTERFERÊNCIAS (NÃO INCLUI FORNECIMENTO). AF_11/2017 | I111: M | J111: COEFICIENTE DE REPRESENTATIVIDADE | K111: 3,96 | L111: CAIXA REFERENCIAL
A112: ASSENTAMENTO DE TUBOS E PECAS | B112: ASTU | C112: FORNEC E/OU ASSENT DE TUBO DE PVC COM JUNTA ELASTICA | D112: 0048 | G112: 97124 | H112: ASSENTAMENTO DE TUBO DE PVC PBA PARA REDE DE ÁGUA, DN 50 MM, JUNTA ELÁSTICA INTEGRADA, INSTALADO EM LOCAL COM NÍVEL BAIXO DE INTERFERÊNCIAS (NÃO INCLUI FORNECIMENTO). AF_11/2017 | I112: M | J112: COEFICIENTE DE REPRESENTATIVIDADE | K112: 0,99 | L112: CAIXA REFERENCIAL
A113: ASSENTAMENTO DE TUBOS E PECAS | B113: ASTU | C113: FORNEC E/OU ASSENT DE TUBO DE PVC COM JUNTA ELASTICA | D113: 0048 | G113: 97125 | H113: ASSENTAMENTO DE TUBO DE PVC PBA PARA REDE DE ÁGUA, DN 75 MM, JUNTA ELÁSTICA INTEGRADA, INSTALADO EM LOCAL COM NÍVEL BAIXO DE INTERFERÊNCIAS (NÃO INCLUI FORNECIMENTO). AF_11/2017 | I113: M | J113: COEFICIENTE DE REPRESENTATIVIDADE | K113: 1,39 | L113: CAIXA REFERENCIAL
A114: ASSENTAMENTO DE TUBOS E PECAS | B114: ASTU | C114: FORNEC E/OU ASSENT DE TUBO DE PVC COM JUNTA ELASTICA | D114: 0048 | G114: 97126 | H114: ASSENTAMENTO DE TUBO DE PVC PBA PARA REDE DE ÁGUA, DN 100 MM, JUNTA ELÁSTICA INTEGRADA, INSTALADO EM LOCAL COM NÍVEL BAIXO DE INTERFERÊNCIAS (NÃO INCLUI FORNECIMENTO). AF_11/2017 | I114: M | J114: COEFICIENTE DE REPRESENTATIVIDADE | K114: 1,76 | L114: CAIXA REFERENCIAL
A115: ASSENTAMENTO DE TUBOS E PECAS | B115: ASTU | C115: FORNEC E/OU ASSENT DE TUBO DE PVC COM JUNTA ELASTICA | D115: 0048 | G115: 102264 | H115: TUBO DE PVC BRANCO PARA REDE COLETORA DE ESGOTO CONDOMINIAL DE PAREDE MACIÇA, DN 100 MM, JUNTA ELÁSTICA - FORNECIMENTO E ASSENTAMENTO. AF_01/2021 | I115: M | J115: COEFICIENTE DE REPRESENTATIVIDADE | K115: 22,12 | L115: CAIXA REFERENCIAL
A116: ASSENTAMENTO DE TUBOS E PECAS | B116: ASTU | C116: FORNEC E/OU ASSENT DE TUBO DE PVC COM JUNTA ELASTICA | D116: 0048 | G116: 102265 | H116: JUNTA ARGAMASSADA ENTRE TUBO DN 800 MM E O POÇO DE VISITA/ CAIXA DE CONCRETO OU ALVENARIA EM REDES DE ESGOTO. AF_01/2021 | I116: UN | J116: COEFICIENTE DE REPRESENTATIVIDADE | K116: 114,31 | L116: CAIXA REFERENCIAL
A117: ASSENTAMENTO DE TUBOS E PECAS | B117: ASTU | C117: FORNEC E/OU ASSENT DE TUBO DE PVC COM JUNTA ELASTICA | D117: 0048 | G117: 102266 | H117: JUNTA ARGAMASSADA ENTRE TUBO DN 900 MM E O POÇO DE VISITA/ CAIXA DE CONCRETO OU ALVENARIA EM REDES DE ESGOTO. AF_01/2021 | I117: UN | J117: COEFICIENTE DE REPRESENTATIVIDADE | K117: 126,76 | L117: CAIXA REFERENCIAL
A118: ASSENTAMENTO DE TUBOS E PECAS | B118: ASTU | C118: FORNEC E/OU ASSENT DE TUBO DE PVC COM JUNTA ELASTICA | D118: 0048 | G118: 102267 | H118: JUNTA ARGAMASSADA ENTRE TUBO DN 1000 MM E O POÇO DE VISITA/ CAIXA DE CONCRETO OU ALVENARIA EM REDES DE ESGOTO. AF_01/2021 | I118: UN | J118: COEFICIENTE DE REPRESENTATIVIDADE | K118: 145,51 | L118: CAIXA REFERENCIAL
A119: ASSENTAMENTO DE TUBOS E PECAS | B119: ASTU | C119: FORNEC E/OU ASSENT DE TUBO DE PVC COM JUNTA ELASTICA | D119: 0048 | G119: 102268 | H119: JUNTA ARGAMASSADA ENTRE TUBO DN 1200 MM E O POÇO DE VISITA/ CAIXA DE CONCRETO OU ALVENARIA EM REDES DE ESGOTO. AF_01/2021 | I119: UN | J119: COEFICIENTE DE REPRESENTATIVIDADE | K119: 164,18 | L119: CAIXA REFERENCIAL
A120: ASSENTAMENTO DE TUBOS E PECAS | B120: ASTU | C120: FORNEC E/OU ASSENT DE TUBO DE PVC COM JUNTA ELASTICA | D120: 0048 | G120: 102269 | H120: JUNTA ARGAMASSADA ENTRE TUBO DN 1500 MM E O POÇO DE VISITA/ CAIXA DE CONCRETO OU ALVENARIA EM REDES DE ESGOTO. AF_01/2021 | I120: UN | J120: COEFICIENTE DE REPRESENTATIVIDADE | K120: 201,53 | L120: CAIXA REFERENCIAL
A121: ASSENTAMENTO DE TUBOS E PECAS | B121: ASTU | C121: FORNEC E/OU ASSENT DE TUBO DE CONCRETO COM JUNTA ELASTICA | D121: 0051 | G121: 92833 | H121: TUBO DE CONCRETO PARA REDES COLETORAS DE ESGOTO SANITÁRIO, DIÂMETRO DE 300 MM, JUNTA ELÁSTICA, INSTALADO EM LOCAL COM BAIXO NÍVEL DE INTERFERÊNCIAS - FORNECIMENTO E ASSENTAMENTO. AF_12/2015 | I121: M | J121: COEFICIENTE DE REPRESENTATIVIDADE | K121: 172,42 | L121: CAIXA REFERENCIAL
A122: ASSENTAMENTO DE TUBOS E PECAS | B122: ASTU | C122: FORNEC E/OU ASSENT DE TUBO DE CONCRETO COM JUNTA ELASTICA | D122: 0051 | G122: 92834 | H122: ASSENTAMENTO DE TUBO DE CONCRETO PARA REDES COLETORAS DE ESGOTO SANITÁRIO, DIÂMETRO DE 300 MM, JUNTA ELÁSTICA, INSTALADO EM LOCAL COM BAIXO NÍVEL DE INTERFERÊNCIAS (NÃO INCLUI FORNECIMENTO). AF_12/2015 | I122: M | J122: COEFICIENTE DE REPRESENTATIVIDADE | K122: 10,03 | L122: CAIXA REFERENCIAL
A123: ASSENTAMENTO DE TUBOS E PECAS | B123: ASTU | C123: FORNEC E/OU ASSENT DE TUBO DE CONCRETO COM JUNTA ELASTICA | D123: 0051 | G123: 92835 | H123: TUBO DE CONCRETO PARA REDES COLETORAS DE ESGOTO SANITÁRIO, DIÂMETRO DE 400 MM, JUNTA ELÁSTICA, INSTALADO EM LOCAL COM BAIXO NÍVEL DE INTERFERÊNCIAS - FORNECIMENTO E ASSENTAMENTO. AF_12/2015 | I123: M | J123: COEFICIENTE DE REPRESENTATIVIDADE | K123: 181,81 | L123: CAIXA REFERENCIAL
A124: ASSENTAMENTO DE TUBOS E PECAS | B124: ASTU | C124: FORNEC E/OU ASSENT DE TUBO DE CONCRETO COM JUNTA ELASTICA | D124: 0051 | G124: 92836 | H124: ASSENTAMENTO DE TUBO DE CONCRETO PARA REDES COLETORAS DE ESGOTO SANITÁRIO, DIÂMETRO DE 400 MM, JUNTA ELÁSTICA, INSTALADO EM LOCAL COM BAIXO NÍVEL DE INTERFERÊNCIAS (NÃO INCLUI FORNECIMENTO). AF_12/2015 | I124: M | J124: COEFICIENTE DE REPRESENTATIVIDADE | K124: 12,79 | L124: CAIXA REFERENCIAL
A125: ASSENTAMENTO DE TUBOS E PECAS | B125: ASTU | C125: FORNEC E/OU ASSENT DE TUBO DE CONCRETO COM JUNTA ELASTICA | D125: 0051 | G125: 92837 | H125: TUBO DE CONCRETO PARA REDES COLETORAS DE ESGOTO SANITÁRIO, DIÂMETRO DE 500 MM, JUNTA ELÁSTICA, INSTALADO EM LOCAL COM BAIXO NÍVEL DE INTERFERÊNCIAS - FORNECIMENTO E ASSENTAMENTO. AF_12/2015 | I125: M | J125: COEFICIENTE DE REPRESENTATIVIDADE | K125: 316,50 | L125: CAIXA REFERENCIAL
A126: ASSENTAMENTO DE TUBOS E PECAS | B126: ASTU | C126: FORNEC E/OU ASSENT DE TUBO DE CONCRETO COM JUNTA ELASTICA | D126: 0051 | G126: 92838 | H126: ASSENTAMENTO DE TUBO DE CONCRETO PARA REDES COLETORAS DE ESGOTO SANITÁRIO, DIÂMETRO DE 500 MM, JUNTA ELÁSTICA, INSTALADO EM LOCAL COM BAIXO NÍVEL DE INTERFERÊNCIAS (NÃO INCLUI FORNECIMENTO). AF_12/2015 | I126: M | J126: COEFICIENTE DE REPRESENTATIVIDADE | K126: 15,35 | L126: CAIXA REFERENCIAL
A127: ASSENTAMENTO DE TUBOS E PECAS | B127: ASTU | C127: FORNEC E/OU ASSENT DE TUBO DE CONCRETO COM JUNTA ELASTICA | D127: 0051 | G127: 92839 | H127: TUBO DE CONCRETO PARA REDES COLETORAS DE ESGOTO SANITÁRIO, DIÂMETRO DE 600 MM, JUNTA ELÁSTICA, INSTALADO EM LOCAL COM BAIXO NÍVEL DE INTERFERÊNCIAS - FORNECIMENTO E ASSENTAMENTO. AF_12/2015 | I127: M | J127: COEFICIENTE DE REPRESENTATIVIDADE | K127: 386,87 | L127: CAIXA REFERENCIAL
A128: ASSENTAMENTO DE TUBOS E PECAS | B128: ASTU | C128: FORNEC E/OU ASSENT DE TUBO DE CONCRETO COM JUNTA ELASTICA | D128: 0051 | G128: 92840 | H128: ASSENTAMENTO DE TUBO DE CONCRETO PARA REDES COLETORAS DE ESGOTO SANITÁRIO, DIÂMETRO DE 600 MM, JUNTA ELÁSTICA, INSTALADO EM LOCAL COM BAIXO NÍVEL DE INTERFERÊNCIAS (NÃO INCLUI FORNECIMENTO). AF_12/2015 | I128: M | J128: COEFICIENTE DE REPRESENTATIVIDADE | K128: 18,20 | L128: CAIXA REFERENCIAL
A129: ASSENTAMENTO DE TUBOS E PECAS | B129: ASTU | C129: FORNEC E/OU ASSENT DE TUBO DE CONCRETO COM JUNTA ELASTICA | D129: 0051 | G129: 92841 | H129: TUBO DE CONCRETO PARA REDES COLETORAS DE ESGOTO SANITÁRIO, DIÂMETRO DE 700 MM, JUNTA ELÁSTICA, INSTALADO EM LOCAL COM BAIXO NÍVEL DE INTERFERÊNCIAS - FORNECIMENTO E ASSENTAMENTO. AF_12/2015 | I129: M | J129: COEFICIENTE DE REPRESENTATIVIDADE | K129: 503,72 | L129: CAIXA REFERENCIAL
A130: ASSENTAMENTO DE TUBOS E PECAS | B130: ASTU | C130: FORNEC E/OU ASSENT DE TUBO DE CONCRETO COM JUNTA ELASTICA | D130: 0051 | G130: 92842 | H130: ASSENTAMENTO DE TUBO DE CONCRETO PARA REDES COLETORAS DE ESGOTO SANITÁRIO, DIÂMETRO DE 700 MM, JUNTA ELÁSTICA, INSTALADO EM LOCAL COM BAIXO NÍVEL DE INTERFERÊNCIAS (NÃO INCLUI FORNECIMENTO). AF_12/2015 | I130: M | J130: COEFICIENTE DE REPRESENTATIVIDADE | K130: 20,76 | L130: CAIXA REFERENCIAL
A131: ASSENTAMENTO DE TUBOS E PECAS | B131: ASTU | C131: FORNEC E/OU ASSENT DE TUBO DE CONCRETO COM JUNTA ELASTICA | D131: 0051 | G131: 92843 | H131: TUBO DE CONCRETO PARA REDES COLETORAS DE ESGOTO SANITÁRIO, DIÂMETRO DE 800 MM, JUNTA ELÁSTICA, INSTALADO EM LOCAL COM BAIXO NÍVEL DE INTERFERÊNCIAS - FORNECIMENTO E ASSENTAMENTO. AF_12/2015 | I131: M | J131: COEFICIENTE DE REPRESENTATIVIDADE | K131: 524,35 | L131: CAIXA REFERENCIAL
A132: ASSENTAMENTO DE TUBOS E PECAS | B132: ASTU | C132: FORNEC E/OU ASSENT DE TUBO DE CONCRETO COM JUNTA ELASTICA | D132: 0051 | G132: 92844 | H132: ASSENTAMENTO DE TUBO DE CONCRETO PARA REDES COLETORAS DE ESGOTO SANITÁRIO, DIÂMETRO DE 800 MM, JUNTA ELÁSTICA, INSTALADO EM LOCAL COM BAIXO NÍVEL DE INTERFERÊNCIAS (NÃO INCLUI FORNECIMENTO). AF_12/2015 | I132: M | J132: COEFICIENTE DE REPRESENTATIVIDADE | K132: 23,61 | L132: CAIXA REFERENCIAL
A133: ASSENTAMENTO DE TUBOS E PECAS | B133: ASTU | C133: FORNEC E/OU ASSENT DE TUBO DE CONCRETO COM JUNTA ELASTICA | D133: 0051 | G133: 92845 | H133: TUBO DE CONCRETO PARA REDES COLETORAS DE ESGOTO SANITÁRIO, DIÂMETRO DE 900 MM, JUNTA ELÁSTICA, INSTALADO EM LOCAL COM BAIXO NÍVEL DE INTERFERÊNCIAS - FORNECIMENTO E ASSENTAMENTO. AF_12/2015 | I133: M | J133: COEFICIENTE DE REPRESENTATIVIDADE | K133: 770,56 | L133: CAIXA REFERENCIAL
A134: ASSENTAMENTO DE TUBOS E PECAS | B134: ASTU | C134: FORNEC E/OU ASSENT DE TUBO DE CONCRETO COM JUNTA ELASTICA | D134: 0051 | G134: 92846 | H134: ASSENTAMENTO DE TUBO DE CONCRETO PARA REDES COLETORAS DE ESGOTO SANITÁRIO, DIÂMETRO DE 900 MM, JUNTA ELÁSTICA, INSTALADO EM LOCAL COM BAIXO NÍVEL DE INTERFERÊNCIAS (NÃO INCLUI FORNECIMENTO). AF_12/2015 | I134: M | J134: COEFICIENTE DE REPRESENTATIVIDADE | K134: 26,16 | L134: CAIXA REFERENCIAL
A135: ASSENTAMENTO DE TUBOS E PECAS | B135: ASTU | C135: FORNEC E/OU ASSENT DE TUBO DE CONCRETO COM JUNTA ELASTICA | D135: 0051 | G135: 92847 | H135: TUBO DE CONCRETO PARA REDES COLETORAS DE ESGOTO SANITÁRIO, DIÂMETRO DE 1000 MM, JUNTA ELÁSTICA, INSTALADO EM LOCAL COM BAIXO NÍVEL DE INTERFERÊNCIAS - FORNECIMENTO E ASSENTAMENTO. AF_12/2015 | I135: M | J135: COEFICIENTE DE REPRESENTATIVIDADE | K135: 795,70 | L135: CAIXA REFERENCIAL
A136: ASSENTAMENTO DE TUBOS E PECAS | B136: ASTU | C136: FORNEC E/OU ASSENT DE TUBO DE CONCRETO COM JUNTA ELASTICA | D136: 0051 | G136: 92848 | H136: ASSENTAMENTO DE TUBO DE CONCRETO PARA REDES COLETORAS DE ESGOTO SANITÁRIO, DIÂMETRO DE 1000 MM, JUNTA ELÁSTICA, INSTALADO EM LOCAL COM BAIXO NÍVEL DE INTERFERÊNCIAS (NÃO INCLUI FORNECIMENTO). AF_12/2015 | I136: M | J136: COEFICIENTE DE REPRESENTATIVIDADE | K136: 29,05 | L136: CAIXA REFERENCIAL
A137: ASSENTAMENTO DE TUBOS E PECAS | B137: ASTU | C137: FORNEC E/OU ASSENT DE TUBO DE CONCRETO COM JUNTA ELASTICA | D137: 0051 | G137: 92849 | H137: TUBO DE CONCRETO PARA REDES COLETORAS DE ESGOTO SANITÁRIO, DIÂMETRO DE 300 MM, JUNTA ELÁSTICA, INSTALADO EM LOCAL COM ALTO NÍVEL DE INTERFERÊNCIAS - FORNECIMENTO E ASSENTAMENTO. AF_12/2015 | I137: M | J137: COEFICIENTE DE REPRESENTATIVIDADE | K137: 181,34 | L137: CAIXA REFERENCIAL
A138: ASSENTAMENTO DE TUBOS E PECAS | B138: ASTU | C138: FORNEC E/OU ASSENT DE TUBO DE CONCRETO COM JUNTA ELASTICA | D138: 0051 | G138: 92850 | H138: ASSENTAMENTO DE TUBO DE CONCRETO PARA REDES COLETORAS DE ESGOTO SANITÁRIO, DIÂMETRO DE 300 MM, JUNTA ELÁSTICA, INSTALADO EM LOCAL COM ALTO NÍVEL DE INTERFERÊNCIAS (NÃO INCLUI FORNECIMENTO). AF_12/2015 | I138: M | J138: COEFICIENTE DE REPRESENTATIVIDADE | K138: 18,95 | L138: CAIXA REFERENCIAL
A139: ASSENTAMENTO DE TUBOS E PECAS | B139: ASTU | C139: FORNEC E/OU ASSENT DE TUBO DE CONCRETO COM JUNTA ELASTICA | D139: 0051 | G139: 92851 | H139: TUBO DE CONCRETO PARA REDES COLETORAS DE ESGOTO SANITÁRIO, DIÂMETRO DE 400 MM, JUNTA ELÁSTICA, INSTALADO EM LOCAL COM ALTO NÍVEL DE INTERFERÊNCIAS - FORNECIMENTO E ASSENTAMENTO. AF_12/2015 | I139: M | J139: COEFICIENTE DE REPRESENTATIVIDADE | K139: 192,94 | L139: CAIXA REFERENCIAL
A140: ASSENTAMENTO DE TUBOS E PECAS | B140: ASTU | C140: FORNEC E/OU ASSENT DE TUBO DE CONCRETO COM JUNTA ELASTICA | D140: 0051 | G140: 92852 | H140: ASSENTAMENTO DE TUBO DE CONCRETO PARA REDES COLETORAS DE ESGOTO SANITÁRIO, DIÂMETRO DE 400 MM, JUNTA ELÁSTICA, INSTALADO EM LOCAL COM ALTO NÍVEL DE INTERFERÊNCIAS (NÃO INCLUI FORNECIMENTO). AF_12/2015 | I140: M | J140: COEFICIENTE DE REPRESENTATIVIDADE | K140: 23,92 | L140: CAIXA REFERENCIAL
A141: ASSENTAMENTO DE TUBOS E PECAS | B141: ASTU | C141: FORNEC E/OU ASSENT DE TUBO DE CONCRETO COM JUNTA ELASTICA | D141: 0051 | G141: 92853 | H141: TUBO DE CONCRETO PARA REDES COLETORAS DE ESGOTO SANITÁRIO, DIÂMETRO DE 500 MM, JUNTA ELÁSTICA, INSTALADO EM LOCAL COM ALTO NÍVEL DE INTERFERÊNCIAS - FORNECIMENTO E ASSENTAMENTO. AF_12/2015 | I141: M | J141: COEFICIENTE DE REPRESENTATIVIDADE | K141: 330,29 | L141: CAIXA REFERENCIAL
A142: ASSENTAMENTO DE TUBOS E PECAS | B142: ASTU | C142: FORNEC E/OU ASSENT DE TUBO DE CONCRETO COM JUNTA ELASTICA | D142: 0051 | G142: 92854 | H142: ASSENTAMENTO DE TUBO DE CONCRETO PARA REDES COLETORAS DE ESGOTO SANITÁRIO, DIÂMETRO DE 500 MM, JUNTA ELÁSTICA, INSTALADO EM LOCAL COM ALTO NÍVEL DE INTERFERÊNCIAS (NÃO INCLUI FORNECIMENTO). AF_12/2015 | I142: M | J142: COEFICIENTE DE REPRESENTATIVIDADE | K142: 29,14 | L142: CAIXA REFERENCIAL
A143: ASSENTAMENTO DE TUBOS E PECAS | B143: ASTU | C143: FORNEC E/OU ASSENT DE TUBO DE CONCRETO COM JUNTA ELASTICA | D143: 0051 | G143: 92855 | H143: TUBO DE CONCRETO PARA REDES COLETORAS DE ESGOTO SANITÁRIO, DIÂMETRO DE 600 MM, JUNTA ELÁSTICA, INSTALADO EM LOCAL COM ALTO NÍVEL DE INTERFERÊNCIAS - FORNECIMENTO E ASSENTAMENTO. AF_12/2015 | I143: M | J143: COEFICIENTE DE REPRESENTATIVIDADE | K143: 403,01 | L143: CAIXA REFERENCIAL
A144: ASSENTAMENTO DE TUBOS E PECAS | B144: ASTU | C144: FORNEC E/OU ASSENT DE TUBO DE CONCRETO COM JUNTA ELASTICA | D144: 0051 | G144: 92856 | H144: ASSENTAMENTO DE TUBO DE CONCRETO PARA REDES COLETORAS DE ESGOTO SANITÁRIO, DIÂMETRO DE 600 MM, JUNTA ELÁSTICA, INSTALADO EM LOCAL COM ALTO NÍVEL DE INTERFERÊNCIAS (NÃO INCLUI FORNECIMENTO). AF_12/2015 | I144: M | J144: COEFICIENTE DE REPRESENTATIVIDADE | K144: 34,34 | L144: CAIXA REFERENCIAL
A145: ASSENTAMENTO DE TUBOS E PECAS | B145: ASTU | C145: FORNEC E/OU ASSENT DE TUBO DE CONCRETO COM JUNTA ELASTICA | D145: 0051 | G145: 92857 | H145: TUBO DE CONCRETO PARA REDES COLETORAS DE ESGOTO SANITÁRIO, DIÂMETRO DE 700 MM, JUNTA ELÁSTICA, INSTALADO EM LOCAL COM ALTO NÍVEL DE INTERFERÊNCIAS - FORNECIMENTO E ASSENTAMENTO. AF_12/2015 | I145: M | J145: COEFICIENTE DE REPRESENTATIVIDADE | K145: 522,26 | L145: CAIXA REFERENCIAL
A146: ASSENTAMENTO DE TUBOS E PECAS | B146: ASTU | C146: FORNEC E/OU ASSENT DE TUBO DE CONCRETO COM JUNTA ELASTICA | D146: 0051 | G146: 92858 | H146: ASSENTAMENTO DE TUBO DE CONCRETO PARA REDES COLETORAS DE ESGOTO SANITÁRIO, DIÂMETRO DE 700 MM, JUNTA ELÁSTICA, INSTALADO EM LOCAL COM ALTO NÍVEL DE INTERFERÊNCIAS (NÃO INCLUI FORNECIMENTO). AF_12/2015 | I146: M | J146: COEFICIENTE DE REPRESENTATIVIDADE | K146: 39,30 | L146: CAIXA REFERENCIAL
A147: ASSENTAMENTO DE TUBOS E PECAS | B147: ASTU | C147: FORNEC E/OU ASSENT DE TUBO DE CONCRETO COM JUNTA ELASTICA | D147: 0051 | G147: 92859 | H147: TUBO DE CONCRETO PARA REDES COLETORAS DE ESGOTO SANITÁRIO, DIÂMETRO DE 800 MM, JUNTA ELÁSTICA, INSTALADO EM LOCAL COM ALTO NÍVEL DE INTERFERÊNCIAS - FORNECIMENTO E ASSENTAMENTO. AF_12/2015 | I147: M | J147: COEFICIENTE DE REPRESENTATIVIDADE | K147: 545,37 | L147: CAIXA REFERENCIAL
A148: ASSENTAMENTO DE TUBOS E PECAS | B148: ASTU | C148: FORNEC E/OU ASSENT DE TUBO DE CONCRETO COM JUNTA ELASTICA | D148: 0051 | G148: 92860 | H148: ASSENTAMENTO DE TUBO DE CONCRETO PARA REDES COLETORAS DE ESGOTO SANITÁRIO, DIÂMETRO DE 800 MM, JUNTA ELÁSTICA, INSTALADO EM LOCAL COM ALTO NÍVEL DE INTERFERÊNCIAS (NÃO INCLUI FORNECIMENTO). AF_12/2015 | I148: M | J148: COEFICIENTE DE REPRESENTATIVIDADE | K148: 44,63 | L148: CAIXA REFERENCIAL
A149: ASSENTAMENTO DE TUBOS E PECAS | B149: ASTU | C149: FORNEC E/OU ASSENT DE TUBO DE CONCRETO COM JUNTA ELASTICA | D149: 0051 | G149: 92861 | H149: TUBO DE CONCRETO PARA REDES COLETORAS DE ESGOTO SANITÁRIO, DIÂMETRO DE 900 MM, JUNTA ELÁSTICA, INSTALADO EM LOCAL COM ALTO NÍVEL DE INTERFERÊNCIAS - FORNECIMENTO E ASSENTAMENTO. AF_12/2015 | I149: M | J149: COEFICIENTE DE REPRESENTATIVIDADE | K149: 794,21 | L149: CAIXA REFERENCIAL
A150: ASSENTAMENTO DE TUBOS E PECAS | B150: ASTU | C150: FORNEC E/OU ASSENT DE TUBO DE CONCRETO COM JUNTA ELASTICA | D150: 0051 | G150: 92862 | H150: ASSENTAMENTO DE TUBO DE CONCRETO PARA REDES COLETORAS DE ESGOTO SANITÁRIO, DIÂMETRO DE 900 MM, JUNTA ELÁSTICA, INSTALADO EM LOCAL COM ALTO NÍVEL DE INTERFERÊNCIAS (NÃO INCLUI FORNECIMENTO). AF_12/2015 | I150: M | J150: COEFICIENTE DE REPRESENTATIVIDADE | K150: 49,81 | L150: CAIXA REFERENCIAL
A151: ASSENTAMENTO DE TUBOS E PECAS | B151: ASTU | C151: FORNEC E/OU ASSENT DE TUBO DE CONCRETO COM JUNTA ELASTICA | D151: 0051 | G151: 92863 | H151: TUBO DE CONCRETO PARA REDES COLETORAS DE ESGOTO SANITÁRIO, DIÂMETRO DE 1000 MM, JUNTA ELÁSTICA, INSTALADO EM LOCAL COM ALTO NÍVEL DE INTERFERÊNCIAS - FORNECIMENTO E ASSENTAMENTO. AF_12/2015 | I151: M | J151: COEFICIENTE DE REPRESENTATIVIDADE | K151: 821,66 | L151: CAIXA REFERENCIAL
A152: ASSENTAMENTO DE TUBOS E PECAS | B152: ASTU | C152: FORNEC E/OU ASSENT DE TUBO DE CONCRETO COM JUNTA ELASTICA | D152: 0051 | G152: 92864 | H152: ASSENTAMENTO DE TUBO DE CONCRETO PARA REDES COLETORAS DE ESGOTO SANITÁRIO, DIÂMETRO DE 1000 MM, JUNTA ELÁSTICA, INSTALADO EM LOCAL COM ALTO NÍVEL DE INTERFERÊNCIAS (NÃO INCLUI FORNECIMENTO). AF_12/2015 | I152: M | J152: COEFICIENTE DE REPRESENTATIVIDADE | K152: 55,01 | L152: CAIXA REFERENCIAL
A153: ASSENTAMENTO DE TUBOS E PECAS | B153: ASTU | C153: FORNEC E/OU ASSENT DE TUBO DE CONCRETO COM JUNTA ARGAMASSADA | D153: 0052 | G153: 92210 | H153: TUBO DE CONCRETO PARA REDES COLETORAS DE ÁGUAS PLUVIAIS, DIÂMETRO DE 400 MM, JUNTA RÍGIDA, INSTALADO EM LOCAL COM BAIXO NÍVEL DE INTERFERÊNCIAS - FORNECIMENTO E ASSENTAMENTO. AF_12/2015 | I153: M | J153: COEFICIENTE DE REPRESENTATIVIDADE | K153: 150,95 | L153: CAIXA REFERENCIAL
A154: ASSENTAMENTO DE TUBOS E PECAS | B154: ASTU | C154: FORNEC E/OU ASSENT DE TUBO DE CONCRETO COM JUNTA ARGAMASSADA | D154: 0052 | G154: 92211 | H154: TUBO DE CONCRETO PARA REDES COLETORAS DE ÁGUAS PLUVIAIS, DIÂMETRO DE 500 MM, JUNTA RÍGIDA, INSTALADO EM LOCAL COM BAIXO NÍVEL DE INTERFERÊNCIAS - FORNECIMENTO E ASSENTAMENTO. AF_12/2015 | I154: M | J154: COEFICIENTE DE REPRESENTATIVIDADE | K154: 181,65 | L154: CAIXA REFERENCIAL
A155: ASSENTAMENTO DE TUBOS E PECAS | B155: ASTU | C155: FORNEC E/OU ASSENT DE TUBO DE CONCRETO COM JUNTA ARGAMASSADA | D155: 0052 | G155: 92212 | H155: TUBO DE CONCRETO PARA REDES COLETORAS DE ÁGUAS PLUVIAIS, DIÂMETRO DE 600 MM, JUNTA RÍGIDA, INSTALADO EM LOCAL COM BAIXO NÍVEL DE INTERFERÊNCIAS - FORNECIMENTO E ASSENTAMENTO. AF_12/2015 | I155: M | J155: COEFICIENTE DE REPRESENTATIVIDADE | K155: 263,97 | L155: CAIXA REFERENCIAL
A156: ASSENTAMENTO DE TUBOS E PECAS | B156: ASTU | C156: FORNEC E/OU ASSENT DE TUBO DE CONCRETO COM JUNTA ARGAMASSADA | D156: 0052 | G156: 92213 | H156: TUBO DE CONCRETO PARA REDES COLETORAS DE ÁGUAS PLUVIAIS, DIÂMETRO DE 700 MM, JUNTA RÍGIDA, INSTALADO EM LOCAL COM BAIXO NÍVEL DE INTERFERÊNCIAS - FORNECIMENTO E ASSENTAMENTO. AF_12/2015 | I156: M | J156: COEFICIENTE DE REPRESENTATIVIDADE | K156: 342,56 | L156: CAIXA REFERENCIAL
A157: ASSENTAMENTO DE TUBOS E PECAS | B157: ASTU | C157: FORNEC E/OU ASSENT DE TUBO DE CONCRETO COM JUNTA ARGAMASSADA | D157: 0052 | G157: 92214 | H157: TUBO DE CONCRETO PARA REDES COLETORAS DE ÁGUAS PLUVIAIS, DIÂMETRO DE 800 MM, JUNTA RÍGIDA, INSTALADO EM LOCAL COM BAIXO NÍVEL DE INTERFERÊNCIAS - FORNECIMENTO E ASSENTAMENTO. AF_12/2015 | I157: M | J157: COEFICIENTE DE REPRESENTATIVIDADE | K157: 412,15 | L157: CAIXA REFERENCIAL
A158: ASSENTAMENTO DE TUBOS E PECAS | B158: ASTU | C158: FORNEC E/OU ASSENT DE TUBO DE CONCRETO COM JUNTA ARGAMASSADA | D158: 0052 | G158: 92215 | H158: TUBO DE CONCRETO PARA REDES COLETORAS DE ÁGUAS PLUVIAIS, DIÂMETRO DE 900 MM, JUNTA RÍGIDA, INSTALADO EM LOCAL COM BAIXO NÍVEL DE INTERFERÊNCIAS - FORNECIMENTO E ASSENTAMENTO. AF_12/2015 | I158: M | J158: COEFICIENTE DE REPRESENTATIVIDADE | K158: 472,89 | L158: CAIXA REFERENCIAL
A159: ASSENTAMENTO DE TUBOS E PECAS | B159: ASTU | C159: FORNEC E/OU ASSENT DE TUBO DE CONCRETO COM JUNTA ARGAMASSADA | D159: 0052 | G159: 92216 | H159: TUBO DE CONCRETO PARA REDES COLETORAS DE ÁGUAS PLUVIAIS, DIÂMETRO DE 1000 MM, JUNTA RÍGIDA, INSTALADO EM LOCAL COM BAIXO NÍVEL DE INTERFERÊNCIAS - FORNECIMENTO E ASSENTAMENTO. AF_12/2015 | I159: M | J159: COEFICIENTE DE REPRESENTATIVIDADE | K159: 498,03 | L159: CAIXA REFERENCIAL
A160: ASSENTAMENTO DE TUBOS E PECAS | B160: ASTU | C160: FORNEC E/OU ASSENT DE TUBO DE CONCRETO COM JUNTA ARGAMASSADA | D160: 0052 | G160: 92219 | H160: TUBO DE CONCRETO PARA REDES COLETORAS DE ÁGUAS PLUVIAIS, DIÂMETRO DE 400 MM, JUNTA RÍGIDA, INSTALADO EM LOCAL COM ALTO NÍVEL DE INTERFERÊNCIAS - FORNECIMENTO E ASSENTAMENTO. AF_12/2015 | I160: M | J160: COEFICIENTE DE REPRESENTATIVIDADE | K160: 162,08 | L160: CAIXA REFERENCIAL
A161: ASSENTAMENTO DE TUBOS E PECAS | B161: ASTU | C161: FORNEC E/OU ASSENT DE TUBO DE CONCRETO COM JUNTA ARGAMASSADA | D161: 0052 | G161: 92220 | H161: TUBO DE CONCRETO PARA REDES COLETORAS DE ÁGUAS PLUVIAIS, DIÂMETRO DE 500 MM, JUNTA RÍGIDA, INSTALADO EM LOCAL COM ALTO NÍVEL DE INTERFERÊNCIAS - FORNECIMENTO E ASSENTAMENTO. AF_12/2015 | I161: M | J161: COEFICIENTE DE REPRESENTATIVIDADE | K161: 195,43 | L161: CAIXA REFERENCIAL
A162: ASSENTAMENTO DE TUBOS E PECAS | B162: ASTU | C162: FORNEC E/OU ASSENT DE TUBO DE CONCRETO COM JUNTA ARGAMASSADA | D162: 0052 | G162: 92221 | H162: TUBO DE CONCRETO PARA REDES COLETORAS DE ÁGUAS PLUVIAIS, DIÂMETRO DE 600 MM, JUNTA RÍGIDA, INSTALADO EM LOCAL COM ALTO NÍVEL DE INTERFERÊNCIAS - FORNECIMENTO E ASSENTAMENTO. AF_12/2015 | I162: M | J162: COEFICIENTE DE REPRESENTATIVIDADE | K162: 280,11 | L162: CAIXA REFERENCIAL
A163: ASSENTAMENTO DE TUBOS E PECAS | B163: ASTU | C163: FORNEC E/OU ASSENT DE TUBO DE CONCRETO COM JUNTA ARGAMASSADA | D163: 0052 | G163: 92222 | H163: TUBO DE CONCRETO PARA REDES COLETORAS DE ÁGUAS PLUVIAIS, DIÂMETRO DE 700 MM, JUNTA RÍGIDA, INSTALADO EM LOCAL COM ALTO NÍVEL DE INTERFERÊNCIAS - FORNECIMENTO E ASSENTAMENTO. AF_12/2015 | I163: M | J163: COEFICIENTE DE REPRESENTATIVIDADE | K163: 361,34 | L163: CAIXA REFERENCIAL
A164: ASSENTAMENTO DE TUBOS E PECAS | B164: ASTU | C164: FORNEC E/OU ASSENT DE TUBO DE CONCRETO COM JUNTA ARGAMASSADA | D164: 0052 | G164: 92223 | H164: TUBO DE CONCRETO PARA REDES COLETORAS DE ÁGUAS PLUVIAIS, DIÂMETRO DE 800 MM, JUNTA RÍGIDA, INSTALADO EM LOCAL COM ALTO NÍVEL DE INTERFERÊNCIAS - FORNECIMENTO E ASSENTAMENTO. AF_12/2015 | I164: M | J164: COEFICIENTE DE REPRESENTATIVIDADE | K164: 433,16 | L164: CAIXA REFERENCIAL
A165: ASSENTAMENTO DE TUBOS E PECAS | B165: ASTU | C165: FORNEC E/OU ASSENT DE TUBO DE CONCRETO COM JUNTA ARGAMASSADA | D165: 0052 | G165: 92224 | H165: TUBO DE CONCRETO PARA REDES COLETORAS DE ÁGUAS PLUVIAIS, DIÂMETRO DE 900 MM, JUNTA RÍGIDA, INSTALADO EM LOCAL COM ALTO NÍVEL DE INTERFERÊNCIAS - FORNECIMENTO E ASSENTAMENTO. AF_12/2015 | I165: M | J165: COEFICIENTE DE REPRESENTATIVIDADE | K165: 496,20 | L165: CAIXA REFERENCIAL
A166: ASSENTAMENTO DE TUBOS E PECAS | B166: ASTU | C166: FORNEC E/OU ASSENT DE TUBO DE CONCRETO COM JUNTA ARGAMASSADA | D166: 0052 | G166: 92226 | H166: TUBO DE CONCRETO PARA REDES COLETORAS DE ÁGUAS PLUVIAIS, DIÂMETRO DE 1000 MM, JUNTA RÍGIDA, INSTALADO EM LOCAL COM ALTO NÍVEL DE INTERFERÊNCIAS - FORNECIMENTO E ASSENTAMENTO. AF_12/2015 | I166: M | J166: COEFICIENTE DE REPRESENTATIVIDADE | K166: 524,13 | L166: CAIXA REFERENCIAL
A167: ASSENTAMENTO DE TUBOS E PECAS | B167: ASTU | C167: FORNEC E/OU ASSENT DE TUBO DE CONCRETO COM JUNTA ARGAMASSADA | D167: 0052 | G167: 92808 | H167: ASSENTAMENTO DE TUBO DE CONCRETO PARA REDES COLETORAS DE ÁGUAS PLUVIAIS, DIÂMETRO DE 300 MM, JUNTA RÍGIDA, INSTALADO EM LOCAL COM BAIXO NÍVEL DE INTERFERÊNCIAS (NÃO INCLUI FORNECIMENTO). AF_12/2015 | I167: M | J167: COEFICIENTE DE REPRESENTATIVIDADE | K167: 45,08 | L167: CAIXA REFERENCIAL
A168: ASSENTAMENTO DE TUBOS E PECAS | B168: ASTU | C168: FORNEC E/OU ASSENT DE TUBO DE CONCRETO COM JUNTA ARGAMASSADA | D168: 0052 | G168: 92809 | H168: ASSENTAMENTO DE TUBO DE CONCRETO PARA REDES COLETORAS DE ÁGUAS PLUVIAIS, DIÂMETRO DE 400 MM, JUNTA RÍGIDA, INSTALADO EM LOCAL COM BAIXO NÍVEL DE INTERFERÊNCIAS (NÃO INCLUI FORNECIMENTO). AF_12/2015 | I168: M | J168: COEFICIENTE DE REPRESENTATIVIDADE | K168: 57,80 | L168: CAIXA REFERENCIAL
A169: ASSENTAMENTO DE TUBOS E PECAS | B169: ASTU | C169: FORNEC E/OU ASSENT DE TUBO DE CONCRETO COM JUNTA ARGAMASSADA | D169: 0052 | G169: 92810 | H169: ASSENTAMENTO DE TUBO DE CONCRETO PARA REDES COLETORAS DE ÁGUAS PLUVIAIS, DIÂMETRO DE 500 MM, JUNTA RÍGIDA, INSTALADO EM LOCAL COM BAIXO NÍVEL DE INTERFERÊNCIAS (NÃO INCLUI FORNECIMENTO). AF_12/2015 | I169: M | J169: COEFICIENTE DE REPRESENTATIVIDADE | K169: 70,33 | L169: CAIXA REFERENCIAL
A170: ASSENTAMENTO DE TUBOS E PECAS | B170: ASTU | C170: FORNEC E/OU ASSENT DE TUBO DE CONCRETO COM JUNTA ARGAMASSADA | D170: 0052 | G170: 92811 | H170: ASSENTAMENTO DE TUBO DE CONCRETO PARA REDES COLETORAS DE ÁGUAS PLUVIAIS, DIÂMETRO DE 600 MM, JUNTA RÍGIDA, INSTALADO EM LOCAL COM BAIXO NÍVEL DE INTERFERÊNCIAS (NÃO INCLUI FORNECIMENTO). AF_12/2015 | I170: M | J170: COEFICIENTE DE REPRESENTATIVIDADE | K170: 83,72 | L170: CAIXA REFERENCIAL
A171: ASSENTAMENTO DE TUBOS E PECAS | B171: ASTU | C171: FORNEC E/OU ASSENT DE TUBO DE CONCRETO COM JUNTA ARGAMASSADA | D171: 0052 | G171: 92812 | H171: ASSENTAMENTO DE TUBO DE CONCRETO PARA REDES COLETORAS DE ÁGUAS PLUVIAIS, DIÂMETRO DE 700 MM, JUNTA RÍGIDA, INSTALADO EM LOCAL COM BAIXO NÍVEL DE INTERFERÊNCIAS (NÃO INCLUI FORNECIMENTO). AF_12/2015 | I171: M | J171: COEFICIENTE DE REPRESENTATIVIDADE | K171: 96,89 | L171: CAIXA REFERENCIAL
A172: ASSENTAMENTO DE TUBOS E PECAS | B172: ASTU | C172: FORNEC E/OU ASSENT DE TUBO DE CONCRETO COM JUNTA ARGAMASSADA | D172: 0052 | G172: 92813 | H172: ASSENTAMENTO DE TUBO DE CONCRETO PARA REDES COLETORAS DE ÁGUAS PLUVIAIS, DIÂMETRO DE 800 MM, JUNTA RÍGIDA, INSTALADO EM LOCAL COM BAIXO NÍVEL DE INTERFERÊNCIAS (NÃO INCLUI FORNECIMENTO). AF_12/2015 | I172: M | J172: COEFICIENTE DE REPRESENTATIVIDADE | K172: 112,25 | L172: CAIXA REFERENCIAL
A173: ASSENTAMENTO DE TUBOS E PECAS | B173: ASTU | C173: FORNEC E/OU ASSENT DE TUBO DE CONCRETO COM JUNTA ARGAMASSADA | D173: 0052 | G173: 92814 | H173: ASSENTAMENTO DE TUBO DE CONCRETO PARA REDES COLETORAS DE ÁGUAS PLUVIAIS, DIÂMETRO DE 900 MM, JUNTA RÍGIDA, INSTALADO EM LOCAL COM BAIXO NÍVEL DE INTERFERÊNCIAS (NÃO INCLUI FORNECIMENTO). AF_12/2015 | I173: M | J173: COEFICIENTE DE REPRESENTATIVIDADE | K173: 128,31 | L173: CAIXA REFERENCIAL
A174: ASSENTAMENTO DE TUBOS E PECAS | B174: ASTU | C174: FORNEC E/OU ASSENT DE TUBO DE CONCRETO COM JUNTA ARGAMASSADA | D174: 0052 | G174: 92815 | H174: ASSENTAMENTO DE TUBO DE CONCRETO PARA REDES COLETORAS DE ÁGUAS PLUVIAIS, DIÂMETRO DE 1000 MM, JUNTA RÍGIDA, INSTALADO EM LOCAL COM BAIXO NÍVEL DE INTERFERÊNCIAS (NÃO INCLUI FORNECIMENTO). AF_12/2015 | I174: M | J174: COEFICIENTE DE REPRESENTATIVIDADE | K174: 146,63 | L174: CAIXA REFERENCIAL
A175: ASSENTAMENTO DE TUBOS E PECAS | B175: ASTU | C175: FORNEC E/OU ASSENT DE TUBO DE CONCRETO COM JUNTA ARGAMASSADA | D175: 0052 | G175: 92816 | H175: TUBO DE CONCRETO PARA REDES COLETORAS DE ÁGUAS PLUVIAIS, DIÂMETRO DE 1200 MM, JUNTA RÍGIDA, INSTALADO EM LOCAL COM BAIXO NÍVEL DE INTERFERÊNCIAS - FORNECIMENTO E ASSENTAMENTO. AF_12/2015 | I175: M | J175: COEFICIENTE DE REPRESENTATIVIDADE | K175: 708,33 | L175: CAIXA REFERENCIAL
A176: ASSENTAMENTO DE TUBOS E PECAS | B176: ASTU | C176: FORNEC E/OU ASSENT DE TUBO DE CONCRETO COM JUNTA ARGAMASSADA | D176: 0052 | G176: 92817 | H176: ASSENTAMENTO DE TUBO DE CONCRETO PARA REDES COLETORAS DE ÁGUAS PLUVIAIS, DIÂMETRO DE 1200 MM, JUNTA RÍGIDA, INSTALADO EM LOCAL COM BAIXO NÍVEL DE INTERFERÊNCIAS (NÃO INCLUI FORNECIMENTO). AF_12/2015 | I176: M | J176: COEFICIENTE DE REPRESENTATIVIDADE | K176: 183,50 | L176: CAIXA REFERENCIAL
A177: ASSENTAMENTO DE TUBOS E PECAS | B177: ASTU | C177: FORNEC E/OU ASSENT DE TUBO DE CONCRETO COM JUNTA ARGAMASSADA | D177: 0052 | G177: 92818 | H177: TUBO DE CONCRETO PARA REDES COLETORAS DE ÁGUAS PLUVIAIS, DIÂMETRO DE 1500 MM, JUNTA RÍGIDA, INSTALADO EM LOCAL COM BAIXO NÍVEL DE INTERFERÊNCIAS - FORNECIMENTO E ASSENTAMENTO. AF_12/2015 | I177: M | J177: COEFICIENTE DE REPRESENTATIVIDADE | K177: 1.007,35 | L177: CAIXA REFERENCIAL
A178: ASSENTAMENTO DE TUBOS E PECAS | B178: ASTU | C178: FORNEC E/OU ASSENT DE TUBO DE CONCRETO COM JUNTA ARGAMASSADA | D178: 0052 | G178: 92819 | H178: ASSENTAMENTO DE TUBO DE CONCRETO PARA REDES COLETORAS DE ÁGUAS PLUVIAIS, DIÂMETRO DE 1500 MM, JUNTA RÍGIDA, INSTALADO EM LOCAL COM BAIXO NÍVEL DE INTERFERÊNCIAS (NÃO INCLUI FORNECIMENTO). AF_12/2015 | I178: M | J178: COEFICIENTE DE REPRESENTATIVIDADE | K178: 246,98 | L178: CAIXA REFERENCIAL
A179: ASSENTAMENTO DE TUBOS E PECAS | B179: ASTU | C179: FORNEC E/OU ASSENT DE TUBO DE CONCRETO COM JUNTA ARGAMASSADA | D179: 0052 | G179: 92820 | H179: ASSENTAMENTO DE TUBO DE CONCRETO PARA REDES COLETORAS DE ÁGUAS PLUVIAIS, DIÂMETRO DE 300 MM, JUNTA RÍGIDA, INSTALADO EM LOCAL COM ALTO NÍVEL DE INTERFERÊNCIAS (NÃO INCLUI FORNECIMENTO). AF_12/2015 | I179: M | J179: COEFICIENTE DE REPRESENTATIVIDADE | K179: 53,78 | L179: CAIXA REFERENCIAL
A180: ASSENTAMENTO DE TUBOS E PECAS | B180: ASTU | C180: FORNEC E/OU ASSENT DE TUBO DE CONCRETO COM JUNTA ARGAMASSADA | D180: 0052 | G180: 92821 | H180: ASSENTAMENTO DE TUBO DE CONCRETO PARA REDES COLETORAS DE ÁGUAS PLUVIAIS, DIÂMETRO DE 400 MM, JUNTA RÍGIDA, INSTALADO EM LOCAL COM ALTO NÍVEL DE INTERFERÊNCIAS (NÃO INCLUI FORNECIMENTO). AF_12/2015 | I180: M | J180: COEFICIENTE DE REPRESENTATIVIDADE | K180: 68,93 | L180: CAIXA REFERENCIAL
A181: ASSENTAMENTO DE TUBOS E PECAS | B181: ASTU | C181: FORNEC E/OU ASSENT DE TUBO DE CONCRETO COM JUNTA ARGAMASSADA | D181: 0052 | G181: 92822 | H181: ASSENTAMENTO DE TUBO DE CONCRETO PARA REDES COLETORAS DE ÁGUAS PLUVIAIS, DIÂMETRO DE 500 MM, JUNTA RÍGIDA, INSTALADO EM LOCAL COM ALTO NÍVEL DE INTERFERÊNCIAS (NÃO INCLUI FORNECIMENTO). AF_12/2015 | I181: M | J181: COEFICIENTE DE REPRESENTATIVIDADE | K181: 84,11 | L181: CAIXA REFERENCIAL
A182: ASSENTAMENTO DE TUBOS E PECAS | B182: ASTU | C182: FORNEC E/OU ASSENT DE TUBO DE CONCRETO COM JUNTA ARGAMASSADA | D182: 0052 | G182: 92824 | H182: ASSENTAMENTO DE TUBO DE CONCRETO PARA REDES COLETORAS DE ÁGUAS PLUVIAIS, DIÂMETRO DE 600 MM, JUNTA RÍGIDA, INSTALADO EM LOCAL COM ALTO NÍVEL DE INTERFERÊNCIAS (NÃO INCLUI FORNECIMENTO). AF_12/2015 | I182: M | J182: COEFICIENTE DE REPRESENTATIVIDADE | K182: 99,86 | L182: CAIXA REFERENCIAL
A183: ASSENTAMENTO DE TUBOS E PECAS | B183: ASTU | C183: FORNEC E/OU ASSENT DE TUBO DE CONCRETO COM JUNTA ARGAMASSADA | D183: 0052 | G183: 92825 | H183: ASSENTAMENTO DE TUBO DE CONCRETO PARA REDES COLETORAS DE ÁGUAS PLUVIAIS, DIÂMETRO DE 700 MM, JUNTA RÍGIDA, INSTALADO EM LOCAL COM ALTO NÍVEL DE INTERFERÊNCIAS (NÃO INCLUI FORNECIMENTO). AF_12/2015 | I183: M | J183: COEFICIENTE DE REPRESENTATIVIDADE | K183: 115,67 | L183: CAIXA REFERENCIAL
A184: ASSENTAMENTO DE TUBOS E PECAS | B184: ASTU | C184: FORNEC E/OU ASSENT DE TUBO DE CONCRETO COM JUNTA ARGAMASSADA | D184: 0052 | G184: 92826 | H184: ASSENTAMENTO DE TUBO DE CONCRETO PARA REDES COLETORAS DE ÁGUAS PLUVIAIS, DIÂMETRO DE 800 MM, JUNTA RÍGIDA, INSTALADO EM LOCAL COM ALTO NÍVEL DE INTERFERÊNCIAS (NÃO INCLUI FORNECIMENTO). AF_12/2015 | I184: M | J184: COEFICIENTE DE REPRESENTATIVIDADE | K184: 133,26 | L184: CAIXA REFERENCIAL
A185: ASSENTAMENTO DE TUBOS E PECAS | B185: ASTU | C185: FORNEC E/OU ASSENT DE TUBO DE CONCRETO COM JUNTA ARGAMASSADA | D185: 0052 | G185: 92827 | H185: ASSENTAMENTO DE TUBO DE CONCRETO PARA REDES COLETORAS DE ÁGUAS PLUVIAIS, DIÂMETRO DE 900 MM, JUNTA RÍGIDA, INSTALADO EM LOCAL COM ALTO NÍVEL DE INTERFERÊNCIAS (NÃO INCLUI FORNECIMENTO). AF_12/2015 | I185: M | J185: COEFICIENTE DE REPRESENTATIVIDADE | K185: 151,62 | L185: CAIXA REFERENCIAL
A186: ASSENTAMENTO DE TUBOS E PECAS | B186: ASTU | C186: FORNEC E/OU ASSENT DE TUBO DE CONCRETO COM JUNTA ARGAMASSADA | D186: 0052 | G186: 92828 | H186: ASSENTAMENTO DE TUBO DE CONCRETO PARA REDES COLETORAS DE ÁGUAS PLUVIAIS, DIÂMETRO DE 1000 MM, JUNTA RÍGIDA, INSTALADO EM LOCAL COM ALTO NÍVEL DE INTERFERÊNCIAS (NÃO INCLUI FORNECIMENTO). AF_12/2015 | I186: M | J186: COEFICIENTE DE REPRESENTATIVIDADE | K186: 172,73 | L186: CAIXA REFERENCIAL
A187: ASSENTAMENTO DE TUBOS E PECAS | B187: ASTU | C187: FORNEC E/OU ASSENT DE TUBO DE CONCRETO COM JUNTA ARGAMASSADA | D187: 0052 | G187: 92829 | H187: TUBO DE CONCRETO PARA REDES COLETORAS DE ÁGUAS PLUVIAIS, DIÂMETRO DE 1200 MM, JUNTA RÍGIDA, INSTALADO EM LOCAL COM ALTO NÍVEL DE INTERFERÊNCIAS - FORNECIMENTO E ASSENTAMENTO. AF_12/2015 | I187: M | J187: COEFICIENTE DE REPRESENTATIVIDADE | K187: 739,10 | L187: CAIXA REFERENCIAL
A188: ASSENTAMENTO DE TUBOS E PECAS | B188: ASTU | C188: FORNEC E/OU ASSENT DE TUBO DE CONCRETO COM JUNTA ARGAMASSADA | D188: 0052 | G188: 92830 | H188: ASSENTAMENTO DE TUBO DE CONCRETO PARA REDES COLETORAS DE ÁGUAS PLUVIAIS, DIÂMETRO DE 1200 MM, JUNTA RÍGIDA, INSTALADO EM LOCAL COM ALTO NÍVEL DE INTERFERÊNCIAS (NÃO INCLUI FORNECIMENTO). AF_12/2015 | I188: M | J188: COEFICIENTE DE REPRESENTATIVIDADE | K188: 214,27 | L188: CAIXA REFERENCIAL
A189: ASSENTAMENTO DE TUBOS E PECAS | B189: ASTU | C189: FORNEC E/OU ASSENT DE TUBO DE CONCRETO COM JUNTA ARGAMASSADA | D189: 0052 | G189: 92831 | H189: TUBO DE CONCRETO PARA REDES COLETORAS DE ÁGUAS PLUVIAIS, DIÂMETRO DE 1500 MM, JUNTA RÍGIDA, INSTALADO EM LOCAL COM ALTO NÍVEL DE INTERFERÊNCIAS - FORNECIMENTO E ASSENTAMENTO. AF_12/2015 | I189: M | J189: COEFICIENTE DE REPRESENTATIVIDADE | K189: 1.045,22 | L189: CAIXA REFERENCIAL
A190: ASSENTAMENTO DE TUBOS E PECAS | B190: ASTU | C190: FORNEC E/OU ASSENT DE TUBO DE CONCRETO COM JUNTA ARGAMASSADA | D190: 0052 | G190: 92832 | H190: ASSENTAMENTO DE TUBO DE CONCRETO PARA REDES COLETORAS DE ÁGUAS PLUVIAIS, DIÂMETRO DE 1500 MM, JUNTA RÍGIDA, INSTALADO EM LOCAL COM ALTO NÍVEL DE INTERFERÊNCIAS (NÃO INCLUI FORNECIMENTO). AF_12/2015 | I190: M | J190: COEFICIENTE DE REPRESENTATIVIDADE | K190: 284,85 | L190: CAIXA REFERENCIAL
A191: ASSENTAMENTO DE TUBOS E PECAS | B191: ASTU | C191: FORNEC E/OU ASSENT DE TUBO DE CONCRETO COM JUNTA ARGAMASSADA | D191: 0052 | G191: 95565 | H191: TUBO DE CONCRETO PARA REDES COLETORAS DE ÁGUAS PLUVIAIS, DIÂMETRO DE 300MM, JUNTA RÍGIDA, INSTALADO EM LOCAL COM BAIXO NÍVEL DE INTERFERÊNCIAS - FORNECIMENTO E ASSENTAMENTO. AF_12/2015 | I191: M | J191: COEFICIENTE DE REPRESENTATIVIDADE | K191: 127,62 | L191: CAIXA REFERENCIAL
A192: ASSENTAMENTO DE TUBOS E PECAS | B192: ASTU | C192: FORNEC E/OU ASSENT DE TUBO DE CONCRETO COM JUNTA ARGAMASSADA | D192: 0052 | G192: 95566 | H192: TUBO DE CONCRETO PARA REDES COLETORAS DE ÁGUAS PLUVIAIS, DIÂMETRO DE 300MM, JUNTA RÍGIDA, INSTALADO EM LOCAL COM ALTO NÍVEL DE INTERFERÊNCIAS - FORNECIMENTO E ASSENTAMENTO. AF_12/2015 | I192: M | J192: COEFICIENTE DE REPRESENTATIVIDADE | K192: 136,32 | L192: CAIXA REFERENCIAL
A193: ASSENTAMENTO DE TUBOS E PECAS | B193: ASTU | C193: FORNEC E/OU ASSENT DE TUBO DE CONCRETO COM JUNTA ARGAMASSADA | D193: 0052 | G193: 95567 | H193: TUBO DE CONCRETO (SIMPLES) PARA REDES COLETORAS DE ÁGUAS PLUVIAIS, DIÂMETRO DE 300 MM, JUNTA RÍGIDA, INSTALADO EM LOCAL COM BAIXO NÍVEL DE INTERFERÊNCIAS - FORNECIMENTO E ASSENTAMENTO. AF_12/2015 | I193: M | J193: ATRIBUÍDO SÃO PAULO | K193: 108,94 | L193: CAIXA REFERENCIAL
A194: ASSENTAMENTO DE TUBOS E PECAS | B194: ASTU | C194: FORNEC E/OU ASSENT DE TUBO DE CONCRETO COM JUNTA ARGAMASSADA | D194: 0052 | G194: 95568 | H194: TUBO DE CONCRETO (SIMPLES) PARA REDES COLETORAS DE ÁGUAS PLUVIAIS, DIÂMETRO DE 400 MM, JUNTA RÍGIDA, INSTALADO EM LOCAL COM BAIXO NÍVEL DE INTERFERÊNCIAS - FORNECIMENTO E ASSENTAMENTO. AF_12/2015 | I194: M | J194: ATRIBUÍDO SÃO PAULO | K194: 133,25 | L194: CAIXA REFERENCIAL
A195: ASSENTAMENTO DE TUBOS E PECAS | B195: ASTU | C195: FORNEC E/OU ASSENT DE TUBO DE CONCRETO COM JUNTA ARGAMASSADA | D195: 0052 | G195: 95569 | H195: TUBO DE CONCRETO (SIMPLES) PARA REDES COLETORAS DE ÁGUAS PLUVIAIS, DIÂMETRO DE 500 MM, JUNTA RÍGIDA, INSTALADO EM LOCAL COM BAIXO NÍVEL DE INTERFERÊNCIAS - FORNECIMENTO E ASSENTAMENTO. AF_12/2015 | I195: M | J195: ATRIBUÍDO SÃO PAULO | K195: 182,64 | L195: CAIXA REFERENCIAL
A196: ASSENTAMENTO DE TUBOS E PECAS | B196: ASTU | C196: FORNEC E/OU ASSENT DE TUBO DE CONCRETO COM JUNTA ARGAMASSADA | D196: 0052 | G196: 95570 | H196: TUBO DE CONCRETO (SIMPLES) PARA REDES COLETORAS DE ÁGUAS PLUVIAIS, DIÂMETRO DE 300 MM, JUNTA RÍGIDA, INSTALADO EM LOCAL COM ALTO NÍVEL DE INTERFERÊNCIAS - FORNECIMENTO E ASSENTAMENTO. AF_12/2015 | I196: M | J196: ATRIBUÍDO SÃO PAULO | K196: 117,64 | L196: CAIXA REFERENCIAL
A197: ASSENTAMENTO DE TUBOS E PECAS | B197: ASTU | C197: FORNEC E/OU ASSENT DE TUBO DE CONCRETO COM JUNTA ARGAMASSADA | D197: 0052 | G197: 95571 | H197: TUBO DE CONCRETO (SIMPLES) PARA REDES COLETORAS DE ÁGUAS PLUVIAIS, DIÂMETRO DE 400 MM, JUNTA RÍGIDA, INSTALADO EM LOCAL COM ALTO NÍVEL DE INTERFERÊNCIAS - FORNECIMENTO E ASSENTAMENTO. AF_12/2015 | I197: M | J197: ATRIBUÍDO SÃO PAULO | K197: 144,38 | L197: CAIXA REFERENCIAL
A198: ASSENTAMENTO DE TUBOS E PECAS | B198: ASTU | C198: FORNEC E/OU ASSENT DE TUBO DE CONCRETO COM JUNTA ARGAMASSADA | D198: 0052 | G198: 95572 | H198: TUBO DE CONCRETO (SIMPLES) PARA REDES COLETORAS DE ÁGUAS PLUVIAIS, DIÂMETRO DE 500 MM, JUNTA RÍGIDA, INSTALADO EM LOCAL COM ALTO NÍVEL DE INTERFERÊNCIAS - FORNECIMENTO E ASSENTAMENTO. AF_12/2015 | I198: M | J198: ATRIBUÍDO SÃO PAULO | K198: 196,42 | L198: CAIXA REFERENCIAL
A199: ASSENTAMENTO DE TUBOS E PECAS | B199: ASTU | C199: FORNEC E/OU ASSENT DE TUBO PVC DEFOFO COM JUNTA ELASTICA | D199: 0230 | G199: 97127 | H199: ASSENTAMENTO DE TUBO DE PVC DEFOFO OU PRFV OU RPVC PARA REDE DE ÁGUA, DN 150 MM, JUNTA ELÁSTICA INTEGRADA, INSTALADO EM LOCAL COM NÍVEL ALTO DE INTERFERÊNCIAS (NÃO INCLUI FORNECIMENTO). AF_11/2017 | I199: M | J199: COEFICIENTE DE REPRESENTATIVIDADE | K199: 5,69 | L199: CAIXA REFERENCIAL
A200: ASSENTAMENTO DE TUBOS E PECAS | B200: ASTU | C200: FORNEC E/OU ASSENT DE TUBO PVC DEFOFO COM JUNTA ELASTICA | D200: 0230 | G200: 97128 | H200: ASSENTAMENTO DE TUBO DE PVC DEFOFO OU PRFV OU RPVC PARA REDE DE ÁGUA, DN 200 MM, JUNTA ELÁSTICA INTEGRADA, INSTALADO EM LOCAL COM NÍVEL ALTO DE INTERFERÊNCIAS (NÃO INCLUI FORNECIMENTO). AF_11/2017 | I200: M | J200: COEFICIENTE DE REPRESENTATIVIDADE | K200: 11,81 | L200: CAIXA REFERENCIAL
A201: ASSENTAMENTO DE TUBOS E PECAS | B201: ASTU | C201: FORNEC E/OU ASSENT DE TUBO PVC DEFOFO COM JUNTA ELASTICA | D201: 0230 | G201: 97129 | H201: ASSENTAMENTO DE TUBO DE PVC DEFOFO OU PRFV OU RPVC PARA REDE DE ÁGUA, DN 250 MM, JUNTA ELÁSTICA INTEGRADA, INSTALADO EM LOCAL COM NÍVEL ALTO DE INTERFERÊNCIAS (NÃO INCLUI FORNECIMENTO). AF_11/2017 | I201: M | J201: COEFICIENTE DE REPRESENTATIVIDADE | K201: 14,52 | L201: CAIXA REFERENCIAL
A202: ASSENTAMENTO DE TUBOS E PECAS | B202: ASTU | C202: FORNEC E/OU ASSENT DE TUBO PVC DEFOFO COM JUNTA ELASTICA | D202: 0230 | G202: 97130 | H202: ASSENTAMENTO DE TUBO DE PVC DEFOFO OU PRFV OU RPVC PARA REDE DE ÁGUA, DN 300 MM, JUNTA ELÁSTICA INTEGRADA, INSTALADO EM LOCAL COM NÍVEL ALTO DE INTERFERÊNCIAS (NÃO INCLUI FORNECIMENTO). AF_11/2017 | I202: M | J202: COEFICIENTE DE REPRESENTATIVIDADE | K202: 17,22 | L202: CAIXA REFERENCIAL
... 7357 more rows
